'DEPARTMENT_FAMILY,ENTITY,PAYMENT_DATE,EXPENSE_TYPE,EXPENSE_AREA,SUPPLIER,TRANSACTION_NUMBER,AMOUNT,DESCRIPTION
Ministry of Justice,LEGAL AID AGENCY,15/07/2016,223000-Other Expenditure,VA094-Head of Legal,GOVERNMENT LEGAL DEPARTMENT,10133,"329,500.00 ",Legal Costs
Ministry of Justice,LEGAL AID AGENCY,13/07/2016,265000-IT & Telecommunications,VA403-IDP - Infrastructure,ATOS IT SERVICES UK LTD,2006018,"137,249.22 ",IT Costs
Ministry of Justice,LEGAL AID AGENCY,06/07/2016,265000-IT & Telecommunications,VA403-IDP - Infrastructure,ATOS IT SERVICES UK LTD,2005936,"133,707.22 ",IT Costs
Ministry of Justice,LEGAL AID AGENCY,13/07/2016,265000-IT & Telecommunications,VA403-IDP - Infrastructure,ATOS IT SERVICES UK LTD,2006018,"126,735.30 ",IT Costs
Ministry of Justice,LEGAL AID AGENCY,13/07/2016,265000-IT & Telecommunications,VA403-IDP - Infrastructure,ATOS IT SERVICES UK LTD,2006018,"120,258.64 ",IT Costs
Ministry of Justice,LEGAL AID AGENCY,27/07/2016,512000-Intangible GBV - Additions,VA294-ISD,HOME OFFICE IT,10135,"95,037.60 ",IT Costs
Ministry of Justice,LEGAL AID AGENCY,27/07/2016,265000-IT & Telecommunications,VA294-ISD,BRAMBLE HUB LTD,2006169,"87,945.00 ",IT Costs
Ministry of Justice,LEGAL AID AGENCY,13/07/2016,223000-Other Expenditure,VA395-National Courts Team,ROSSENDALES LTD,2006060,"72,885.00 ",Debt Collection Costs
Ministry of Justice,LEGAL AID AGENCY,06/07/2016,221000-Property Rent and Rates,VA396-Property Costs,CBRE LTD,2005945,"71,846.40 ",Property Costs
Ministry of Justice,LEGAL AID AGENCY,13/07/2016,265000-IT & Telecommunications,VA294-ISD,REDCENTRIC SOLUTIONS LTD,2006057,"69,736.60 ",IT Costs
Ministry of Justice,LEGAL AID AGENCY,06/07/2016,222002-Other Property Costs,VA396-Property Costs,DTZ DEBENHAM TIE LEUNG,2005948,"62,500.00 ",Property Costs
Ministry of Justice,LEGAL AID AGENCY,22/07/2016,223000-Other Expenditure,VA118-Legal Aid Transformation,GT STEWART SOLICITORS#VA11800077,2006162,"62,500.00 ",Legal Costs
Ministry of Justice,LEGAL AID AGENCY,13/07/2016,224000-Staff travel and other,VA293-Finance Directorate,REDFERN TRAVEL LTD,2006058,"58,112.91 ",Travel Costs
Ministry of Justice,LEGAL AID AGENCY,06/07/2016,221000-Property Rent and Rates,VA396-Property Costs,DTZ DEBENHAM TIE LEUNG,2005948,"56,000.00 ",Property Costs
Ministry of Justice,LEGAL AID AGENCY,29/07/2016,223000-Other Expenditure,VA118-Legal Aid Transformation,DAC BEACHCROFT LLP#VA11800080,2006230,"54,000.00 ",Legal Costs
Ministry of Justice,LEGAL AID AGENCY,06/07/2016,224000-Staff travel and other,VA293-Finance Directorate,REDFERN TRAVEL LTD,2005987,"48,124.01 ",Travel Costs
Ministry of Justice,LEGAL AID AGENCY,06/07/2016,264000-Consultancy,VA192-Head of Serv Dev&Central Com,BRAVO SOLUTION UK LTD,2005941,"48,000.00 ",IT Costs
Ministry of Justice,LEGAL AID AGENCY,22/07/2016,223000-Other Expenditure,VA118-Legal Aid Transformation,HARDING EVANS LLP#VA11800078,2006163,"45,000.00 ",Legal Costs
Ministry of Justice,LEGAL AID AGENCY,13/07/2016,223000-Other Expenditure,VA295-Assurance,PRICEWATERHOUSECOOPERS LLP,2006054,"39,740.00 ",Assurance Costs
Ministry of Justice,LEGAL AID AGENCY,18/07/2016,223000-Other Expenditure,VA118-Legal Aid Transformation,STOKOE PARTNERSHIP & GOLDKORNS SOLS#VA11800076,2006086,"38,625.00 ",Legal Costs
Ministry of Justice,LEGAL AID AGENCY,18/07/2016,223000-Other Expenditure,VA118-Legal Aid Transformation,EBR ATTRIDGE LLP#VA11800074,2006084,"37,500.00 ",Legal Costs
Ministry of Justice,LEGAL AID AGENCY,13/07/2016,224000-Staff travel and other,VA293-Finance Directorate,REDFERN TRAVEL LTD,2006058,"35,244.30 ",Travel Costs
Ministry of Justice,LEGAL AID AGENCY,27/07/2016,212001-Agency staff,VA293-Finance Directorate,BROOK STREET (UK) LTD,2006171,"31,561.82 ",Staff Costs
Ministry of Justice,LEGAL AID AGENCY,13/07/2016,265000-IT & Telecommunications,"VA393-Operations, Civil",NORTHGATE PUBLIC SERVICES (UK) LTD,2006050,"29,382.58 ",IT Costs
Ministry of Justice,LEGAL AID AGENCY,06/07/2016,265000-IT & Telecommunications,VA403-IDP - Infrastructure,ATOS IT SERVICES UK LTD,2005936,"28,730.32 ",IT Costs
Ministry of Justice,LEGAL AID AGENCY,13/07/2016,265000-IT & Telecommunications,VA294-ISD,REDCENTRIC SOLUTIONS LTD,2006057,"27,900.00 ",IT Costs
Ministry of Justice,LEGAL AID AGENCY,18/07/2016,223000-Other Expenditure,VA118-Legal Aid Transformation,KENNETH M BARROW & CO#VA11800073,2006083,"27,000.00 ",Legal Costs
Ministry of Justice,LEGAL AID AGENCY,18/07/2016,223000-Other Expenditure,VA118-Legal Aid Transformation,MPR SOLICITORS LLP#VA11800075,2006085,"27,000.00 ",Legal Costs
Ministry of Justice,LEGAL AID AGENCY,14/07/2016,223000-Other Expenditure,VA118-Legal Aid Transformation,ZMS LEGAL LTD#VA11800072,2006081,"27,000.00 ",Legal Costs
Ministry of Justice,LEGAL AID AGENCY,13/07/2016,223000-Other Expenditure,VA395-National Courts Team,ROSSENDALES LTD,2006060,"26,128.00 ",Debt Enforcement Costs
Ministry of Justice,LEGAL AID AGENCY,13/07/2016,223000-Other Expenditure,VA395-National Courts Team,ROSSENDALES LTD,2006060,"20,400.00 ",Debt Enforcement Costs
Ministry of Justice,LEGAL AID AGENCY,13/07/2016,223000-Other Expenditure,VA395-National Courts Team,ROSSENDALES LTD,2006060,"17,384.00 ",Debt Enforcement Costs
Ministry of Justice,LEGAL AID AGENCY,13/07/2016,223000-Other Expenditure,VA395-National Courts Team,ROSSENDALES LTD,2006060,"17,346.50 ",Debt Enforcement Costs
Ministry of Justice,LEGAL AID AGENCY,13/07/2016,223000-Other Expenditure,VA395-National Courts Team,ROSSENDALES LTD,2006060,"15,310.00 ",Debt Enforcement Costs
Ministry of Justice,LEGAL AID AGENCY,22/07/2016,610400-Debtors <1 year - Prepayments & Accrued Income,VA396-Property Costs,BRIGHTON & HOVE CITY COUNCIL,2006152,"14,040.25 ",Property Costs
Ministry of Justice,LEGAL AID AGENCY,22/07/2016,610400-Debtors <1 year - Prepayments & Accrued Income,VA396-Property Costs,BRISTOL CITY COUNCIL,2006153,"13,170.50 ",Property Costs
Ministry of Justice,LEGAL AID AGENCY,22/07/2016,610400-Debtors <1 year - Prepayments & Accrued Income,VA396-Property Costs,SOUTH TYNESIDE COUNCIL,2006161,"12,077.10 ",Property Costs
Ministry of Justice,LEGAL AID AGENCY,22/07/2016,610400-Debtors <1 year - Prepayments & Accrued Income,VA396-Property Costs,LEEDS CITY COUNCIL,2006158,"11,281.90 ",Property Costs
Ministry of Justice,LEGAL AID AGENCY,13/07/2016,223000-Other Expenditure,VA395-National Courts Team,ROSSENDALES LTD,2006060,"10,898.00 ",Debt Enforcement Costs
Ministry of Justice,LEGAL AID AGENCY,06/07/2016,222002-Other Property Costs,VA396-Property Costs,CBRE LTD,2005945,"9,356.58 ",Property Costs
Ministry of Justice,LEGAL AID AGENCY,13/07/2016,223000-Other Expenditure,VA395-National Courts Team,ROSSENDALES LTD,2006060,"9,026.88 ",Debt Collection Costs
Ministry of Justice,LEGAL AID AGENCY,22/07/2016,610400-Debtors <1 year - Prepayments & Accrued Income,VA396-Property Costs,BIRMINGHAM CITY COUNCIL,2006151,"8,796.90 ",Property Costs
Ministry of Justice,LEGAL AID AGENCY,22/07/2016,610400-Debtors <1 year - Prepayments & Accrued Income,VA396-Property Costs,NOTTINGHAM CITY COUNCIL,2006159,"6,013.70 ",Property Costs
Ministry of Justice,LEGAL AID AGENCY,22/07/2016,610400-Debtors <1 year - Prepayments & Accrued Income,VA396-Property Costs,CARDIFF COUNTY COUNCIL,2006154,"3,207.60 ",Property Costs
Ministry of Justice,LEGAL AID AGENCY,13/07/2016,224000-Staff travel and other,VA293-Finance Directorate,REDFERN TRAVEL LTD,2006058,222.76 ,Travel Costs
Ministry of Justice,LEGAL AID AGENCY,13/07/2016,224000-Staff travel and other,VA293-Finance Directorate,REDFERN TRAVEL LTD,2006058,195.90 ,Travel Costs
Ministry of Justice,LEGAL AID AGENCY,06/07/2016,224000-Staff travel and other,VA293-Finance Directorate,REDFERN TRAVEL LTD,2005987,180.28 ,Travel Costs
Ministry of Justice,LEGAL AID AGENCY,13/07/2016,224000-Staff travel and other,VA293-Finance Directorate,REDFERN TRAVEL LTD,2006058,165.64 ,Travel Costs
Ministry of Justice,LEGAL AID AGENCY,13/07/2016,223000-Other Expenditure,VA395-National Courts Team,ROSSENDALES LTD,2006060,100.00 ,Debt Enforcement Costs
Ministry of Justice,LEGAL AID AGENCY,13/07/2016,224000-Staff travel and other,VA293-Finance Directorate,REDFERN TRAVEL LTD,2006058,-666.17 ,Travel Costs
Ministry of Justice,LEGAL AID AGENCY,13/07/2016,224000-Staff travel and other,VA293-Finance Directorate,REDFERN TRAVEL LTD,2006058,"-2,116.78 ",Travel Costs
Ministry of Justice,LEGAL AID AGENCY,15/07/2016,223000-Other Expenditure,VA094-Head of Legal,GOVERNMENT LEGAL DEPARTMENT,10133,"-164,750.00 ",Legal Costs
MINISTRY OF JUSTICE,LEGAL AID AGENCY,27/07/2016,Lower Crime,LEGAL AID FUND,CARRINGTONS SOLICITORS,1026893:144850977,"219,881.00 ",Legal Aid Payment Lower Crime
MINISTRY OF JUSTICE,LEGAL AID AGENCY,27/07/2016,Lower Crime,LEGAL AID FUND,BINDMANS LLP,1027012:144851125,"210,155.00 ",Legal Aid Payment Lower Crime
MINISTRY OF JUSTICE,LEGAL AID AGENCY,27/07/2016,Lower Crime,LEGAL AID FUND,THE JOHNSON PARTNERSHIP,1027137:144850327,"190,000.00 ",Legal Aid Payment Lower Crime
MINISTRY OF JUSTICE,LEGAL AID AGENCY,20/07/2016,Lower Crime,LEGAL AID FUND,R ALUN JONES QC,1021381:144737735,"183,492.00 ",Legal Aid Payment Lower Crime
MINISTRY OF JUSTICE,LEGAL AID AGENCY,27/07/2016,Lower Crime,LEGAL AID FUND,M K LAW SOLICITORS LTD,1023198:144851629,"157,754.00 ",Legal Aid Payment Lower Crime
MINISTRY OF JUSTICE,LEGAL AID AGENCY,20/07/2016,Higher Crime,LEGAL AID FUND,DAVID J AARONBERG QC,1021321:144792246,"157,080.00 ",Legal Aid Payment Higher Crime
MINISTRY OF JUSTICE,LEGAL AID AGENCY,06/07/2016,Higher Crime,LEGAL AID FUND,MARK G MILLIKEN-SMITH,1011124:144659540,"157,080.00 ",Legal Aid Payment Higher Crime
MINISTRY OF JUSTICE,LEGAL AID AGENCY,27/07/2016,Lower Crime,LEGAL AID FUND,JSP LAW LTD,1026796:144851663,"145,995.00 ",Legal Aid Payment Lower Crime
MINISTRY OF JUSTICE,LEGAL AID AGENCY,27/07/2016,Lower Crime,LEGAL AID FUND,DUNCAN LEWIS,1023481:144850454,"127,200.00 ",Legal Aid Payment Lower Crime
MINISTRY OF JUSTICE,LEGAL AID AGENCY,06/07/2016,Higher Crime,LEGAL AID FUND,MCCORMICKS,1013157:144634417,"127,029.30 ",Legal Aid Payment Higher Crime
MINISTRY OF JUSTICE,LEGAL AID AGENCY,06/07/2016,Higher Crime,LEGAL AID FUND,STEPHEN LICKRISH & ASSOCIATES LTD,1010185:144634424,"127,029.30 ",Legal Aid Payment Higher Crime
MINISTRY OF JUSTICE,LEGAL AID AGENCY,06/07/2016,Higher Crime,LEGAL AID FUND,STUART MILLER SOLICITORS LTD,1011868:144655303,"127,029.30 ",Legal Aid Payment Higher Crime
MINISTRY OF JUSTICE,LEGAL AID AGENCY,27/07/2016,Lower Crime,LEGAL AID FUND,STUART MILLER SOLICITORS LTD,1025518:144851124,"117,122.00 ",Legal Aid Payment Lower Crime
MINISTRY OF JUSTICE,LEGAL AID AGENCY,20/07/2016,Higher Crime,LEGAL AID FUND,CARTER MOORE SOLICITORS LTD,1018519:144744425,"116,710.50 ",Legal Aid Payment Higher Crime
MINISTRY OF JUSTICE,LEGAL AID AGENCY,06/07/2016,Higher Crime,LEGAL AID FUND,VICKERS CHISMAN & WISHLADE,1013247:144634508,"116,710.50 ",Legal Aid Payment Higher Crime
MINISTRY OF JUSTICE,LEGAL AID AGENCY,20/07/2016,Higher Crime,LEGAL AID FUND,TUCKERS SOLICITORS LLP,1022006:144744712,"116,008.49 ",Legal Aid Payment Higher Crime
MINISTRY OF JUSTICE,LEGAL AID AGENCY,06/07/2016,Higher Crime,LEGAL AID FUND,ALEXANDER BENNETT,1012071:144634309,"113,365.08 ",Legal Aid Payment Higher Crime
MINISTRY OF JUSTICE,LEGAL AID AGENCY,27/07/2016,Lower Crime,LEGAL AID FUND,TUCKERS SOLICITORS LLP,1025580:144850475,"110,000.00 ",Legal Aid Payment Lower Crime
MINISTRY OF JUSTICE,LEGAL AID AGENCY,06/07/2016,Higher Crime,LEGAL AID FUND,UK LAW,1011465:144625534,"107,970.13 ",Legal Aid Payment Higher Crime
MINISTRY OF JUSTICE,LEGAL AID AGENCY,27/07/2016,Lower Crime,LEGAL AID FUND,J D SPICER ZEB,1023912:144851086,"107,623.00 ",Legal Aid Payment Lower Crime
MINISTRY OF JUSTICE,LEGAL AID AGENCY,06/07/2016,Higher Crime,LEGAL AID FUND,BAKER GRAY & CO,1011863:144634500,"107,574.07 ",Legal Aid Payment Higher Crime
MINISTRY OF JUSTICE,LEGAL AID AGENCY,20/07/2016,Higher Crime,LEGAL AID FUND,SHAW GRAHAM KERSH,1019642:144756525,"107,574.07 ",Legal Aid Payment Higher Crime
MINISTRY OF JUSTICE,LEGAL AID AGENCY,13/07/2016,Higher Crime,LEGAL AID FUND,COBLEYS LLP,1015350:144689972,"105,857.75 ",Legal Aid Payment Higher Crime
MINISTRY OF JUSTICE,LEGAL AID AGENCY,06/07/2016,Higher Crime,LEGAL AID FUND,DPP LAW LTD,1012901:144655193,"105,857.75 ",Legal Aid Payment Higher Crime
MINISTRY OF JUSTICE,LEGAL AID AGENCY,13/07/2016,Higher Crime,LEGAL AID FUND,JANES SOLICITORS,1017520:144689963,"105,857.75 ",Legal Aid Payment Higher Crime
MINISTRY OF JUSTICE,LEGAL AID AGENCY,20/07/2016,Higher Crime,LEGAL AID FUND,KENNETH M BARROW & CO,1022002:144744315,"105,857.75 ",Legal Aid Payment Higher Crime
MINISTRY OF JUSTICE,LEGAL AID AGENCY,20/07/2016,Higher Crime,LEGAL AID FUND,MESSRS WATERFORDS SOLICITORS,1019783:144744613,"105,857.75 ",Legal Aid Payment Higher Crime
MINISTRY OF JUSTICE,LEGAL AID AGENCY,06/07/2016,Higher Crime,LEGAL AID FUND,STOKOE PARTNERSHIP,1013413:144625631,"105,857.75 ",Legal Aid Payment Higher Crime
MINISTRY OF JUSTICE,LEGAL AID AGENCY,20/07/2016,Higher Crime,LEGAL AID FUND,TUCKERS SOLICITORS LLP,1019555:144756721,"105,857.75 ",Legal Aid Payment Higher Crime
MINISTRY OF JUSTICE,LEGAL AID AGENCY,27/07/2016,Lower Crime,LEGAL AID FUND,CLIFFORD JOHNSTON & CO,1023649:144851312,"101,818.00 ",Legal Aid Payment Lower Crime
MINISTRY OF JUSTICE,LEGAL AID AGENCY,20/07/2016,Lower Crime,LEGAL AID FUND,TIMOTHY J MOLONEY QC,1019445:144793575,"99,539.28 ",Legal Aid Payment Lower Crime
MINISTRY OF JUSTICE,LEGAL AID AGENCY,27/07/2016,Legal Help,LEGAL AID FUND,BURKE NIAZI  LTD,1027332:144845514,"99,000.00 ",Legal Aid Payment Legal Help
MINISTRY OF JUSTICE,LEGAL AID AGENCY,27/07/2016,Legal Help,LEGAL AID FUND,DUNCAN LEWIS,1023481:144845508,"99,000.00 ",Legal Aid Payment Legal Help
MINISTRY OF JUSTICE,LEGAL AID AGENCY,27/07/2016,Legal Help,LEGAL AID FUND,DUNCAN LEWIS,1023482:144845043,"99,000.00 ",Legal Aid Payment Legal Help
MINISTRY OF JUSTICE,LEGAL AID AGENCY,27/07/2016,Legal Help,LEGAL AID FUND,LAWRENCE LUPIN SOLICITORS LTD,1023490:144845518,"99,000.00 ",Legal Aid Payment Legal Help
MINISTRY OF JUSTICE,LEGAL AID AGENCY,06/07/2016,Higher Crime,LEGAL AID FUND,BURTON COPELAND LLP,1013123:144634282,"98,602.86 ",Legal Aid Payment Higher Crime
MINISTRY OF JUSTICE,LEGAL AID AGENCY,20/07/2016,Higher Crime,LEGAL AID FUND,BYRNE & PARTNERS LLP,1019602:144756750,"98,602.86 ",Legal Aid Payment Higher Crime
MINISTRY OF JUSTICE,LEGAL AID AGENCY,06/07/2016,Higher Crime,LEGAL AID FUND,TRANTERS CRIMINAL LAW PRACTICE,1013138:144634310,"98,602.86 ",Legal Aid Payment Higher Crime
MINISTRY OF JUSTICE,LEGAL AID AGENCY,27/07/2016,Lower Crime,LEGAL AID FUND,I B B SOLICITORS,1023396:144850434,"98,100.00 ",Legal Aid Payment Lower Crime
MINISTRY OF JUSTICE,LEGAL AID AGENCY,27/07/2016,Legal Help,LEGAL AID FUND,DUNCAN LEWIS,1023481:144845511,"98,000.00 ",Legal Aid Payment Legal Help
MINISTRY OF JUSTICE,LEGAL AID AGENCY,27/07/2016,Legal Help,LEGAL AID FUND,DUNCAN LEWIS,1023482:144845049,"98,000.00 ",Legal Aid Payment Legal Help
MINISTRY OF JUSTICE,LEGAL AID AGENCY,27/07/2016,Legal Help,LEGAL AID FUND,WILSON SOLICITORS LLP,1025355:144844960,"98,000.00 ",Legal Aid Payment Legal Help
MINISTRY OF JUSTICE,LEGAL AID AGENCY,06/07/2016,Higher Crime,LEGAL AID FUND,CREDENCE LAW GROUP,1013085:144614494,"97,631.95 ",Legal Aid Payment Higher Crime
MINISTRY OF JUSTICE,LEGAL AID AGENCY,20/07/2016,Higher Crime,LEGAL AID FUND,BJ & CO SOLICITORS LTD,1020670:144744387,"97,616.83 ",Legal Aid Payment Higher Crime
MINISTRY OF JUSTICE,LEGAL AID AGENCY,27/07/2016,Higher Crime,LEGAL AID FUND,JAMES MURRAY SOLICITORS,1027008:144829444,"97,616.83 ",Legal Aid Payment Higher Crime
MINISTRY OF JUSTICE,LEGAL AID AGENCY,06/07/2016,Higher Crime,LEGAL AID FUND,KAMRANS SOLICITORS,1010221:144655177,"97,616.83 ",Legal Aid Payment Higher Crime
MINISTRY OF JUSTICE,LEGAL AID AGENCY,27/07/2016,Legal Help,LEGAL AID FUND,WILSON SOLICITORS LLP,1025355:144844979,"97,500.00 ",Legal Aid Payment Legal Help
MINISTRY OF JUSTICE,LEGAL AID AGENCY,06/07/2016,Higher Crime,LEGAL AID FUND,DALTON HOLMES GRAY,1010226:144655169,"97,258.75 ",Legal Aid Payment Higher Crime
MINISTRY OF JUSTICE,LEGAL AID AGENCY,27/07/2016,Higher Crime,LEGAL AID FUND,MARCHANT HARRIES,1027452:144830516,"97,258.75 ",Legal Aid Payment Higher Crime
MINISTRY OF JUSTICE,LEGAL AID AGENCY,27/07/2016,Legal Help,LEGAL AID FUND,DUNCAN LEWIS,1023482:144845051,"97,000.00 ",Legal Aid Payment Legal Help
MINISTRY OF JUSTICE,LEGAL AID AGENCY,27/07/2016,Legal Help,LEGAL AID FUND,DUNCAN LEWIS,1023482:144845052,"96,000.00 ",Legal Aid Payment Legal Help
MINISTRY OF JUSTICE,LEGAL AID AGENCY,06/07/2016,Higher Crime,LEGAL AID FUND,COBLEYS LLP,1011704:144634472,"95,707.01 ",Legal Aid Payment Higher Crime
MINISTRY OF JUSTICE,LEGAL AID AGENCY,13/07/2016,Higher Crime,LEGAL AID FUND,LEWIS NEDAS & CO,1014620:144689887,"95,707.01 ",Legal Aid Payment Higher Crime
MINISTRY OF JUSTICE,LEGAL AID AGENCY,27/07/2016,Higher Crime,LEGAL AID FUND,NEWGATE SOLICITORS,1023193:144810043,"95,707.01 ",Legal Aid Payment Higher Crime
MINISTRY OF JUSTICE,LEGAL AID AGENCY,20/07/2016,Higher Crime,LEGAL AID FUND,REEDS SOLICITORS LTD,1021883:144756719,"95,707.01 ",Legal Aid Payment Higher Crime
MINISTRY OF JUSTICE,LEGAL AID AGENCY,20/07/2016,Higher Crime,LEGAL AID FUND,VIRDEES SOLICITORS LTD,1021706:144744510,"93,742.17 ",Legal Aid Payment Higher Crime
MINISTRY OF JUSTICE,LEGAL AID AGENCY,27/07/2016,Lower Crime,LEGAL AID FUND,LESLIE FRANKS SOLICITORS,1026809:144851126,"93,387.00 ",Legal Aid Payment Lower Crime
MINISTRY OF JUSTICE,LEGAL AID AGENCY,27/07/2016,Legal Help,LEGAL AID FUND,CARTWRIGHT KING SOLICITORS,1026912:144849792,"92,568.00 ",Legal Aid Payment Legal Help
MINISTRY OF JUSTICE,LEGAL AID AGENCY,27/07/2016,Legal Help,LEGAL AID FUND,BISON SOLICITORS LTD,1025873:144850257,"92,297.00 ",Legal Aid Payment Legal Help
MINISTRY OF JUSTICE,LEGAL AID AGENCY,27/07/2016,Higher Crime,LEGAL AID FUND,JAMES K PICKUP QC,1024699:144845093,"92,200.00 ",Legal Aid Payment Higher Crime
MINISTRY OF JUSTICE,LEGAL AID AGENCY,20/07/2016,Lower Crime,LEGAL AID FUND,HELEN K L MALCOLM QC,1019446:144737610,"91,996.56 ",Legal Aid Payment Lower Crime
MINISTRY OF JUSTICE,LEGAL AID AGENCY,29/07/2016,Civil Representation,LEGAL AID FUND,KAMILA DEVI[637153],1027597:1000000503460001,"91,995.41 ",Legal Aid Payment Civil Representation
MINISTRY OF JUSTICE,LEGAL AID AGENCY,27/07/2016,Legal Help,LEGAL AID FUND,SCOTT-MONCRIEFF & ASSOCIATES LLP,1023982:144849197,"90,300.00 ",Legal Aid Payment Legal Help
MINISTRY OF JUSTICE,LEGAL AID AGENCY,27/07/2016,Legal Help,LEGAL AID FUND,HOWE & CO,1026960:144825003,"90,000.00 ",Legal Aid Payment Legal Help
MINISTRY OF JUSTICE,LEGAL AID AGENCY,20/07/2016,Higher Crime,LEGAL AID FUND,ASHCOTT SOLICITORS LTD,1021660:144756766,"89,975.11 ",Legal Aid Payment Higher Crime
MINISTRY OF JUSTICE,LEGAL AID AGENCY,06/07/2016,Higher Crime,LEGAL AID FUND,ASHMANS SOLICITORS,1010102:144655315,"89,975.11 ",Legal Aid Payment Higher Crime
MINISTRY OF JUSTICE,LEGAL AID AGENCY,06/07/2016,Higher Crime,LEGAL AID FUND,COODES LLP,1011968:144634479,"89,975.11 ",Legal Aid Payment Higher Crime
MINISTRY OF JUSTICE,LEGAL AID AGENCY,20/07/2016,Higher Crime,LEGAL AID FUND,FARLEYS SOLICITORS LLP,1021929:144744705,"89,975.11 ",Legal Aid Payment Higher Crime
MINISTRY OF JUSTICE,LEGAL AID AGENCY,06/07/2016,Higher Crime,LEGAL AID FUND,GALBRAITH BRANLEY SOLICITORS,1013160:144634469,"89,975.11 ",Legal Aid Payment Higher Crime
MINISTRY OF JUSTICE,LEGAL AID AGENCY,13/07/2016,Higher Crime,LEGAL AID FUND,GRAY & CO SOLICITORS LTD,1016889:144689907,"89,975.11 ",Legal Aid Payment Higher Crime
MINISTRY OF JUSTICE,LEGAL AID AGENCY,20/07/2016,Higher Crime,LEGAL AID FUND,IMRAN KHAN & PARTNERS,1020939:144744715,"89,975.11 ",Legal Aid Payment Higher Crime
MINISTRY OF JUSTICE,LEGAL AID AGENCY,06/07/2016,Higher Crime,LEGAL AID FUND,J D SPICER ZEB,1010770:144655278,"89,975.11 ",Legal Aid Payment Higher Crime
MINISTRY OF JUSTICE,LEGAL AID AGENCY,06/07/2016,Higher Crime,LEGAL AID FUND,JOSEPH DARIOS,1010233:144614342,"89,975.11 ",Legal Aid Payment Higher Crime
MINISTRY OF JUSTICE,LEGAL AID AGENCY,13/07/2016,Higher Crime,LEGAL AID FUND,JVA LAW,1015296:144689904,"89,975.11 ",Legal Aid Payment Higher Crime
MINISTRY OF JUSTICE,LEGAL AID AGENCY,06/07/2016,Higher Crime,LEGAL AID FUND,LLOYDS PR SOLICITORS,1012931:144634378,"89,975.11 ",Legal Aid Payment Higher Crime
MINISTRY OF JUSTICE,LEGAL AID AGENCY,13/07/2016,Higher Crime,LEGAL AID FUND,M & N SOLICITORS,1015374:144689898,"89,975.11 ",Legal Aid Payment Higher Crime
MINISTRY OF JUSTICE,LEGAL AID AGENCY,20/07/2016,Higher Crime,LEGAL AID FUND,ROBERT LIZAR,1020842:144756738,"89,975.11 ",Legal Aid Payment Higher Crime
MINISTRY OF JUSTICE,LEGAL AID AGENCY,13/07/2016,Higher Crime,LEGAL AID FUND,SKR LEGAL SOLICITORS,1016225:144719314,"89,975.11 ",Legal Aid Payment Higher Crime
MINISTRY OF JUSTICE,LEGAL AID AGENCY,06/07/2016,Higher Crime,LEGAL AID FUND,SMITHS SOLICITORS,1011548:144634471,"89,975.11 ",Legal Aid Payment Higher Crime
MINISTRY OF JUSTICE,LEGAL AID AGENCY,20/07/2016,Higher Crime,LEGAL AID FUND,TRINITY ADVOCATES,1020523:144785838,"89,975.11 ",Legal Aid Payment Higher Crime
MINISTRY OF JUSTICE,LEGAL AID AGENCY,27/07/2016,Legal Help,LEGAL AID FUND,BARNES HARRILD & DYER,1025659:144849632,"89,353.00 ",Legal Aid Payment Legal Help
MINISTRY OF JUSTICE,LEGAL AID AGENCY,27/07/2016,Higher Crime,LEGAL AID FUND,PATTICHI HILL & CROQUES LTD,1027054:144810060,"88,510.01 ",Legal Aid Payment Higher Crime
MINISTRY OF JUSTICE,LEGAL AID AGENCY,13/07/2016,Higher Crime,LEGAL AID FUND,WALKERS SOLICITORS LIMITED,1017513:144690059,"87,631.15 ",Legal Aid Payment Higher Crime
MINISTRY OF JUSTICE,LEGAL AID AGENCY,27/07/2016,Lower Crime,LEGAL AID FUND,HODGE JONES & ALLEN LLP,1023909:144851123,"87,441.00 ",Legal Aid Payment Lower Crime
MINISTRY OF JUSTICE,LEGAL AID AGENCY,13/07/2016,Higher Crime,LEGAL AID FUND,KAYDERS SOLICITORS,1014463:144690075,"86,424.03 ",Legal Aid Payment Higher Crime
MINISTRY OF JUSTICE,LEGAL AID AGENCY,06/07/2016,Higher Crime,LEGAL AID FUND,KRISTINA HARRISON SOLICITORS,1013353:144634397,"85,346.90 ",Legal Aid Payment Higher Crime
MINISTRY OF JUSTICE,LEGAL AID AGENCY,27/07/2016,Lower Crime,LEGAL AID FUND,LAWTONS SOLICITORS LTD,1026734:144850849,"85,000.00 ",Legal Aid Payment Lower Crime
MINISTRY OF JUSTICE,LEGAL AID AGENCY,27/07/2016,Lower Crime,LEGAL AID FUND,PURCELL PARKER LTD,1025313:144850805,"85,000.00 ",Legal Aid Payment Lower Crime
MINISTRY OF JUSTICE,LEGAL AID AGENCY,06/07/2016,Higher Crime,LEGAL AID FUND,MACLAVERTY COOPER ATKINS,1013307:144634244,"84,602.35 ",Legal Aid Payment Higher Crime
MINISTRY OF JUSTICE,LEGAL AID AGENCY,06/07/2016,Higher Crime,LEGAL AID FUND,NOBLE SOLICITORS,1013127:144663350,"84,596.78 ",Legal Aid Payment Higher Crime
MINISTRY OF JUSTICE,LEGAL AID AGENCY,20/07/2016,Lower Crime,LEGAL AID FUND,IAIN EDWARDS,1021405:144793586,"84,011.88 ",Legal Aid Payment Lower Crime
MINISTRY OF JUSTICE,LEGAL AID AGENCY,27/07/2016,Lower Crime,LEGAL AID FUND,T V EDWARDS LLP,1025583:144850455,"83,700.00 ",Legal Aid Payment Lower Crime
MINISTRY OF JUSTICE,LEGAL AID AGENCY,27/07/2016,Lower Crime,LEGAL AID FUND,MCGANNS LAW LTD,1023451:144850975,"83,426.00 ",Legal Aid Payment Lower Crime
MINISTRY OF JUSTICE,LEGAL AID AGENCY,20/07/2016,Higher Crime,LEGAL AID FUND,CARTWRIGHT KING SOLICITORS,1020971:144744403,"81,347.36 ",Legal Aid Payment Higher Crime
MINISTRY OF JUSTICE,LEGAL AID AGENCY,20/07/2016,Higher Crime,LEGAL AID FUND,GARTSIDES,1018808:144744679,"81,347.36 ",Legal Aid Payment Higher Crime
MINISTRY OF JUSTICE,LEGAL AID AGENCY,20/07/2016,Higher Crime,LEGAL AID FUND,I B B SOLICITORS,1021790:144744375,"81,347.36 ",Legal Aid Payment Higher Crime
MINISTRY OF JUSTICE,LEGAL AID AGENCY,06/07/2016,Higher Crime,LEGAL AID FUND,JOSEPH HILL & CO,1010315:144655189,"81,347.36 ",Legal Aid Payment Higher Crime
MINISTRY OF JUSTICE,LEGAL AID AGENCY,20/07/2016,Higher Crime,LEGAL AID FUND,KELLYS,1018786:144744339,"81,347.36 ",Legal Aid Payment Higher Crime
MINISTRY OF JUSTICE,LEGAL AID AGENCY,06/07/2016,Higher Crime,LEGAL AID FUND,MIDDLEWEEKS LEGAL LTD,1013352:144634376,"81,347.36 ",Legal Aid Payment Higher Crime
MINISTRY OF JUSTICE,LEGAL AID AGENCY,06/07/2016,Higher Crime,LEGAL AID FUND,"MOSS & CO, SOLICITORS",1013407:144655312,"81,347.36 ",Legal Aid Payment Higher Crime
MINISTRY OF JUSTICE,LEGAL AID AGENCY,06/07/2016,Higher Crime,LEGAL AID FUND,MURRAYS PARTNERSHIP,1011845:144615437,"81,347.36 ",Legal Aid Payment Higher Crime
MINISTRY OF JUSTICE,LEGAL AID AGENCY,06/07/2016,Higher Crime,LEGAL AID FUND,NEUMANS LLP,1010183:144634365,"81,347.36 ",Legal Aid Payment Higher Crime
MINISTRY OF JUSTICE,LEGAL AID AGENCY,06/07/2016,Higher Crime,LEGAL AID FUND,NEWTON LAW PRACTICE,1011586:144634510,"81,347.36 ",Legal Aid Payment Higher Crime
MINISTRY OF JUSTICE,LEGAL AID AGENCY,06/07/2016,Higher Crime,LEGAL AID FUND,RH LAW LLP,1010498:144614452,"81,347.36 ",Legal Aid Payment Higher Crime
MINISTRY OF JUSTICE,LEGAL AID AGENCY,06/07/2016,Higher Crime,LEGAL AID FUND,WATSON WOODHOUSE SOLICITORS LLP,1011859:144634395,"81,347.36 ",Legal Aid Payment Higher Crime
MINISTRY OF JUSTICE,LEGAL AID AGENCY,20/07/2016,Higher Crime,LEGAL AID FUND,OWEN WHITE & CATLIN,1020962:144756697,"81,155.77 ",Legal Aid Payment Higher Crime
MINISTRY OF JUSTICE,LEGAL AID AGENCY,27/07/2016,Lower Crime,LEGAL AID FUND,SONN MACMILLAN WALKER LTD,1024000:144850397,"81,100.00 ",Legal Aid Payment Lower Crime
MINISTRY OF JUSTICE,LEGAL AID AGENCY,27/07/2016,Lower Crime,LEGAL AID FUND,TUCKERS SOLICITORS LLP,1025579:144850669,"80,900.00 ",Legal Aid Payment Lower Crime
MINISTRY OF JUSTICE,LEGAL AID AGENCY,27/07/2016,Lower Crime,LEGAL AID FUND,ABV SOLICITORS,1023426:144850437,"80,800.00 ",Legal Aid Payment Lower Crime
MINISTRY OF JUSTICE,LEGAL AID AGENCY,06/07/2016,Higher Crime,LEGAL AID FUND,BARRETT & NELLIGAN SOLICITORS LTD,1011848:144634241,"80,792.39 ",Legal Aid Payment Higher Crime
MINISTRY OF JUSTICE,LEGAL AID AGENCY,27/07/2016,Lower Crime,LEGAL AID FUND,WELLS BURCOMBE LLP,1025120:144851001,"80,587.00 ",Legal Aid Payment Lower Crime
MINISTRY OF JUSTICE,LEGAL AID AGENCY,13/07/2016,Higher Crime,LEGAL AID FUND,HANSON YOUNG & CO SOLICITORS,1015320:144702106,"79,072.66 ",Legal Aid Payment Higher Crime
MINISTRY OF JUSTICE,LEGAL AID AGENCY,27/07/2016,Legal Help,LEGAL AID FUND,LAWANA & CO,1023326:144849173,"79,000.00 ",Legal Aid Payment Legal Help
MINISTRY OF JUSTICE,LEGAL AID AGENCY,13/07/2016,Higher Crime,LEGAL AID FUND,HUTTON'S SOLICITORS LLP,1014678:144690056,"78,227.23 ",Legal Aid Payment Higher Crime
MINISTRY OF JUSTICE,LEGAL AID AGENCY,20/07/2016,Higher Crime,LEGAL AID FUND,SONAL DASHANI,1020183:144792243,"77,350.48 ",Legal Aid Payment Higher Crime
MINISTRY OF JUSTICE,LEGAL AID AGENCY,20/07/2016,Higher Crime,LEGAL AID FUND,ANN L COTCHER QC,1021357:144757187,"76,664.24 ",Legal Aid Payment Higher Crime
MINISTRY OF JUSTICE,LEGAL AID AGENCY,27/07/2016,Lower Crime,LEGAL AID FUND,HINE SOLICITORS,1025082:144851623,"75,985.00 ",Legal Aid Payment Lower Crime
MINISTRY OF JUSTICE,LEGAL AID AGENCY,27/07/2016,Legal Help,LEGAL AID FUND,GLEDHILL SOLICITORS,1025759:144849410,"75,714.00 ",Legal Aid Payment Legal Help
MINISTRY OF JUSTICE,LEGAL AID AGENCY,27/07/2016,Legal Help,LEGAL AID FUND,QUALITY SOLICITORS CMHT,1025608:144849381,"75,193.00 ",Legal Aid Payment Legal Help
MINISTRY OF JUSTICE,LEGAL AID AGENCY,27/07/2016,Higher Crime,LEGAL AID FUND,BRENDAN D KELLY,1022947:144829736,"74,677.04 ",Legal Aid Payment Higher Crime
MINISTRY OF JUSTICE,LEGAL AID AGENCY,20/07/2016,Higher Crime,LEGAL AID FUND,CUNNINGHAMS LYTHGOE CAPLIN LTD,1018623:144732597,"74,057.50 ",Legal Aid Payment Higher Crime
MINISTRY OF JUSTICE,LEGAL AID AGENCY,13/07/2016,Higher Crime,LEGAL AID FUND,DUNCAN LEWIS,1014473:144679108,"74,009.31 ",Legal Aid Payment Higher Crime
MINISTRY OF JUSTICE,LEGAL AID AGENCY,27/07/2016,Lower Crime,LEGAL AID FUND,HENRY'S SOLICITORS LTD,1025286:144850678,"73,900.00 ",Legal Aid Payment Lower Crime
MINISTRY OF JUSTICE,LEGAL AID AGENCY,20/07/2016,Higher Crime,LEGAL AID FUND,EBR ATTRIDGE LLP,1018504:144743977,"73,478.82 ",Legal Aid Payment Higher Crime
MINISTRY OF JUSTICE,LEGAL AID AGENCY,27/07/2016,Legal Help,LEGAL AID FUND,GUILE NICHOLAS-INC DONALD GALBRAITH & CO,1026869:144849191,"73,400.00 ",Legal Aid Payment Legal Help
MINISTRY OF JUSTICE,LEGAL AID AGENCY,20/07/2016,Higher Crime,LEGAL AID FUND,ADL SOLICITORS,1018536:144744617,"72,935.54 ",Legal Aid Payment Higher Crime
MINISTRY OF JUSTICE,LEGAL AID AGENCY,27/07/2016,Higher Crime,LEGAL AID FUND,QUALITYSOLICITORS HPJV,1025627:144830511,"72,652.99 ",Legal Aid Payment Higher Crime
MINISTRY OF JUSTICE,LEGAL AID AGENCY,13/07/2016,Lower Crime,LEGAL AID FUND,NIGEL WELLER & CO,1016393:144726045,"72,507.66 ",Legal Aid Payment Lower Crime
MINISTRY OF JUSTICE,LEGAL AID AGENCY,06/07/2016,Higher Crime,LEGAL AID FUND,RH LAW LLP,1010498:144634520,"72,372.67 ",Legal Aid Payment Higher Crime
MINISTRY OF JUSTICE,LEGAL AID AGENCY,06/07/2016,Higher Crime,LEGAL AID FUND,DASS SOLICITORS,1011621:144634265,"72,117.06 ",Legal Aid Payment Higher Crime
MINISTRY OF JUSTICE,LEGAL AID AGENCY,06/07/2016,Higher Crime,LEGAL AID FUND,DERMOT KEATING,1012209:144655398,"72,040.32 ",Legal Aid Payment Higher Crime
MINISTRY OF JUSTICE,LEGAL AID AGENCY,13/07/2016,Higher Crime,LEGAL AID FUND,DORIAN LOVELL-PANK QC,1016730:144690456,"71,592.06 ",Legal Aid Payment Higher Crime
MINISTRY OF JUSTICE,LEGAL AID AGENCY,13/07/2016,Higher Crime,LEGAL AID FUND,KANGS SOLICITORS,1015625:144701970,"71,545.90 ",Legal Aid Payment Higher Crime
MINISTRY OF JUSTICE,LEGAL AID AGENCY,06/07/2016,Higher Crime,LEGAL AID FUND,M & M SOLICITORS [1V721Z],1010158:144625560,"71,545.90 ",Legal Aid Payment Higher Crime
MINISTRY OF JUSTICE,LEGAL AID AGENCY,13/07/2016,Higher Crime,LEGAL AID FUND,WATKINS & GUNN,1015575:144689977,"71,545.90 ",Legal Aid Payment Higher Crime
MINISTRY OF JUSTICE,LEGAL AID AGENCY,27/07/2016,Civil Representation,LEGAL AID FUND,DUNCAN LEWIS,1023481:144862607,"71,415.75 ",Legal Aid Payment Civil Representation
MINISTRY OF JUSTICE,LEGAL AID AGENCY,27/07/2016,Legal Help,LEGAL AID FUND,DUNCAN LEWIS,1023481:144845512,"71,400.00 ",Legal Aid Payment Legal Help
MINISTRY OF JUSTICE,LEGAL AID AGENCY,20/07/2016,Higher Crime,LEGAL AID FUND,BEN HOARE BELL LLP,1017976:144744861,"70,931.09 ",Legal Aid Payment Higher Crime
MINISTRY OF JUSTICE,LEGAL AID AGENCY,20/07/2016,Higher Crime,LEGAL AID FUND,L P EVANS SOLICITORS,1020554:144744719,"70,895.55 ",Legal Aid Payment Higher Crime
MINISTRY OF JUSTICE,LEGAL AID AGENCY,06/07/2016,Higher Crime,LEGAL AID FUND,EBR ATTRIDGE LLP,1011632:144624797,"69,960.96 ",Legal Aid Payment Higher Crime
MINISTRY OF JUSTICE,LEGAL AID AGENCY,27/07/2016,Lower Crime,LEGAL AID FUND,WELLS BURCOMBE LLP,1023215:144851631,"69,345.00 ",Legal Aid Payment Lower Crime
MINISTRY OF JUSTICE,LEGAL AID AGENCY,06/07/2016,Civil Representation,LEGAL AID FUND,ISON HARRISON LTD,1013054:144578126,"69,329.43 ",Legal Aid Payment Civil Representation
MINISTRY OF JUSTICE,LEGAL AID AGENCY,27/07/2016,Lower Crime,LEGAL AID FUND,FMW LAW LTD,1025670:144850392,"69,300.00 ",Legal Aid Payment Lower Crime
MINISTRY OF JUSTICE,LEGAL AID AGENCY,13/07/2016,Higher Crime,LEGAL AID FUND,WOODS SOLICITORS,1017369:144690062,"69,251.58 ",Legal Aid Payment Higher Crime
MINISTRY OF JUSTICE,LEGAL AID AGENCY,27/07/2016,Higher Crime,LEGAL AID FUND,ANTHONY R BARRACLOUGH,1026361:144845413,"69,200.00 ",Legal Aid Payment Higher Crime
MINISTRY OF JUSTICE,LEGAL AID AGENCY,27/07/2016,Higher Crime,LEGAL AID FUND,BERNADETTE BAXTER,1024700:144845096,"69,200.00 ",Legal Aid Payment Higher Crime
MINISTRY OF JUSTICE,LEGAL AID AGENCY,06/07/2016,Higher Crime,LEGAL AID FUND,CUNNINGHAMS LYTHGOE CAPLIN LTD,1010216:144634348,"69,040.85 ",Legal Aid Payment Higher Crime
MINISTRY OF JUSTICE,LEGAL AID AGENCY,20/07/2016,Higher Crime,LEGAL AID FUND,BLACKFORDS LLP,1022031:144738307,"68,932.05 ",Legal Aid Payment Higher Crime
MINISTRY OF JUSTICE,LEGAL AID AGENCY,06/07/2016,Higher Crime,LEGAL AID FUND,NEUMANS LLP,1010183:144653793,"68,672.31 ",Legal Aid Payment Higher Crime
MINISTRY OF JUSTICE,LEGAL AID AGENCY,06/07/2016,Higher Crime,LEGAL AID FUND,CUNNINGHAMS LYTHGOE CAPLIN LTD,1010216:144655302,"68,560.95 ",Legal Aid Payment Higher Crime
MINISTRY OF JUSTICE,LEGAL AID AGENCY,06/07/2016,Higher Crime,LEGAL AID FUND,FAVELL SMITH & LAWSON,1011757:144625606,"68,560.95 ",Legal Aid Payment Higher Crime
MINISTRY OF JUSTICE,LEGAL AID AGENCY,06/07/2016,Higher Crime,LEGAL AID FUND,MARK JONES & PARTNERS,1011634:144625614,"68,560.95 ",Legal Aid Payment Higher Crime
MINISTRY OF JUSTICE,LEGAL AID AGENCY,20/07/2016,Higher Crime,LEGAL AID FUND,MSB LAW LLP,1020867:144744329,"68,560.95 ",Legal Aid Payment Higher Crime
MINISTRY OF JUSTICE,LEGAL AID AGENCY,13/07/2016,Civil Representation,LEGAL AID FUND,JOHN C R TUGHAN,1014917:141871029,"68,022.00 ",Legal Aid Payment Civil Representation
MINISTRY OF JUSTICE,LEGAL AID AGENCY,27/07/2016,Higher Crime,LEGAL AID FUND,BALBIR SINGH,1026295:144844959,"68,001.20 ",Legal Aid Payment Higher Crime
MINISTRY OF JUSTICE,LEGAL AID AGENCY,27/07/2016,Lower Crime,LEGAL AID FUND,G T STEWART SOLICITORS,1025202:144851141,"67,573.00 ",Legal Aid Payment Lower Crime
MINISTRY OF JUSTICE,LEGAL AID AGENCY,27/07/2016,Lower Crime,LEGAL AID FUND,BHATIA BEST LTD,1025437:144850311,"67,000.00 ",Legal Aid Payment Lower Crime
MINISTRY OF JUSTICE,LEGAL AID AGENCY,27/07/2016,Lower Crime,LEGAL AID FUND,DUNCAN LEWIS,1023482:144851106,"66,632.00 ",Legal Aid Payment Lower Crime
MINISTRY OF JUSTICE,LEGAL AID AGENCY,27/07/2016,Lower Crime,LEGAL AID FUND,VHS FLETCHERS,1027115:144850331,"66,500.00 ",Legal Aid Payment Lower Crime
MINISTRY OF JUSTICE,LEGAL AID AGENCY,20/07/2016,Higher Crime,LEGAL AID FUND,MANN & CO SOLICITORS,1019635:144786556,"66,181.97 ",Legal Aid Payment Higher Crime
MINISTRY OF JUSTICE,LEGAL AID AGENCY,06/07/2016,Higher Crime,LEGAL AID FUND,DUNCAN LEWIS,1011648:144655197,"66,154.57 ",Legal Aid Payment Higher Crime
MINISTRY OF JUSTICE,LEGAL AID AGENCY,06/07/2016,Higher Crime,LEGAL AID FUND,FARADAYS SOLICITORS LTD,1010276:144625542,"65,740.86 ",Legal Aid Payment Higher Crime
MINISTRY OF JUSTICE,LEGAL AID AGENCY,27/07/2016,Lower Crime,LEGAL AID FUND,QS JACKSON CANTER LTD,1026141:144851740,"65,605.00 ",Legal Aid Payment Lower Crime
MINISTRY OF JUSTICE,LEGAL AID AGENCY,20/07/2016,Higher Crime,LEGAL AID FUND,BLACKFORDS LLP,1022031:144732667,"65,378.40 ",Legal Aid Payment Higher Crime
MINISTRY OF JUSTICE,LEGAL AID AGENCY,13/07/2016,Higher Crime,LEGAL AID FUND,M & M SOLICITORS [1V721Z],1017323:144667082,"65,378.40 ",Legal Aid Payment Higher Crime
MINISTRY OF JUSTICE,LEGAL AID AGENCY,20/07/2016,Higher Crime,LEGAL AID FUND,NOBLE SOLICITORS,1018593:144755771,"65,378.40 ",Legal Aid Payment Higher Crime
MINISTRY OF JUSTICE,LEGAL AID AGENCY,27/07/2016,Lower Crime,LEGAL AID FUND,S A LAW CHAMBERS SOLICITORS,1025244:144850402,"65,000.00 ",Legal Aid Payment Lower Crime
MINISTRY OF JUSTICE,LEGAL AID AGENCY,20/07/2016,Higher Crime,LEGAL AID FUND,SMITH PARTNERSHIP,1021815:144767346,"64,458.02 ",Legal Aid Payment Higher Crime
MINISTRY OF JUSTICE,LEGAL AID AGENCY,06/07/2016,Higher Crime,LEGAL AID FUND,MURRAYS SOLICITORS LTD,1011546:144615379,"64,231.92 ",Legal Aid Payment Higher Crime
MINISTRY OF JUSTICE,LEGAL AID AGENCY,06/07/2016,Higher Crime,LEGAL AID FUND,CARLTON PLACE LAW,1011701:144634271,"64,102.42 ",Legal Aid Payment Higher Crime
MINISTRY OF JUSTICE,LEGAL AID AGENCY,13/07/2016,Higher Crime,LEGAL AID FUND,BARK & CO,1017532:144682496,"63,713.02 ",Legal Aid Payment Higher Crime
MINISTRY OF JUSTICE,LEGAL AID AGENCY,06/07/2016,Higher Crime,LEGAL AID FUND,HOGAN BROWN SOLICITORS,1010190:144634481,"63,626.01 ",Legal Aid Payment Higher Crime
MINISTRY OF JUSTICE,LEGAL AID AGENCY,06/07/2016,Higher Crime,LEGAL AID FUND,KARIM & CO SOLICITORS,1010302:144653733,"63,257.34 ",Legal Aid Payment Higher Crime
MINISTRY OF JUSTICE,LEGAL AID AGENCY,06/07/2016,Higher Crime,LEGAL AID FUND,ERIC ROBINSON SOLICITORS,1010561:144653746,"63,190.33 ",Legal Aid Payment Higher Crime
MINISTRY OF JUSTICE,LEGAL AID AGENCY,27/07/2016,Legal Help,LEGAL AID FUND,AASKELLS SOLICITORS & ADVOCATES,1023973:144849643,"62,792.00 ",Legal Aid Payment Legal Help
MINISTRY OF JUSTICE,LEGAL AID AGENCY,27/07/2016,Lower Crime,LEGAL AID FUND,KIRWANS,1027011:144851165,"62,227.00 ",Legal Aid Payment Lower Crime
MINISTRY OF JUSTICE,LEGAL AID AGENCY,27/07/2016,Lower Crime,LEGAL AID FUND,MCMILLAN WILLIAMS SOLICITORS LTD,1025662:144850431,"62,200.00 ",Legal Aid Payment Lower Crime
MINISTRY OF JUSTICE,LEGAL AID AGENCY,06/07/2016,Higher Crime,LEGAL AID FUND,KHAN SOLICITORS LTD,1010383:144655207,"61,932.56 ",Legal Aid Payment Higher Crime
MINISTRY OF JUSTICE,LEGAL AID AGENCY,27/07/2016,Lower Crime,LEGAL AID FUND,TAYLOR STREET SOLICITORS LLP,1027207:144850694,"61,700.00 ",Legal Aid Payment Lower Crime
MINISTRY OF JUSTICE,LEGAL AID AGENCY,20/07/2016,Lower Crime,LEGAL AID FUND,MARK WEEKES,1019366:144737619,"61,659.36 ",Legal Aid Payment Lower Crime
MINISTRY OF JUSTICE,LEGAL AID AGENCY,13/07/2016,Higher Crime,LEGAL AID FUND,SIMON CSOKA,1017143:144720369,"61,462.50 ",Legal Aid Payment Higher Crime
MINISTRY OF JUSTICE,LEGAL AID AGENCY,20/07/2016,Higher Crime,LEGAL AID FUND,TIMOTHY W H RAGGATT QC,1019398:144731804,"61,309.09 ",Legal Aid Payment Higher Crime
MINISTRY OF JUSTICE,LEGAL AID AGENCY,20/07/2016,Legal Help,LEGAL AID FUND,SIMPSON MILLAR SOLICITORS LLP,1021715:144794262,"61,288.62 ",Legal Aid Payment Legal Help
MINISTRY OF JUSTICE,LEGAL AID AGENCY,06/07/2016,Higher Crime,LEGAL AID FUND,DJMS SOLICITORS LTD,1010172:144654748,"60,932.74 ",Legal Aid Payment Higher Crime
MINISTRY OF JUSTICE,LEGAL AID AGENCY,13/07/2016,Higher Crime,LEGAL AID FUND,COBAINS SOLICITORS,1015388:144700591,"60,870.79 ",Legal Aid Payment Higher Crime
MINISTRY OF JUSTICE,LEGAL AID AGENCY,20/07/2016,Higher Crime,LEGAL AID FUND,HARRIS PALEY SCHONE LTD,1018600:144744325,"60,809.87 ",Legal Aid Payment Higher Crime
MINISTRY OF JUSTICE,LEGAL AID AGENCY,13/07/2016,Higher Crime,LEGAL AID FUND,IRVINE THANVI NATAS SOLICITORS,1016322:144666509,"60,685.66 ",Legal Aid Payment Higher Crime
MINISTRY OF JUSTICE,LEGAL AID AGENCY,27/07/2016,Lower Crime,LEGAL AID FUND,KAIM TODNER SOLICITORS LIMITED,1025721:144851068,"60,396.00 ",Legal Aid Payment Lower Crime
MINISTRY OF JUSTICE,LEGAL AID AGENCY,13/07/2016,Higher Crime,LEGAL AID FUND,ANTHONY E ORCHARD,1015032:144690474,"60,389.57 ",Legal Aid Payment Higher Crime
MINISTRY OF JUSTICE,LEGAL AID AGENCY,06/07/2016,Higher Crime,LEGAL AID FUND,CARTWRIGHT KING SOLICITORS,1010636:144603462,"60,272.36 ",Legal Aid Payment Higher Crime
MINISTRY OF JUSTICE,LEGAL AID AGENCY,27/07/2016,Lower Crime,LEGAL AID FUND,BLACKFORDS LLP,1025688:144851073,"60,098.00 ",Legal Aid Payment Lower Crime
MINISTRY OF JUSTICE,LEGAL AID AGENCY,27/07/2016,Lower Crime,LEGAL AID FUND,J D SOLICITORS,1026788:144851590,"60,088.00 ",Legal Aid Payment Lower Crime
MINISTRY OF JUSTICE,LEGAL AID AGENCY,13/07/2016,Higher Crime,LEGAL AID FUND,ABBEY SOLICITORS,1017325:144701963,"59,447.30 ",Legal Aid Payment Higher Crime
MINISTRY OF JUSTICE,LEGAL AID AGENCY,27/07/2016,Legal Help,LEGAL AID FUND,DUNCAN LEWIS,1024096:144849354,"59,300.00 ",Legal Aid Payment Legal Help
MINISTRY OF JUSTICE,LEGAL AID AGENCY,27/07/2016,Legal Help,LEGAL AID FUND,PETER EDWARDS LAW LTD,1023518:144849166,"59,200.00 ",Legal Aid Payment Legal Help
MINISTRY OF JUSTICE,LEGAL AID AGENCY,27/07/2016,Higher Crime,LEGAL AID FUND,DASS SOLICITORS,1023297:144862513,"58,873.73 ",Legal Aid Payment Higher Crime
MINISTRY OF JUSTICE,LEGAL AID AGENCY,06/07/2016,Higher Crime,LEGAL AID FUND,KARIM & CO SOLICITORS,1010302:144634514,"58,860.26 ",Legal Aid Payment Higher Crime
MINISTRY OF JUSTICE,LEGAL AID AGENCY,06/07/2016,Higher Crime,LEGAL AID FUND,VIRDEES SOLICITORS LTD,1011453:144614588,"58,713.09 ",Legal Aid Payment Higher Crime
MINISTRY OF JUSTICE,LEGAL AID AGENCY,27/07/2016,Lower Crime,LEGAL AID FUND,H P GOWER SOLICITORS,1026743:144851665,"58,541.00 ",Legal Aid Payment Lower Crime
MINISTRY OF JUSTICE,LEGAL AID AGENCY,27/07/2016,Higher Crime,LEGAL AID FUND,TIMOTHY J MOLONEY QC,1023114:144810251,"58,039.97 ",Legal Aid Payment Higher Crime
MINISTRY OF JUSTICE,LEGAL AID AGENCY,13/07/2016,Higher Crime,LEGAL AID FUND,RASHID & CO,1015437:144701953,"57,517.74 ",Legal Aid Payment Higher Crime
MINISTRY OF JUSTICE,LEGAL AID AGENCY,27/07/2016,Higher Crime,LEGAL AID FUND,TRANTERS CRIMINAL LAW PRACTICE-ADVOCATE,1022679:144797831,"57,438.72 ",Legal Aid Payment Higher Crime
MINISTRY OF JUSTICE,LEGAL AID AGENCY,27/07/2016,Higher Crime,LEGAL AID FUND,HSR SOLICITORS,1026813:144852832,"57,392.95 ",Legal Aid Payment Higher Crime
MINISTRY OF JUSTICE,LEGAL AID AGENCY,20/07/2016,Higher Crime,LEGAL AID FUND,CHARLES I SHERRARD,1020366:144731719,"56,857.33 ",Legal Aid Payment Higher Crime
MINISTRY OF JUSTICE,LEGAL AID AGENCY,27/07/2016,Legal Help,LEGAL AID FUND,SWITALSKI'S SOLICITORS LTD,1023704:144849570,"56,780.00 ",Legal Aid Payment Legal Help
MINISTRY OF JUSTICE,LEGAL AID AGENCY,27/07/2016,Higher Crime,LEGAL AID FUND,VESEY SOLICITORS,1023294:144829422,"56,494.44 ",Legal Aid Payment Higher Crime
MINISTRY OF JUSTICE,LEGAL AID AGENCY,27/07/2016,Lower Crime,LEGAL AID FUND,SJ LAW SOLICITORS,1025371:144851094,"56,424.00 ",Legal Aid Payment Lower Crime
MINISTRY OF JUSTICE,LEGAL AID AGENCY,27/07/2016,Civil Representation,LEGAL AID FUND,PHILCOX GRAY & CO,1024012:144812268,"55,930.39 ",Legal Aid Payment Civil Representation
MINISTRY OF JUSTICE,LEGAL AID AGENCY,27/07/2016,Legal Help,LEGAL AID FUND,PARKER RHODES HICKMOTTS,1023691:144849555,"55,807.00 ",Legal Aid Payment Legal Help
MINISTRY OF JUSTICE,LEGAL AID AGENCY,27/07/2016,Higher Crime,LEGAL AID FUND,TRACY J AYLING QC,1026268:144829870,"55,806.56 ",Legal Aid Payment Higher Crime
MINISTRY OF JUSTICE,LEGAL AID AGENCY,27/07/2016,Legal Help,LEGAL AID FUND,ABBOTSTONE LAW LLP,1025798:144850260,"55,771.00 ",Legal Aid Payment Legal Help
MINISTRY OF JUSTICE,LEGAL AID AGENCY,20/07/2016,Higher Crime,LEGAL AID FUND,JOE STONE,1018185:144732824,"55,706.81 ",Legal Aid Payment Higher Crime
MINISTRY OF JUSTICE,LEGAL AID AGENCY,13/07/2016,Higher Crime,LEGAL AID FUND,SALHAN & CO LTD,1015414:144666120,"55,624.87 ",Legal Aid Payment Higher Crime
MINISTRY OF JUSTICE,LEGAL AID AGENCY,27/07/2016,Lower Crime,LEGAL AID FUND,MARTIN MURRAY & ASSOCIATES,1023988:144851078,"55,446.00 ",Legal Aid Payment Lower Crime
MINISTRY OF JUSTICE,LEGAL AID AGENCY,06/07/2016,Higher Crime,LEGAL AID FUND,ROBERT A P WOODCOCK QC,1011205:144654649,"55,342.16 ",Legal Aid Payment Higher Crime
MINISTRY OF JUSTICE,LEGAL AID AGENCY,06/07/2016,Higher Crime,LEGAL AID FUND,ROW & SCOTT LTD,1013188:144655276,"55,246.09 ",Legal Aid Payment Higher Crime
MINISTRY OF JUSTICE,LEGAL AID AGENCY,27/07/2016,Lower Crime,LEGAL AID FUND,USMANI KING LTD,1025249:144851006,"55,173.00 ",Legal Aid Payment Lower Crime
MINISTRY OF JUSTICE,LEGAL AID AGENCY,13/07/2016,Higher Crime,LEGAL AID FUND,ANDREW D LANGDON,1017085:144720190,"55,009.61 ",Legal Aid Payment Higher Crime
MINISTRY OF JUSTICE,LEGAL AID AGENCY,20/07/2016,Higher Crime,LEGAL AID FUND,KERIM FUAD QC,1018305:144745089,"55,009.61 ",Legal Aid Payment Higher Crime
MINISTRY OF JUSTICE,LEGAL AID AGENCY,27/07/2016,Lower Crime,LEGAL AID FUND,STERNBERG REED SOLICITORS,1025165:144850456,"55,000.00 ",Legal Aid Payment Lower Crime
MINISTRY OF JUSTICE,LEGAL AID AGENCY,27/07/2016,Lower Crime,LEGAL AID FUND,LANSBURY WORTHINGTON,1025582:144850393,"54,900.00 ",Legal Aid Payment Lower Crime
MINISTRY OF JUSTICE,LEGAL AID AGENCY,13/07/2016,Higher Crime,LEGAL AID FUND,WOODS SOLICITORS,1017369:144720440,"54,740.33 ",Legal Aid Payment Higher Crime
MINISTRY OF JUSTICE,LEGAL AID AGENCY,27/07/2016,Legal Help,LEGAL AID FUND,MTG SOLICITORS,1026905:144849186,"54,500.00 ",Legal Aid Payment Legal Help
MINISTRY OF JUSTICE,LEGAL AID AGENCY,27/07/2016,Lower Crime,LEGAL AID FUND,BIRDS SOLICITORS LTD,1023469:144850421,"54,000.00 ",Legal Aid Payment Lower Crime
MINISTRY OF JUSTICE,LEGAL AID AGENCY,13/07/2016,Civil Representation,LEGAL AID FUND,PAUL M STOREY QC,1013990:3000000504360028,"54,000.00 ",Legal Aid Payment Civil Representation
MINISTRY OF JUSTICE,LEGAL AID AGENCY,13/07/2016,Higher Crime,LEGAL AID FUND,UK LAW,1016260:144678097,"53,952.62 ",Legal Aid Payment Higher Crime
MINISTRY OF JUSTICE,LEGAL AID AGENCY,27/07/2016,Higher Crime,LEGAL AID FUND,PAUL M MENDELLE QC,1023171:144809802,"53,834.81 ",Legal Aid Payment Higher Crime
MINISTRY OF JUSTICE,LEGAL AID AGENCY,27/07/2016,Higher Crime,LEGAL AID FUND,MARK M GEORGE QC,1026394:144830025,"53,702.96 ",Legal Aid Payment Higher Crime
MINISTRY OF JUSTICE,LEGAL AID AGENCY,20/07/2016,Higher Crime,LEGAL AID FUND,JOHN J COFFEY QC,1021424:144767612,"53,698.82 ",Legal Aid Payment Higher Crime
MINISTRY OF JUSTICE,LEGAL AID AGENCY,27/07/2016,Legal Help,LEGAL AID FUND,M H LEGAL,1023408:144849298,"53,500.00 ",Legal Aid Payment Legal Help
MINISTRY OF JUSTICE,LEGAL AID AGENCY,06/07/2016,Higher Crime,LEGAL AID FUND,CHIVERS SOLICITORS,1010097:144624178,"53,287.03 ",Legal Aid Payment Higher Crime
MINISTRY OF JUSTICE,LEGAL AID AGENCY,27/07/2016,Lower Crime,LEGAL AID FUND,HINE SOLICITORS,1026786:144851620,"53,130.00 ",Legal Aid Payment Lower Crime
MINISTRY OF JUSTICE,LEGAL AID AGENCY,20/07/2016,Higher Crime,LEGAL AID FUND,FINN GLEDHILL,1019710:144744211,"52,973.92 ",Legal Aid Payment Higher Crime
MINISTRY OF JUSTICE,LEGAL AID AGENCY,27/07/2016,Lower Crime,LEGAL AID FUND,HOWELLS LLP,1023695:144850563,"52,900.00 ",Legal Aid Payment Lower Crime
MINISTRY OF JUSTICE,LEGAL AID AGENCY,06/07/2016,Higher Crime,LEGAL AID FUND,KAIM TODNER SOLICITORS LIMITED,1013412:144654395,"52,860.35 ",Legal Aid Payment Higher Crime
MINISTRY OF JUSTICE,LEGAL AID AGENCY,13/07/2016,Higher Crime,LEGAL AID FUND,JOHN BLACK SOLICITORS,1014349:144690070,"52,630.03 ",Legal Aid Payment Higher Crime
MINISTRY OF JUSTICE,LEGAL AID AGENCY,27/07/2016,Lower Crime,LEGAL AID FUND,GRECH GOODEN SOLICITORS LTD,1023313:144850932,"52,203.00 ",Legal Aid Payment Lower Crime
MINISTRY OF JUSTICE,LEGAL AID AGENCY,13/07/2016,Higher Crime,LEGAL AID FUND,RAJIV MENON,1016782:144679540,"52,155.90 ",Legal Aid Payment Higher Crime
MINISTRY OF JUSTICE,LEGAL AID AGENCY,20/07/2016,Higher Crime,LEGAL AID FUND,EBR ATTRIDGE LLP,1018504:144744409,"51,964.10 ",Legal Aid Payment Higher Crime
MINISTRY OF JUSTICE,LEGAL AID AGENCY,27/07/2016,Lower Crime,LEGAL AID FUND,GEOFF WHITE & CO,1025026:144851378,"51,682.00 ",Legal Aid Payment Lower Crime
MINISTRY OF JUSTICE,LEGAL AID AGENCY,13/07/2016,Higher Crime,LEGAL AID FUND,C GEOFFREY COX QC,1016994:144728370,"51,460.20 ",Legal Aid Payment Higher Crime
MINISTRY OF JUSTICE,LEGAL AID AGENCY,27/07/2016,Lower Crime,LEGAL AID FUND,REEDS SOLICITORS LTD,1026098:144851739,"51,345.00 ",Legal Aid Payment Lower Crime
MINISTRY OF JUSTICE,LEGAL AID AGENCY,27/07/2016,Lower Crime,LEGAL AID FUND,REEDS SOLICITORS LTD,1025319:144851418,"51,209.00 ",Legal Aid Payment Lower Crime
MINISTRY OF JUSTICE,LEGAL AID AGENCY,27/07/2016,Legal Help,LEGAL AID FUND,QS JACKSON CANTER LTD,1026141:144850214,"50,984.00 ",Legal Aid Payment Legal Help
MINISTRY OF JUSTICE,LEGAL AID AGENCY,06/07/2016,Higher Crime,LEGAL AID FUND,ALI N BAJWA QC,1009948:144625069,"50,880.10 ",Legal Aid Payment Higher Crime
MINISTRY OF JUSTICE,LEGAL AID AGENCY,27/07/2016,Lower Crime,LEGAL AID FUND,THOMAS BOYD WHYTE,1025692:144851085,"50,877.00 ",Legal Aid Payment Lower Crime
MINISTRY OF JUSTICE,LEGAL AID AGENCY,27/07/2016,Lower Crime,LEGAL AID FUND,HINE SOLICITORS,1025084:144851621,"50,555.00 ",Legal Aid Payment Lower Crime
MINISTRY OF JUSTICE,LEGAL AID AGENCY,13/07/2016,Higher Crime,LEGAL AID FUND,KAMRANS SOLICITORS,1014446:144720068,"50,522.98 ",Legal Aid Payment Higher Crime
MINISTRY OF JUSTICE,LEGAL AID AGENCY,27/07/2016,Lower Crime,LEGAL AID FUND,CARTER OSBORNE LTD,1027095:144850974,"50,459.00 ",Legal Aid Payment Lower Crime
MINISTRY OF JUSTICE,LEGAL AID AGENCY,27/07/2016,Legal Help,LEGAL AID FUND,HUNT & COOMBS LLP,1025453:144849109,"50,200.00 ",Legal Aid Payment Legal Help
MINISTRY OF JUSTICE,LEGAL AID AGENCY,20/07/2016,Legal Help,LEGAL AID FUND,T. A. LAW,1020521:144794288,"50,190.90 ",Legal Aid Payment Legal Help
MINISTRY OF JUSTICE,LEGAL AID AGENCY,13/07/2016,Higher Crime,LEGAL AID FUND,HAYGARTH JONES,1017495:144678413,"50,143.10 ",Legal Aid Payment Higher Crime
MINISTRY OF JUSTICE,LEGAL AID AGENCY,27/07/2016,Lower Crime,LEGAL AID FUND,NOBLE SOLICITORS,1025042:144851008,"50,073.00 ",Legal Aid Payment Lower Crime
MINISTRY OF JUSTICE,LEGAL AID AGENCY,27/07/2016,Lower Crime,LEGAL AID FUND,HENNESSY & HAMMUDI,1023289:144850733,"50,000.00 ",Legal Aid Payment Lower Crime
MINISTRY OF JUSTICE,LEGAL AID AGENCY,27/07/2016,Lower Crime,LEGAL AID FUND,IRVINE THANVI NATAS SOLICITORS,1025265:144850408,"50,000.00 ",Legal Aid Payment Lower Crime
MINISTRY OF JUSTICE,LEGAL AID AGENCY,27/07/2016,Lower Crime,LEGAL AID FUND,SANSBURY DOUGLAS,1025093:144850841,"50,000.00 ",Legal Aid Payment Lower Crime
MINISTRY OF JUSTICE,LEGAL AID AGENCY,06/07/2016,Higher Crime,LEGAL AID FUND,SUSHIL KUMAR,1010806:144654761,"49,915.25 ",Legal Aid Payment Higher Crime
MINISTRY OF JUSTICE,LEGAL AID AGENCY,13/07/2016,Higher Crime,LEGAL AID FUND,BRADFORD LAW SOLICITORS LTD,1014410:144666616,"49,841.68 ",Legal Aid Payment Higher Crime
MINISTRY OF JUSTICE,LEGAL AID AGENCY,06/07/2016,Higher Crime,LEGAL AID FUND,HUSSAIN SOLICITORS LTD,1013058:144634086,"49,773.35 ",Legal Aid Payment Higher Crime
MINISTRY OF JUSTICE,LEGAL AID AGENCY,27/07/2016,Legal Help,LEGAL AID FUND,HOWELLS LLP,1023695:144849134,"49,700.00 ",Legal Aid Payment Legal Help
MINISTRY OF JUSTICE,LEGAL AID AGENCY,13/07/2016,Civil Representation,LEGAL AID FUND,NAOMI MARIA MADDERSON,1013994:144725852,"49,192.88 ",Legal Aid Payment Civil Representation
MINISTRY OF JUSTICE,LEGAL AID AGENCY,06/07/2016,Higher Crime,LEGAL AID FUND,RIAZ SOLICITORS,1011543:144634337,"48,962.42 ",Legal Aid Payment Higher Crime
MINISTRY OF JUSTICE,LEGAL AID AGENCY,06/07/2016,Higher Crime,LEGAL AID FUND,HOWELLS LLP,1013223:144655304,"48,861.08 ",Legal Aid Payment Higher Crime
MINISTRY OF JUSTICE,LEGAL AID AGENCY,27/07/2016,Lower Crime,LEGAL AID FUND,THE JOHNSON PARTNERSHIP,1025091:144850844,"48,400.00 ",Legal Aid Payment Lower Crime
MINISTRY OF JUSTICE,LEGAL AID AGENCY,13/07/2016,Higher Crime,LEGAL AID FUND,CANTARIS LOCKE SOLICITORS,1014780:144690080,"48,382.66 ",Legal Aid Payment Higher Crime
MINISTRY OF JUSTICE,LEGAL AID AGENCY,06/07/2016,Civil Representation,LEGAL AID FUND,DUTTON GREGORY LLP,1013444:144609281,"48,345.20 ",Legal Aid Payment Civil Representation
MINISTRY OF JUSTICE,LEGAL AID AGENCY,20/07/2016,Higher Crime,LEGAL AID FUND,WOODS SOLICITORS,1018514:144744729,"48,342.37 ",Legal Aid Payment Higher Crime
MINISTRY OF JUSTICE,LEGAL AID AGENCY,20/07/2016,Higher Crime,LEGAL AID FUND,MCSORLEY LEWIS LAW LTD,1018814:144744633,"48,328.80 ",Legal Aid Payment Higher Crime
MINISTRY OF JUSTICE,LEGAL AID AGENCY,27/07/2016,Legal Help,LEGAL AID FUND,T V EDWARDS LLP,1025583:144849176,"48,300.00 ",Legal Aid Payment Legal Help
MINISTRY OF JUSTICE,LEGAL AID AGENCY,20/07/2016,Higher Crime,LEGAL AID FUND,ELITE SOLICITORS,1018598:144767556,"48,297.72 ",Legal Aid Payment Higher Crime
MINISTRY OF JUSTICE,LEGAL AID AGENCY,20/07/2016,Higher Crime,LEGAL AID FUND,MURRIA SOLICITORS LTD,1021780:144785851,"48,275.78 ",Legal Aid Payment Higher Crime
MINISTRY OF JUSTICE,LEGAL AID AGENCY,27/07/2016,Civil Representation,LEGAL AID FUND,GLAISYERS LLP,1023391:144843868,"48,260.12 ",Legal Aid Payment Civil Representation
MINISTRY OF JUSTICE,LEGAL AID AGENCY,27/07/2016,Lower Crime,LEGAL AID FUND,HARRIS CUFFARO & NICHOLS,1025586:144850362,"48,200.00 ",Legal Aid Payment Lower Crime
MINISTRY OF JUSTICE,LEGAL AID AGENCY,27/07/2016,Legal Help,LEGAL AID FUND,BRIGHTON HOUSING TRUST,1024959:144849952,"48,191.00 ",Legal Aid Payment Legal Help
MINISTRY OF JUSTICE,LEGAL AID AGENCY,27/07/2016,Higher Crime,LEGAL AID FUND,SEAN KIVDEH,1024593:144830056,"48,043.70 ",Legal Aid Payment Higher Crime
MINISTRY OF JUSTICE,LEGAL AID AGENCY,20/07/2016,Higher Crime,LEGAL AID FUND,HOWARD A GODFREY QC,1019150:144787175,"47,960.81 ",Legal Aid Payment Higher Crime
MINISTRY OF JUSTICE,LEGAL AID AGENCY,06/07/2016,Higher Crime,LEGAL AID FUND,DPP LAW LTD,1011709:144634523,"47,867.13 ",Legal Aid Payment Higher Crime
MINISTRY OF JUSTICE,LEGAL AID AGENCY,06/07/2016,Higher Crime,LEGAL AID FUND,COUSINS TYRER SOLICITORS,1013228:144625463,"47,691.89 ",Legal Aid Payment Higher Crime
MINISTRY OF JUSTICE,LEGAL AID AGENCY,13/07/2016,Civil Representation,LEGAL AID FUND,ALEXA R STOREY-REA,1014019:144161635,"47,520.00 ",Legal Aid Payment Civil Representation
MINISTRY OF JUSTICE,LEGAL AID AGENCY,27/07/2016,Higher Crime,LEGAL AID FUND,KEVIN G E DONNELLY,1024697:144845527,"47,466.66 ",Legal Aid Payment Higher Crime
MINISTRY OF JUSTICE,LEGAL AID AGENCY,27/07/2016,Higher Crime,LEGAL AID FUND,SIMON J GURNEY,1024708:144845092,"47,466.66 ",Legal Aid Payment Higher Crime
MINISTRY OF JUSTICE,LEGAL AID AGENCY,20/07/2016,Higher Crime,LEGAL AID FUND,VINCENT W COUGHLIN QC,1018241:144757426,"47,341.39 ",Legal Aid Payment Higher Crime
MINISTRY OF JUSTICE,LEGAL AID AGENCY,27/07/2016,Lower Crime,LEGAL AID FUND,RILEY HAYES & CO,1025314:144850831,"47,000.00 ",Legal Aid Payment Lower Crime
MINISTRY OF JUSTICE,LEGAL AID AGENCY,20/07/2016,Higher Crime,LEGAL AID FUND,TRANTERS CRIMINAL LAW PRACTICE,1021885:144743462,"46,814.11 ",Legal Aid Payment Higher Crime
MINISTRY OF JUSTICE,LEGAL AID AGENCY,27/07/2016,Lower Crime,LEGAL AID FUND,HINE SOLICITORS,1025081:144851624,"46,597.00 ",Legal Aid Payment Lower Crime
MINISTRY OF JUSTICE,LEGAL AID AGENCY,20/07/2016,Higher Crime,LEGAL AID FUND,EBR ATTRIDGE LLP,1019558:144785930,"46,440.85 ",Legal Aid Payment Higher Crime
MINISTRY OF JUSTICE,LEGAL AID AGENCY,27/07/2016,Higher Crime,LEGAL AID FUND,FOSSE LAW,1023371:144798185,"46,440.85 ",Legal Aid Payment Higher Crime
MINISTRY OF JUSTICE,LEGAL AID AGENCY,06/07/2016,Higher Crime,LEGAL AID FUND,PAUL MARTIN & CO,1011691:144653681,"46,440.85 ",Legal Aid Payment Higher Crime
MINISTRY OF JUSTICE,LEGAL AID AGENCY,06/07/2016,Higher Crime,LEGAL AID FUND,ADAM S FEEST,1012508:144614919,"46,197.94 ",Legal Aid Payment Higher Crime
MINISTRY OF JUSTICE,LEGAL AID AGENCY,20/07/2016,Civil Representation,LEGAL AID FUND,BLACKFORDS LLP,1022039:144779685,"46,068.55 ",Legal Aid Payment Civil Representation
MINISTRY OF JUSTICE,LEGAL AID AGENCY,27/07/2016,Lower Crime,LEGAL AID FUND,RUSSELL & RUSSELL SOLICITORS,1023814:144851275,"45,767.00 ",Legal Aid Payment Lower Crime
MINISTRY OF JUSTICE,LEGAL AID AGENCY,27/07/2016,Higher Crime,LEGAL AID FUND,C W BOOTH & CO,1027254:144852918,"45,661.04 ",Legal Aid Payment Higher Crime
MINISTRY OF JUSTICE,LEGAL AID AGENCY,20/07/2016,Higher Crime,LEGAL AID FUND,CHRISTOPHER M  CONVEY,1021310:144782642,"45,632.77 ",Legal Aid Payment Higher Crime
MINISTRY OF JUSTICE,LEGAL AID AGENCY,20/07/2016,Higher Crime,LEGAL AID FUND,EDWARD HAYES LLP,1018695:144767335,"45,573.73 ",Legal Aid Payment Higher Crime
MINISTRY OF JUSTICE,LEGAL AID AGENCY,20/07/2016,Higher Crime,LEGAL AID FUND,CARTWRIGHT KING SOLICITORS,1020685:144787284,"45,551.04 ",Legal Aid Payment Higher Crime
MINISTRY OF JUSTICE,LEGAL AID AGENCY,27/07/2016,Lower Crime,LEGAL AID FUND,JOHN ONIONS SOLICITORS,1027328:144851478,"45,451.00 ",Legal Aid Payment Lower Crime
MINISTRY OF JUSTICE,LEGAL AID AGENCY,27/07/2016,Lower Crime,LEGAL AID FUND,SMITH PARTNERSHIP,1026948:144850339,"45,400.00 ",Legal Aid Payment Lower Crime
MINISTRY OF JUSTICE,LEGAL AID AGENCY,13/07/2016,Lower Crime,LEGAL AID FUND,KINGSLEY NAPLEY LLP,1016586:144697190,"45,000.00 ",Legal Aid Payment Lower Crime
MINISTRY OF JUSTICE,LEGAL AID AGENCY,27/07/2016,Lower Crime,LEGAL AID FUND,WILSON DEVONALD GRIFFITHS JOHN,1023619:144850297,"45,000.00 ",Legal Aid Payment Lower Crime
MINISTRY OF JUSTICE,LEGAL AID AGENCY,27/07/2016,Higher Crime,LEGAL AID FUND,CITY LAW CHAMBERS LTD,1023352:144798188,"44,960.52 ",Legal Aid Payment Higher Crime
MINISTRY OF JUSTICE,LEGAL AID AGENCY,27/07/2016,Higher Crime,LEGAL AID FUND,RUTH BECKER,1026707:144853229,"44,921.76 ",Legal Aid Payment Higher Crime
MINISTRY OF JUSTICE,LEGAL AID AGENCY,27/07/2016,Higher Crime,LEGAL AID FUND,ASHMANS SOLICITORS,1023249:144809167,"44,768.10 ",Legal Aid Payment Higher Crime
MINISTRY OF JUSTICE,LEGAL AID AGENCY,27/07/2016,Higher Crime,LEGAL AID FUND,LEWIS NEDAS & CO,1027440:144798787,"44,735.66 ",Legal Aid Payment Higher Crime
MINISTRY OF JUSTICE,LEGAL AID AGENCY,06/07/2016,Higher Crime,LEGAL AID FUND,PATTICHI HILL & CROQUES LTD,1010296:144653737,"44,237.05 ",Legal Aid Payment Higher Crime
MINISTRY OF JUSTICE,LEGAL AID AGENCY,06/07/2016,Higher Crime,LEGAL AID FUND,POWELL SPENCER AND PARTNERS,1012007:144653717,"43,853.33 ",Legal Aid Payment Higher Crime
MINISTRY OF JUSTICE,LEGAL AID AGENCY,27/07/2016,Lower Crime,LEGAL AID FUND,BELMORES SOLICITORS LTD,1025203:144851013,"43,802.00 ",Legal Aid Payment Lower Crime
MINISTRY OF JUSTICE,LEGAL AID AGENCY,27/07/2016,Legal Help,LEGAL AID FUND,BINDMANS LLP,1027012:144849199,"43,800.00 ",Legal Aid Payment Legal Help
MINISTRY OF JUSTICE,LEGAL AID AGENCY,27/07/2016,Lower Crime,LEGAL AID FUND,VICKERS CHISMAN & WISHLADE,1023674:144850520,"43,800.00 ",Legal Aid Payment Lower Crime
MINISTRY OF JUSTICE,LEGAL AID AGENCY,20/07/2016,Higher Crime,LEGAL AID FUND,SHEPPARDS SOLICITORS LTD,1020708:144732623,"43,719.28 ",Legal Aid Payment Higher Crime
MINISTRY OF JUSTICE,LEGAL AID AGENCY,27/07/2016,Higher Crime,LEGAL AID FUND,FRAME SMITH SOLICITORS,1027002:144828972,"43,687.74 ",Legal Aid Payment Higher Crime
MINISTRY OF JUSTICE,LEGAL AID AGENCY,06/07/2016,Higher Crime,LEGAL AID FUND,BCL BURTON COPELAND,1013415:144618341,"43,653.54 ",Legal Aid Payment Higher Crime
MINISTRY OF JUSTICE,LEGAL AID AGENCY,27/07/2016,Lower Crime,LEGAL AID FUND,DJMS SOLICITORS LTD,1025085:144851189,"43,616.00 ",Legal Aid Payment Lower Crime
MINISTRY OF JUSTICE,LEGAL AID AGENCY,27/07/2016,Lower Crime,LEGAL AID FUND,ALLEN HOOLE SOLICITORS [0Q319P],1025489:144850755,"43,600.00 ",Legal Aid Payment Lower Crime
MINISTRY OF JUSTICE,LEGAL AID AGENCY,20/07/2016,Civil Representation,LEGAL AID FUND,ALISON S GRIEF,1020220:3000000875220008,"43,594.20 ",Legal Aid Payment Civil Representation
MINISTRY OF JUSTICE,LEGAL AID AGENCY,13/07/2016,Higher Crime,LEGAL AID FUND,KENNETH M BARROW & CO,1017560:144666326,"43,393.90 ",Legal Aid Payment Higher Crime
MINISTRY OF JUSTICE,LEGAL AID AGENCY,13/07/2016,Higher Crime,LEGAL AID FUND,TYRONE G SMITH,1014265:144679605,"43,386.01 ",Legal Aid Payment Higher Crime
MINISTRY OF JUSTICE,LEGAL AID AGENCY,27/07/2016,Lower Crime,LEGAL AID FUND,TUCKERS SOLICITORS LLP,1025581:144850806,"43,300.00 ",Legal Aid Payment Lower Crime
MINISTRY OF JUSTICE,LEGAL AID AGENCY,27/07/2016,Higher Crime,LEGAL AID FUND,ABBEY SOLICITORS,1023409:144799208,"43,292.92 ",Legal Aid Payment Higher Crime
MINISTRY OF JUSTICE,LEGAL AID AGENCY,27/07/2016,Lower Crime,LEGAL AID FUND,HOWARD & BYRNE SOLICITORS,1023394:144850581,"43,000.00 ",Legal Aid Payment Lower Crime
MINISTRY OF JUSTICE,LEGAL AID AGENCY,13/07/2016,Higher Crime,LEGAL AID FUND,NEWGATE SOLICITORS,1016280:144720329,"42,800.18 ",Legal Aid Payment Higher Crime
MINISTRY OF JUSTICE,LEGAL AID AGENCY,13/07/2016,Higher Crime,LEGAL AID FUND,BARK & CO,1017532:144682490,"42,712.09 ",Legal Aid Payment Higher Crime
MINISTRY OF JUSTICE,LEGAL AID AGENCY,27/07/2016,Lower Crime,LEGAL AID FUND,STEPHENSONS SOLICITORS LLP,1023770:144851293,"42,674.00 ",Legal Aid Payment Lower Crime
MINISTRY OF JUSTICE,LEGAL AID AGENCY,27/07/2016,Lower Crime,LEGAL AID FUND,POWELL SPENCER AND PARTNERS,1023913:144850409,"42,600.00 ",Legal Aid Payment Lower Crime
MINISTRY OF JUSTICE,LEGAL AID AGENCY,06/07/2016,Higher Crime,LEGAL AID FUND,DAMIAN F NOLAN,1011220:144603531,"42,268.08 ",Legal Aid Payment Higher Crime
MINISTRY OF JUSTICE,LEGAL AID AGENCY,27/07/2016,Lower Crime,LEGAL AID FUND,"O'NEILL, WRIGHT & NASH",1026769:144851551,"42,118.00 ",Legal Aid Payment Lower Crime
MINISTRY OF JUSTICE,LEGAL AID AGENCY,06/07/2016,Higher Crime,LEGAL AID FUND,GOOD & CO SOLICITORS LLP,1010027:144653838,"42,102.48 ",Legal Aid Payment Higher Crime
MINISTRY OF JUSTICE,LEGAL AID AGENCY,13/07/2016,Higher Crime,LEGAL AID FUND,LIBERTY SOLICITORS.,1015324:144719559,"42,102.48 ",Legal Aid Payment Higher Crime
MINISTRY OF JUSTICE,LEGAL AID AGENCY,27/07/2016,Lower Crime,LEGAL AID FUND,LEVY & CO SOLICITORS LLP,1023322:144850370,"42,100.00 ",Legal Aid Payment Lower Crime
MINISTRY OF JUSTICE,LEGAL AID AGENCY,27/07/2016,Lower Crime,LEGAL AID FUND,BOBBETTS MACKAN,1027448:144850753,"42,000.00 ",Legal Aid Payment Lower Crime
MINISTRY OF JUSTICE,LEGAL AID AGENCY,27/07/2016,Lower Crime,LEGAL AID FUND,JOSEPH HILL & CO,1023720:144850441,"42,000.00 ",Legal Aid Payment Lower Crime
MINISTRY OF JUSTICE,LEGAL AID AGENCY,27/07/2016,Lower Crime,LEGAL AID FUND,WAINWRIGHT & CUMMINS LLP,1023398:144850491,"42,000.00 ",Legal Aid Payment Lower Crime
MINISTRY OF JUSTICE,LEGAL AID AGENCY,20/07/2016,Higher Crime,LEGAL AID FUND,EBR ATTRIDGE LLP,1019558:144785945,"41,987.63 ",Legal Aid Payment Higher Crime
MINISTRY OF JUSTICE,LEGAL AID AGENCY,27/07/2016,Higher Crime,LEGAL AID FUND,CHRISTOPHER H STABLES,1026335:144809249,"41,926.08 ",Legal Aid Payment Higher Crime
MINISTRY OF JUSTICE,LEGAL AID AGENCY,06/07/2016,Higher Crime,LEGAL AID FUND,JOHN W WILLIAMS,1011036:144603567,"41,926.08 ",Legal Aid Payment Higher Crime
MINISTRY OF JUSTICE,LEGAL AID AGENCY,06/07/2016,Higher Crime,LEGAL AID FUND,NICHOLAS D F WALKER,1012539:144603609,"41,914.32 ",Legal Aid Payment Higher Crime
MINISTRY OF JUSTICE,LEGAL AID AGENCY,06/07/2016,Higher Crime,LEGAL AID FUND,BENJAMIN D J SUMMERS,1012846:144630410,"41,900.00 ",Legal Aid Payment Higher Crime
MINISTRY OF JUSTICE,LEGAL AID AGENCY,27/07/2016,Lower Crime,LEGAL AID FUND,HINE SOLICITORS,1025083:144851622,"41,797.00 ",Legal Aid Payment Lower Crime
MINISTRY OF JUSTICE,LEGAL AID AGENCY,27/07/2016,Lower Crime,LEGAL AID FUND,K LEGAL SOLICITORS,1023269:144851688,"41,785.00 ",Legal Aid Payment Lower Crime
MINISTRY OF JUSTICE,LEGAL AID AGENCY,13/07/2016,Civil Representation,LEGAL AID FUND,JEREMY P WESTON,1017285:3000000847240023,"41,772.12 ",Legal Aid Payment Civil Representation
MINISTRY OF JUSTICE,LEGAL AID AGENCY,27/07/2016,Higher Crime,LEGAL AID FUND,MICHAEL H SCHOLES,1026379:144798286,"41,584.08 ",Legal Aid Payment Higher Crime
MINISTRY OF JUSTICE,LEGAL AID AGENCY,20/07/2016,Legal Help,LEGAL AID FUND,SHELTER.,1020524:144794277,"41,492.08 ",Legal Aid Payment Legal Help
MINISTRY OF JUSTICE,LEGAL AID AGENCY,27/07/2016,Lower Crime,LEGAL AID FUND,MICHAEL PURDON,1025562:144851204,"41,253.00 ",Legal Aid Payment Lower Crime
MINISTRY OF JUSTICE,LEGAL AID AGENCY,06/07/2016,Higher Crime,LEGAL AID FUND,RAJIV MENON,1012226:144654992,"41,202.22 ",Legal Aid Payment Higher Crime
MINISTRY OF JUSTICE,LEGAL AID AGENCY,27/07/2016,Lower Crime,LEGAL AID FUND,ORACLE SOLICITORS,1023501:144851135,"41,154.00 ",Legal Aid Payment Lower Crime
MINISTRY OF JUSTICE,LEGAL AID AGENCY,27/07/2016,Legal Help,LEGAL AID FUND,G T STEWART SOLICITORS,1025202:144850268,"41,059.00 ",Legal Aid Payment Legal Help
MINISTRY OF JUSTICE,LEGAL AID AGENCY,27/07/2016,Lower Crime,LEGAL AID FUND,BULLIVANT LAW LTD,1026808:144850403,"41,000.00 ",Legal Aid Payment Lower Crime
MINISTRY OF JUSTICE,LEGAL AID AGENCY,27/07/2016,Higher Crime,LEGAL AID FUND,PATTICHI HILL & CROQUES LTD,1027054:144798694,"40,965.35 ",Legal Aid Payment Higher Crime
MINISTRY OF JUSTICE,LEGAL AID AGENCY,13/07/2016,Higher Crime,LEGAL AID FUND,TUCKERS SOLICITORS LLP,1017562:144719978,"40,952.10 ",Legal Aid Payment Higher Crime
MINISTRY OF JUSTICE,LEGAL AID AGENCY,27/07/2016,Lower Crime,LEGAL AID FUND,CARTWRIGHT KING SOLICITORS,1025806:144850873,"40,900.00 ",Legal Aid Payment Lower Crime
MINISTRY OF JUSTICE,LEGAL AID AGENCY,13/07/2016,Civil Representation,LEGAL AID FUND,REBECCA L DAVIES,1016183:144695199,"40,876.80 ",Legal Aid Payment Civil Representation
MINISTRY OF JUSTICE,LEGAL AID AGENCY,27/07/2016,Lower Crime,LEGAL AID FUND,G T STEWART SOLICITORS,1025076:144851611,"40,831.00 ",Legal Aid Payment Lower Crime
MINISTRY OF JUSTICE,LEGAL AID AGENCY,27/07/2016,Lower Crime,LEGAL AID FUND,FISHER COWE,1025119:144851018,"40,700.00 ",Legal Aid Payment Lower Crime
MINISTRY OF JUSTICE,LEGAL AID AGENCY,27/07/2016,Legal Help,LEGAL AID FUND,LISA MARIE MCNULTY SOLICITOR,1025364:144849713,"40,670.00 ",Legal Aid Payment Legal Help
MINISTRY OF JUSTICE,LEGAL AID AGENCY,06/07/2016,Higher Crime,LEGAL AID FUND,ANDREW J JEBB,1011217:144603676,"40,626.48 ",Legal Aid Payment Higher Crime
MINISTRY OF JUSTICE,LEGAL AID AGENCY,27/07/2016,Higher Crime,LEGAL AID FUND,DANIEL O JONES,1026628:144830457,"40,461.00 ",Legal Aid Payment Higher Crime
MINISTRY OF JUSTICE,LEGAL AID AGENCY,27/07/2016,Lower Crime,LEGAL AID FUND,J D SOLICITORS,1025131:144851522,"40,446.00 ",Legal Aid Payment Lower Crime
MINISTRY OF JUSTICE,LEGAL AID AGENCY,27/07/2016,Lower Crime,LEGAL AID FUND,VYMAN SOLICITORS LTD,1026900:144851360,"40,438.00 ",Legal Aid Payment Lower Crime
MINISTRY OF JUSTICE,LEGAL AID AGENCY,13/07/2016,Higher Crime,LEGAL AID FUND,THE JOHNSON PARTNERSHIP,1016442:144677984,"40,387.15 ",Legal Aid Payment Higher Crime
MINISTRY OF JUSTICE,LEGAL AID AGENCY,27/07/2016,Legal Help,LEGAL AID FUND,BARNES HARRILD & DYER,1024249:144850079,"40,310.00 ",Legal Aid Payment Legal Help
MINISTRY OF JUSTICE,LEGAL AID AGENCY,27/07/2016,Higher Crime,LEGAL AID FUND,REEDS SOLICITORS LTD,1025961:144818167,"40,284.64 ",Legal Aid Payment Higher Crime
MINISTRY OF JUSTICE,LEGAL AID AGENCY,27/07/2016,Higher Crime,LEGAL AID FUND,STEVEN YOUNG & CO INC ROWBIS,1023329:144798918,"40,248.10 ",Legal Aid Payment Higher Crime
MINISTRY OF JUSTICE,LEGAL AID AGENCY,27/07/2016,Higher Crime,LEGAL AID FUND,PURCELL PARKER LTD,1025313:144853140,"40,229.82 ",Legal Aid Payment Higher Crime
MINISTRY OF JUSTICE,LEGAL AID AGENCY,20/07/2016,Higher Crime,LEGAL AID FUND,SALHAN & CO LTD,1020659:144757314,"40,211.56 ",Legal Aid Payment Higher Crime
MINISTRY OF JUSTICE,LEGAL AID AGENCY,20/07/2016,Higher Crime,LEGAL AID FUND,MONIORO LESS & CO SOLICITORS,1018485:144744627,"40,103.36 ",Legal Aid Payment Higher Crime
MINISTRY OF JUSTICE,LEGAL AID AGENCY,27/07/2016,Lower Crime,LEGAL AID FUND,ALBIN & CO LTD,1023421:144850732,"40,000.00 ",Legal Aid Payment Lower Crime
MINISTRY OF JUSTICE,LEGAL AID AGENCY,27/07/2016,Lower Crime,LEGAL AID FUND,OWEN NASH & CO,1023897:144850815,"40,000.00 ",Legal Aid Payment Lower Crime
MINISTRY OF JUSTICE,LEGAL AID AGENCY,27/07/2016,Legal Help,LEGAL AID FUND,PARAGON LAW LTD,1023406:144849313,"40,000.00 ",Legal Aid Payment Legal Help
MINISTRY OF JUSTICE,LEGAL AID AGENCY,27/07/2016,Legal Help,LEGAL AID FUND,SWAIN & CO SOLICITORS LLP,1025264:144849328,"40,000.00 ",Legal Aid Payment Legal Help
MINISTRY OF JUSTICE,LEGAL AID AGENCY,06/07/2016,Higher Crime,LEGAL AID FUND,ADAM N GERSCH,1012618:144602581,"39,870.60 ",Legal Aid Payment Higher Crime
MINISTRY OF JUSTICE,LEGAL AID AGENCY,20/07/2016,Civil Representation,LEGAL AID FUND,GARDNER CHAMPION SOLICITORS LTD,1019667:144725377,"39,850.95 ",Legal Aid Payment Civil Representation
MINISTRY OF JUSTICE,LEGAL AID AGENCY,27/07/2016,Lower Crime,LEGAL AID FUND,OLIVER D'SA SOLICITORS,1023840:144850963,"39,798.00 ",Legal Aid Payment Lower Crime
MINISTRY OF JUSTICE,LEGAL AID AGENCY,27/07/2016,Lower Crime,LEGAL AID FUND,STEVENS SOLICITORS,1023777:144850793,"39,700.00 ",Legal Aid Payment Lower Crime
MINISTRY OF JUSTICE,LEGAL AID AGENCY,06/07/2016,Higher Crime,LEGAL AID FUND,ROWE SPARKES SOLICITORS LTD,1010069:144625172,"39,519.46 ",Legal Aid Payment Higher Crime
MINISTRY OF JUSTICE,LEGAL AID AGENCY,13/07/2016,Higher Crime,LEGAL AID FUND,ALISTER S WEBSTER QC,1017038:144702196,"39,502.81 ",Legal Aid Payment Higher Crime
MINISTRY OF JUSTICE,LEGAL AID AGENCY,27/07/2016,Legal Help,LEGAL AID FUND,APPLEMAN LEGAL,1025792:144850265,"39,484.00 ",Legal Aid Payment Legal Help
MINISTRY OF JUSTICE,LEGAL AID AGENCY,27/07/2016,Legal Help,LEGAL AID FUND,FADIGA & CO LTD,1023821:144849628,"39,430.00 ",Legal Aid Payment Legal Help
MINISTRY OF JUSTICE,LEGAL AID AGENCY,06/07/2016,Higher Crime,LEGAL AID FUND,TUCKERS-ADVOCATE,1012328:144634742,"39,420.36 ",Legal Aid Payment Higher Crime
MINISTRY OF JUSTICE,LEGAL AID AGENCY,27/07/2016,Lower Crime,LEGAL AID FUND,SHEPHERD SOLICITORS LTD,1023339:144851354,"39,375.00 ",Legal Aid Payment Lower Crime
MINISTRY OF JUSTICE,LEGAL AID AGENCY,27/07/2016,Higher Crime,LEGAL AID FUND,STEPHAN H ALFRED,1022784:144809128,"39,339.00 ",Legal Aid Payment Higher Crime
MINISTRY OF JUSTICE,LEGAL AID AGENCY,20/07/2016,Higher Crime,LEGAL AID FUND,NYLAND & BEATTIE,1020811:144732206,"39,158.78 ",Legal Aid Payment Higher Crime
MINISTRY OF JUSTICE,LEGAL AID AGENCY,20/07/2016,Higher Crime,LEGAL AID FUND,KEPPE ROFER,1020796:144755774,"38,901.67 ",Legal Aid Payment Higher Crime
MINISTRY OF JUSTICE,LEGAL AID AGENCY,06/07/2016,Higher Crime,LEGAL AID FUND,MARTIN R MCCARTHY,1009690:144633973,"38,876.45 ",Legal Aid Payment Higher Crime
MINISTRY OF JUSTICE,LEGAL AID AGENCY,27/07/2016,Lower Crime,LEGAL AID FUND,CARTWRIGHT KING SOLICITORS,1026912:144850982,"38,828.00 ",Legal Aid Payment Lower Crime
MINISTRY OF JUSTICE,LEGAL AID AGENCY,20/07/2016,Higher Crime,LEGAL AID FUND,KYLE LEGAL PRACTICE,1020587:144744721,"38,741.05 ",Legal Aid Payment Higher Crime
MINISTRY OF JUSTICE,LEGAL AID AGENCY,20/07/2016,Higher Crime,LEGAL AID FUND,CLARK BROOKES TURNER CARY LTD,1020831:144767452,"38,719.84 ",Legal Aid Payment Higher Crime
MINISTRY OF JUSTICE,LEGAL AID AGENCY,27/07/2016,Lower Crime,LEGAL AID FUND,WESSEX SOLICITORS CHAMBERS,1025053:144850838,"38,600.00 ",Legal Aid Payment Lower Crime
MINISTRY OF JUSTICE,LEGAL AID AGENCY,20/07/2016,Higher Crime,LEGAL AID FUND,COLIN C AYLOTT,1021397:144731930,"38,592.05 ",Legal Aid Payment Higher Crime
MINISTRY OF JUSTICE,LEGAL AID AGENCY,13/07/2016,Higher Crime,LEGAL AID FUND,ROBERT G MARSHALL-ANDREWS QC,1015902:144719396,"38,520.95 ",Legal Aid Payment Higher Crime
MINISTRY OF JUSTICE,LEGAL AID AGENCY,27/07/2016,Lower Crime,LEGAL AID FUND,CRIMINAL DEFENCE MILTON KEYNES LTD,1025029:144850721,"38,500.00 ",Legal Aid Payment Lower Crime
MINISTRY OF JUSTICE,LEGAL AID AGENCY,06/07/2016,Higher Crime,LEGAL AID FUND,PETHERBRIDGE BASSRA SOLICITORS LTD,1013041:144653712,"38,434.73 ",Legal Aid Payment Higher Crime
MINISTRY OF JUSTICE,LEGAL AID AGENCY,27/07/2016,Lower Crime,LEGAL AID FUND,GWB HARTHILLS LLP,1026958:144851232,"38,411.00 ",Legal Aid Payment Lower Crime
MINISTRY OF JUSTICE,LEGAL AID AGENCY,27/07/2016,Lower Crime,LEGAL AID FUND,EBR ATTRIDGE LLP,1025174:144850415,"38,400.00 ",Legal Aid Payment Lower Crime
MINISTRY OF JUSTICE,LEGAL AID AGENCY,13/07/2016,Civil Representation,LEGAL AID FUND,FORBES SOLICITORS,1014436:144686381,"38,400.00 ",Legal Aid Payment Civil Representation
MINISTRY OF JUSTICE,LEGAL AID AGENCY,06/07/2016,Higher Crime,LEGAL AID FUND,NADINE RADFORD QC,1011016:144655158,"38,386.91 ",Legal Aid Payment Higher Crime
MINISTRY OF JUSTICE,LEGAL AID AGENCY,27/07/2016,Lower Crime,LEGAL AID FUND,SWAIN & CO SOLICITORS LLP,1025263:144850711,"38,300.00 ",Legal Aid Payment Lower Crime
MINISTRY OF JUSTICE,LEGAL AID AGENCY,13/07/2016,Civil Representation,LEGAL AID FUND,ALEXA R STOREY-REA,1014019:3000000504360027,"38,250.00 ",Legal Aid Payment Civil Representation
MINISTRY OF JUSTICE,LEGAL AID AGENCY,27/07/2016,Lower Crime,LEGAL AID FUND,ACA LAW LTD,1023525:144851103,"38,211.00 ",Legal Aid Payment Lower Crime
MINISTRY OF JUSTICE,LEGAL AID AGENCY,27/07/2016,Lower Crime,LEGAL AID FUND,THE JOHNSON PARTNERSHIP,1027135:144850330,"38,200.00 ",Legal Aid Payment Lower Crime
MINISTRY OF JUSTICE,LEGAL AID AGENCY,27/07/2016,Lower Crime,LEGAL AID FUND,BESWICKS SOLICITORS LLP,1025600:144851496,"38,184.00 ",Legal Aid Payment Lower Crime
MINISTRY OF JUSTICE,LEGAL AID AGENCY,13/07/2016,Higher Crime,LEGAL AID FUND,THOMAS M DANIEL,1013891:144694892,"38,120.00 ",Legal Aid Payment Higher Crime
MINISTRY OF JUSTICE,LEGAL AID AGENCY,27/07/2016,Lower Crime,LEGAL AID FUND,DALTON HOLMES GRAY,1025375:144851133,"37,863.00 ",Legal Aid Payment Lower Crime
MINISTRY OF JUSTICE,LEGAL AID AGENCY,13/07/2016,Higher Crime,LEGAL AID FUND,THE JOHNSON PARTNERSHIP,1016442:144720094,"37,826.34 ",Legal Aid Payment Higher Crime
MINISTRY OF JUSTICE,LEGAL AID AGENCY,06/07/2016,Higher Crime,LEGAL AID FUND,KRISTINA HARRISON SOLICITORS-ADVOCATE,1009467:144635119,"37,816.02 ",Legal Aid Payment Higher Crime
MINISTRY OF JUSTICE,LEGAL AID AGENCY,20/07/2016,Civil Representation,LEGAL AID FUND,STEEL & SHAMASH,1018830:144747854,"37,658.68 ",Legal Aid Payment Civil Representation
MINISTRY OF JUSTICE,LEGAL AID AGENCY,27/07/2016,Lower Crime,LEGAL AID FUND,JERMAN SAMUELS & PEARSON LLP,1023497:144850369,"37,600.00 ",Legal Aid Payment Lower Crime
MINISTRY OF JUSTICE,LEGAL AID AGENCY,27/07/2016,Higher Crime,LEGAL AID FUND,FORBES SOLICITORS,1025384:144810171,"37,566.02 ",Legal Aid Payment Higher Crime
MINISTRY OF JUSTICE,LEGAL AID AGENCY,20/07/2016,Higher Crime,LEGAL AID FUND,JASON K PITTER,1020197:144744996,"37,467.18 ",Legal Aid Payment Higher Crime
MINISTRY OF JUSTICE,LEGAL AID AGENCY,27/07/2016,Higher Crime,LEGAL AID FUND,SALHAN & CO LTD,1025278:144829592,"37,414.22 ",Legal Aid Payment Higher Crime
MINISTRY OF JUSTICE,LEGAL AID AGENCY,27/07/2016,Legal Help,LEGAL AID FUND,HALLIDAY REEVES LAW FIRM,1023262:144849943,"37,399.00 ",Legal Aid Payment Legal Help
MINISTRY OF JUSTICE,LEGAL AID AGENCY,06/07/2016,Civil Representation,LEGAL AID FUND,JULIE A SLATER,1009747:3000000495000013,"37,195.20 ",Legal Aid Payment Civil Representation
MINISTRY OF JUSTICE,LEGAL AID AGENCY,19/07/2016,Civil Representation,LEGAL AID FUND,ESKINAZI & CO,1017779:300000046703DCL799,"37,182.71 ",Legal Aid Payment Civil Representation
MINISTRY OF JUSTICE,LEGAL AID AGENCY,20/07/2016,Higher Crime,LEGAL AID FUND,LEWIS NEDAS & CO,1018768:144767374,"37,174.55 ",Legal Aid Payment Higher Crime
MINISTRY OF JUSTICE,LEGAL AID AGENCY,27/07/2016,Lower Crime,LEGAL AID FUND,SAMUEL & CO SOLICITORS,1023404:144850458,"37,100.00 ",Legal Aid Payment Lower Crime
MINISTRY OF JUSTICE,LEGAL AID AGENCY,13/07/2016,Higher Crime,LEGAL AID FUND,JEANNIE MACKIE,1015951:144720340,"36,926.04 ",Legal Aid Payment Higher Crime
MINISTRY OF JUSTICE,LEGAL AID AGENCY,20/07/2016,Higher Crime,LEGAL AID FUND,VIVIENNE J TANCHEL,1020385:144767459,"36,823.06 ",Legal Aid Payment Higher Crime
MINISTRY OF JUSTICE,LEGAL AID AGENCY,06/07/2016,Higher Crime,LEGAL AID FUND,BRENDAN F O'LEARY,1009873:144624390,"36,752.76 ",Legal Aid Payment Higher Crime
MINISTRY OF JUSTICE,LEGAL AID AGENCY,27/07/2016,Legal Help,LEGAL AID FUND,LUQMANI THOMPSON & PARTNERS,1023522:144849612,"36,575.00 ",Legal Aid Payment Legal Help
MINISTRY OF JUSTICE,LEGAL AID AGENCY,13/07/2016,Higher Crime,LEGAL AID FUND,HARRIS SOLICITORS,1016200:144666607,"36,514.38 ",Legal Aid Payment Higher Crime
MINISTRY OF JUSTICE,LEGAL AID AGENCY,27/07/2016,Legal Help,LEGAL AID FUND,BUTLER & CO,1025208:144849075,"36,500.00 ",Legal Aid Payment Legal Help
MINISTRY OF JUSTICE,LEGAL AID AGENCY,06/07/2016,Civil Representation,LEGAL AID FUND,MCMILLEN HAMILTON MCCARTHY,1013451:144628778,"36,484.69 ",Legal Aid Payment Civil Representation
MINISTRY OF JUSTICE,LEGAL AID AGENCY,27/07/2016,Civil Representation,LEGAL AID FUND,FAHRI JACOB,1023997:144803092,"36,427.64 ",Legal Aid Payment Civil Representation
MINISTRY OF JUSTICE,LEGAL AID AGENCY,06/07/2016,Higher Crime,LEGAL AID FUND,OSMAN H OSMAN,1009954:144602698,"36,193.08 ",Legal Aid Payment Higher Crime
MINISTRY OF JUSTICE,LEGAL AID AGENCY,27/07/2016,Legal Help,LEGAL AID FUND,LESTER MORRILL INC DAVIES GORE LOMAX,1023738:144849584,"36,188.00 ",Legal Aid Payment Legal Help
MINISTRY OF JUSTICE,LEGAL AID AGENCY,27/07/2016,Lower Crime,LEGAL AID FUND,LLM SOLICITORS (LONDON) LTD,1026731:144851676,"36,170.00 ",Legal Aid Payment Lower Crime
MINISTRY OF JUSTICE,LEGAL AID AGENCY,27/07/2016,Higher Crime,LEGAL AID FUND,O'REILLYS SOLICITORS LTD,1026899:144810266,"36,152.24 ",Legal Aid Payment Higher Crime
MINISTRY OF JUSTICE,LEGAL AID AGENCY,27/07/2016,Legal Help,LEGAL AID FUND,CJCH SOLICITORS,1025822:144850267,"36,149.00 ",Legal Aid Payment Legal Help
MINISTRY OF JUSTICE,LEGAL AID AGENCY,27/07/2016,Lower Crime,LEGAL AID FUND,YARWOOD & STUBLEY,1025564:144850522,"35,900.00 ",Legal Aid Payment Lower Crime
MINISTRY OF JUSTICE,LEGAL AID AGENCY,27/07/2016,Legal Help,LEGAL AID FUND,GUILE NICHOLAS-INC DONALD GALBRAITH & CO,1024168:144850248,"35,872.00 ",Legal Aid Payment Legal Help
MINISTRY OF JUSTICE,LEGAL AID AGENCY,27/07/2016,Higher Crime,LEGAL AID FUND,BYRNE & PARTNERS LLP,1023509:144799036,"35,861.82 ",Legal Aid Payment Higher Crime
MINISTRY OF JUSTICE,LEGAL AID AGENCY,27/07/2016,Legal Help,LEGAL AID FUND,THALIWAL & CO LTD,1026920:144849770,"35,705.00 ",Legal Aid Payment Legal Help
MINISTRY OF JUSTICE,LEGAL AID AGENCY,27/07/2016,Higher Crime,LEGAL AID FUND,WATSON WOODHOUSE SOLICITORS LLP,1025567:144809839,"35,696.95 ",Legal Aid Payment Higher Crime
MINISTRY OF JUSTICE,LEGAL AID AGENCY,27/07/2016,Lower Crime,LEGAL AID FUND,KEANEY WHITEHEAD PARTNERSHIP,1023303:144851177,"35,653.00 ",Legal Aid Payment Lower Crime
MINISTRY OF JUSTICE,LEGAL AID AGENCY,20/07/2016,Civil Representation,LEGAL AID FUND,VANESSA V MEACHIN,1018223:144494916,"35,442.00 ",Legal Aid Payment Civil Representation
MINISTRY OF JUSTICE,LEGAL AID AGENCY,27/07/2016,Lower Crime,LEGAL AID FUND,CARTER OSBORNE LTD,1027096:144850972,"35,408.00 ",Legal Aid Payment Lower Crime
MINISTRY OF JUSTICE,LEGAL AID AGENCY,13/07/2016,Higher Crime,LEGAL AID FUND,WOODS SOLICITORS,1017369:144719533,"35,325.26 ",Legal Aid Payment Higher Crime
MINISTRY OF JUSTICE,LEGAL AID AGENCY,27/07/2016,Lower Crime,LEGAL AID FUND,BHATIA BEST LTD,1025435:144850315,"35,200.00 ",Legal Aid Payment Lower Crime
MINISTRY OF JUSTICE,LEGAL AID AGENCY,27/07/2016,Lower Crime,LEGAL AID FUND,GEOFFREY FORRESTER & CO,1027272:144850533,"35,100.00 ",Legal Aid Payment Lower Crime
MINISTRY OF JUSTICE,LEGAL AID AGENCY,13/07/2016,Civil Representation,LEGAL AID FUND,JOHN C R TUGHAN,1014917:144683503,"35,056.80 ",Legal Aid Payment Civil Representation
MINISTRY OF JUSTICE,LEGAL AID AGENCY,13/07/2016,Higher Crime,LEGAL AID FUND,TYRONE BELGER,1015139:144689650,"35,004.97 ",Legal Aid Payment Higher Crime
MINISTRY OF JUSTICE,LEGAL AID AGENCY,27/07/2016,Lower Crime,LEGAL AID FUND,CONNOR ROSS-BROWN SOLICITORS,1024371:144850858,"35,000.00 ",Legal Aid Payment Lower Crime
MINISTRY OF JUSTICE,LEGAL AID AGENCY,27/07/2016,Lower Crime,LEGAL AID FUND,JERMAN SAMUELS & PEARSON LLP,1023498:144850368,"35,000.00 ",Legal Aid Payment Lower Crime
MINISTRY OF JUSTICE,LEGAL AID AGENCY,27/07/2016,Lower Crime,LEGAL AID FUND,LAWRENCE & CO,1023721:144850476,"35,000.00 ",Legal Aid Payment Lower Crime
MINISTRY OF JUSTICE,LEGAL AID AGENCY,27/07/2016,Lower Crime,LEGAL AID FUND,LUMB & MACGILL,1026970:144850585,"35,000.00 ",Legal Aid Payment Lower Crime
MINISTRY OF JUSTICE,LEGAL AID AGENCY,27/07/2016,Lower Crime,LEGAL AID FUND,ROBERT LIZAR,1023764:144850674,"35,000.00 ",Legal Aid Payment Lower Crime
MINISTRY OF JUSTICE,LEGAL AID AGENCY,27/07/2016,Lower Crime,LEGAL AID FUND,ROSS SOLICITORS LTD,1027454:144850769,"35,000.00 ",Legal Aid Payment Lower Crime
MINISTRY OF JUSTICE,LEGAL AID AGENCY,27/07/2016,Civil Representation,LEGAL AID FUND,SMITH PARTNERSHIP,1026951:144802146,"34,950.24 ",Legal Aid Payment Civil Representation
MINISTRY OF JUSTICE,LEGAL AID AGENCY,27/07/2016,Lower Crime,LEGAL AID FUND,JONAS ROY BLOOM,1023381:144850804,"34,900.00 ",Legal Aid Payment Lower Crime
MINISTRY OF JUSTICE,LEGAL AID AGENCY,27/07/2016,Lower Crime,LEGAL AID FUND,STEPHEN RIMMER LLP,1025323:144850689,"34,900.00 ",Legal Aid Payment Lower Crime
MINISTRY OF JUSTICE,LEGAL AID AGENCY,27/07/2016,Lower Crime,LEGAL AID FUND,MORGAN CULLEN & BALL LTD,1022622:144851738,"34,811.00 ",Legal Aid Payment Lower Crime
MINISTRY OF JUSTICE,LEGAL AID AGENCY,27/07/2016,Higher Crime,LEGAL AID FUND,HODGE JONES & ALLEN LLP,1023909:144852992,"34,720.37 ",Legal Aid Payment Higher Crime
MINISTRY OF JUSTICE,LEGAL AID AGENCY,27/07/2016,Lower Crime,LEGAL AID FUND,ANGELA PORTER SOLICITORS,1023442:144851420,"34,690.00 ",Legal Aid Payment Lower Crime
MINISTRY OF JUSTICE,LEGAL AID AGENCY,27/07/2016,Lower Crime,LEGAL AID FUND,KESAR & CO SOLICITORS,1023256:144851690,"34,686.00 ",Legal Aid Payment Lower Crime
MINISTRY OF JUSTICE,LEGAL AID AGENCY,27/07/2016,Higher Crime,LEGAL AID FUND,SIMON A PENTOL,1023138:144798471,"34,650.36 ",Legal Aid Payment Higher Crime
MINISTRY OF JUSTICE,LEGAL AID AGENCY,13/07/2016,Higher Crime,LEGAL AID FUND,BLACKFORDS LLP,1017610:144666939,"34,648.45 ",Legal Aid Payment Higher Crime
MINISTRY OF JUSTICE,LEGAL AID AGENCY,06/07/2016,Civil Representation,LEGAL AID FUND,ELIZABETH ISAACS QC,1012882:144595886,"34,645.20 ",Legal Aid Payment Civil Representation
MINISTRY OF JUSTICE,LEGAL AID AGENCY,27/07/2016,Higher Crime,LEGAL AID FUND,JAMES F KEELEY,1026567:144797996,"34,598.24 ",Legal Aid Payment Higher Crime
MINISTRY OF JUSTICE,LEGAL AID AGENCY,13/07/2016,Higher Crime,LEGAL AID FUND,IMRAN KHAN & PARTNERS,1016622:144719872,"34,538.83 ",Legal Aid Payment Higher Crime
MINISTRY OF JUSTICE,LEGAL AID AGENCY,13/07/2016,Higher Crime,LEGAL AID FUND,OLLIERS,1014454:144725635,"34,465.02 ",Legal Aid Payment Higher Crime
MINISTRY OF JUSTICE,LEGAL AID AGENCY,20/07/2016,Civil Representation,LEGAL AID FUND,GILLIAN TEMPLE-BONE,1020401:144693833,"34,450.51 ",Legal Aid Payment Civil Representation
MINISTRY OF JUSTICE,LEGAL AID AGENCY,27/07/2016,Lower Crime,LEGAL AID FUND,REEVES  & CO SOLICITORS,1023302:144851370,"34,405.00 ",Legal Aid Payment Lower Crime
MINISTRY OF JUSTICE,LEGAL AID AGENCY,27/07/2016,Lower Crime,LEGAL AID FUND,BRADY EASTWOOD PIERCE & STEWART,1025742:144851117,"34,350.00 ",Legal Aid Payment Lower Crime
MINISTRY OF JUSTICE,LEGAL AID AGENCY,06/07/2016,Higher Crime,LEGAL AID FUND,KANGS SOLICITORS,1013359:144615255,"34,311.85 ",Legal Aid Payment Higher Crime
MINISTRY OF JUSTICE,LEGAL AID AGENCY,27/07/2016,Lower Crime,LEGAL AID FUND,GHP LEGAL,1027073:144850304,"34,300.00 ",Legal Aid Payment Lower Crime
MINISTRY OF JUSTICE,LEGAL AID AGENCY,27/07/2016,Legal Help,LEGAL AID FUND,SUTOVIC & HARTIGAN,1025741:144849204,"34,300.00 ",Legal Aid Payment Legal Help
MINISTRY OF JUSTICE,LEGAL AID AGENCY,27/07/2016,Lower Crime,LEGAL AID FUND,CROWE HUMBLE WESENCRAFT,1025227:144850540,"34,200.00 ",Legal Aid Payment Lower Crime
MINISTRY OF JUSTICE,LEGAL AID AGENCY,27/07/2016,Lower Crime,LEGAL AID FUND,EBR ATTRIDGE LLP,1025172:144850424,"34,200.00 ",Legal Aid Payment Lower Crime
MINISTRY OF JUSTICE,LEGAL AID AGENCY,06/07/2016,Higher Crime,LEGAL AID FUND,HEDLEY SOLICITORS,1010103:144654298,"34,167.89 ",Legal Aid Payment Higher Crime
MINISTRY OF JUSTICE,LEGAL AID AGENCY,27/07/2016,Higher Crime,LEGAL AID FUND,DASS SOLICITORS,1023297:144862707,"34,126.36 ",Legal Aid Payment Higher Crime
MINISTRY OF JUSTICE,LEGAL AID AGENCY,27/07/2016,Lower Crime,LEGAL AID FUND,DAVID AKE & CO,1023706:144851259,"34,099.00 ",Legal Aid Payment Lower Crime
MINISTRY OF JUSTICE,LEGAL AID AGENCY,20/07/2016,Higher Crime,LEGAL AID FUND,LEON KAZAKOS,1021359:144766492,"34,033.68 ",Legal Aid Payment Higher Crime
MINISTRY OF JUSTICE,LEGAL AID AGENCY,27/07/2016,Lower Crime,LEGAL AID FUND,TEESSIDE LAW LTD,1024139:144851771,"34,030.00 ",Legal Aid Payment Lower Crime
MINISTRY OF JUSTICE,LEGAL AID AGENCY,13/07/2016,Higher Crime,LEGAL AID FUND,"OWEN & SHARPE, SOLICITORS",1014395:144700857,"34,009.01 ",Legal Aid Payment Higher Crime
MINISTRY OF JUSTICE,LEGAL AID AGENCY,27/07/2016,Lower Crime,LEGAL AID FUND,MARTYN HEWETT,1023964:144850691,"33,900.00 ",Legal Aid Payment Lower Crime
MINISTRY OF JUSTICE,LEGAL AID AGENCY,27/07/2016,Higher Crime,LEGAL AID FUND,ANDREW JEFFERIES QC,1024613:144853509,"33,830.95 ",Legal Aid Payment Higher Crime
MINISTRY OF JUSTICE,LEGAL AID AGENCY,06/07/2016,Higher Crime,LEGAL AID FUND,KANGS SOLICITORS,1013359:144634113,"33,720.40 ",Legal Aid Payment Higher Crime
MINISTRY OF JUSTICE,LEGAL AID AGENCY,13/07/2016,Higher Crime,LEGAL AID FUND,SAKHI LEGAL SERVICES LTD,1017292:144690255,"33,718.01 ",Legal Aid Payment Higher Crime
MINISTRY OF JUSTICE,LEGAL AID AGENCY,06/07/2016,Higher Crime,LEGAL AID FUND,REEDS SOLICITORS LTD-ADVOCATE,1010913:144602897,"33,710.76 ",Legal Aid Payment Higher Crime
MINISTRY OF JUSTICE,LEGAL AID AGENCY,20/07/2016,Civil Representation,LEGAL AID FUND,BRETHERTONS LLP,1019844:144751062,"33,600.96 ",Legal Aid Payment Civil Representation
MINISTRY OF JUSTICE,LEGAL AID AGENCY,27/07/2016,Lower Crime,LEGAL AID FUND,WALKER LAHIVE,1025449:144851439,"33,491.00 ",Legal Aid Payment Lower Crime
MINISTRY OF JUSTICE,LEGAL AID AGENCY,13/07/2016,Higher Crime,LEGAL AID FUND,BWS SOLICITORS,1016296:144666427,"33,428.98 ",Legal Aid Payment Higher Crime
MINISTRY OF JUSTICE,LEGAL AID AGENCY,20/07/2016,Civil Representation,LEGAL AID FUND,KATIE PHILLIPS,1021493:144750110,"33,399.43 ",Legal Aid Payment Civil Representation
MINISTRY OF JUSTICE,LEGAL AID AGENCY,13/07/2016,Civil Representation,LEGAL AID FUND,HOPKINS LAW LTD,1014320:144671039,"33,370.54 ",Legal Aid Payment Civil Representation
MINISTRY OF JUSTICE,LEGAL AID AGENCY,27/07/2016,Lower Crime,LEGAL AID FUND,STEVEN YOUNG & CO INC ROWBIS,1025262:144851461,"33,361.00 ",Legal Aid Payment Lower Crime
MINISTRY OF JUSTICE,LEGAL AID AGENCY,06/07/2016,Civil Representation,LEGAL AID FUND,GRAHAME STOWE BATESON,1009272:144659740,"33,343.98 ",Legal Aid Payment Civil Representation
MINISTRY OF JUSTICE,LEGAL AID AGENCY,27/07/2016,Lower Crime,LEGAL AID FUND,SMITH PARTNERSHIP,1026950:144850338,"33,300.00 ",Legal Aid Payment Lower Crime
MINISTRY OF JUSTICE,LEGAL AID AGENCY,27/07/2016,Lower Crime,LEGAL AID FUND,FORBES SOLICITORS,1025383:144850645,"33,100.00 ",Legal Aid Payment Lower Crime
MINISTRY OF JUSTICE,LEGAL AID AGENCY,13/07/2016,Civil Representation,LEGAL AID FUND,BRENDAN FLEMING SOLICITORS,1015563:144692938,"32,930.84 ",Legal Aid Payment Civil Representation
MINISTRY OF JUSTICE,LEGAL AID AGENCY,27/07/2016,Lower Crime,LEGAL AID FUND,NEEDHAM POULIER LTD,1023549:144851153,"32,923.00 ",Legal Aid Payment Lower Crime
MINISTRY OF JUSTICE,LEGAL AID AGENCY,13/07/2016,Civil Representation,LEGAL AID FUND,DAVID CENNYDD RICHARDS,1016961:144671925,"32,788.80 ",Legal Aid Payment Civil Representation
MINISTRY OF JUSTICE,LEGAL AID AGENCY,27/07/2016,Lower Crime,LEGAL AID FUND,HASKELL & CO,1026855:144851367,"32,528.00 ",Legal Aid Payment Lower Crime
MINISTRY OF JUSTICE,LEGAL AID AGENCY,06/07/2016,Civil Representation,LEGAL AID FUND,LINDSAY E ADAMS,1009848:144611407,"32,491.80 ",Legal Aid Payment Civil Representation
MINISTRY OF JUSTICE,LEGAL AID AGENCY,13/07/2016,Higher Crime,LEGAL AID FUND,HUSSAIN SOLICITORS LTD,1016294:144720035,"32,486.40 ",Legal Aid Payment Higher Crime
MINISTRY OF JUSTICE,LEGAL AID AGENCY,27/07/2016,Lower Crime,LEGAL AID FUND,"GAMMON,PIERCY & GAIGER",1025696:144851396,"32,486.00 ",Legal Aid Payment Lower Crime
MINISTRY OF JUSTICE,LEGAL AID AGENCY,27/07/2016,Lower Crime,LEGAL AID FUND,EDWARD FAIL BRADSHAW & WATERSON,1023960:144851149,"32,472.00 ",Legal Aid Payment Lower Crime
MINISTRY OF JUSTICE,LEGAL AID AGENCY,06/07/2016,Higher Crime,LEGAL AID FUND,M & N SOLICITORS [ADVOCATE],1012390:144615058,"32,445.55 ",Legal Aid Payment Higher Crime
MINISTRY OF JUSTICE,LEGAL AID AGENCY,20/07/2016,Legal Help,LEGAL AID FUND,THE COMMUNITY LAW PARTNERSHIP LTD,1020623:144780082,"32,369.22 ",Legal Aid Payment Legal Help
MINISTRY OF JUSTICE,LEGAL AID AGENCY,27/07/2016,Legal Help,LEGAL AID FUND,LEI DAT BAIG SOLICITORS LIMITED,1024997:144849973,"32,302.00 ",Legal Aid Payment Legal Help
MINISTRY OF JUSTICE,LEGAL AID AGENCY,27/07/2016,Lower Crime,LEGAL AID FUND,HORSMAN SOLICITORS LTD,1025523:144851371,"32,299.00 ",Legal Aid Payment Lower Crime
MINISTRY OF JUSTICE,LEGAL AID AGENCY,27/07/2016,Legal Help,LEGAL AID FUND,MIGRANT LEGAL PROJECT,1022358:144850162,"32,253.00 ",Legal Aid Payment Legal Help
MINISTRY OF JUSTICE,LEGAL AID AGENCY,27/07/2016,Lower Crime,LEGAL AID FUND,HILL TWINE,1022394:144851763,"32,248.00 ",Legal Aid Payment Lower Crime
MINISTRY OF JUSTICE,LEGAL AID AGENCY,27/07/2016,Legal Help,LEGAL AID FUND,O'DONNELLS SOLICITORS,1023560:144849711,"32,192.00 ",Legal Aid Payment Legal Help
MINISTRY OF JUSTICE,LEGAL AID AGENCY,13/07/2016,Higher Crime,LEGAL AID FUND,JENNIFER M P DEMPSTER,1017086:144666655,"32,129.66 ",Legal Aid Payment Higher Crime
MINISTRY OF JUSTICE,LEGAL AID AGENCY,27/07/2016,Legal Help,LEGAL AID FUND,STEPHENSONS SOLICITORS LLP,1023843:144794283,"32,088.72 ",Legal Aid Payment Legal Help
MINISTRY OF JUSTICE,LEGAL AID AGENCY,13/07/2016,Higher Crime,LEGAL AID FUND,DAVID  MILLER,1013749:144667677,"31,975.90 ",Legal Aid Payment Higher Crime
MINISTRY OF JUSTICE,LEGAL AID AGENCY,27/07/2016,Higher Crime,LEGAL AID FUND,COBLEYS LLP,1023527:144798491,"31,965.10 ",Legal Aid Payment Higher Crime
MINISTRY OF JUSTICE,LEGAL AID AGENCY,27/07/2016,Legal Help,LEGAL AID FUND,ROBERT LIZAR,1023764:144850007,"31,916.00 ",Legal Aid Payment Legal Help
MINISTRY OF JUSTICE,LEGAL AID AGENCY,27/07/2016,Lower Crime,LEGAL AID FUND,GRAHAM EVANS & PARTNERS LLP,1025629:144850295,"31,900.00 ",Legal Aid Payment Lower Crime
MINISTRY OF JUSTICE,LEGAL AID AGENCY,27/07/2016,Higher Crime,LEGAL AID FUND,LISA HANCOX,1022440:144819146,"31,871.50 ",Legal Aid Payment Higher Crime
MINISTRY OF JUSTICE,LEGAL AID AGENCY,06/07/2016,Higher Crime,LEGAL AID FUND,BARK & CO,1011917:144624064,"31,849.94 ",Legal Aid Payment Higher Crime
MINISTRY OF JUSTICE,LEGAL AID AGENCY,06/07/2016,Civil Representation,LEGAL AID FUND,EVANS MAIN SOLICITORS,1012987:144662090,"31,824.23 ",Legal Aid Payment Civil Representation
MINISTRY OF JUSTICE,LEGAL AID AGENCY,20/07/2016,Civil Representation,LEGAL AID FUND,FRENCH & CO,1020755:143671510,"31,815.68 ",Legal Aid Payment Civil Representation
MINISTRY OF JUSTICE,LEGAL AID AGENCY,06/07/2016,Higher Crime,LEGAL AID FUND,GALBRAITH BRANLEY SOLICITORS-SOLICITOR ADVOCATE,1012365:144624114,"31,782.48 ",Legal Aid Payment Higher Crime
MINISTRY OF JUSTICE,LEGAL AID AGENCY,27/07/2016,Legal Help,LEGAL AID FUND,DONOVAN NEWTON SOLICITORS,1026832:144849771,"31,775.00 ",Legal Aid Payment Legal Help
MINISTRY OF JUSTICE,LEGAL AID AGENCY,27/07/2016,Higher Crime,LEGAL AID FUND,HODGE JONES & ALLEN LLP,1023909:144802897,"31,731.06 ",Legal Aid Payment Higher Crime
MINISTRY OF JUSTICE,LEGAL AID AGENCY,27/07/2016,Lower Crime,LEGAL AID FUND,G T STEWART SOLICITORS,1025100:144851616,"31,713.00 ",Legal Aid Payment Lower Crime
MINISTRY OF JUSTICE,LEGAL AID AGENCY,27/07/2016,Lower Crime,LEGAL AID FUND,NUMBER ONE LAW LLP,1025065:144851538,"31,709.00 ",Legal Aid Payment Lower Crime
MINISTRY OF JUSTICE,LEGAL AID AGENCY,27/07/2016,Legal Help,LEGAL AID FUND,DAVID GRAY LLP,1026968:144849756,"31,627.00 ",Legal Aid Payment Legal Help
MINISTRY OF JUSTICE,LEGAL AID AGENCY,13/07/2016,Higher Crime,LEGAL AID FUND,OWEN WHITE & CATLIN,1016605:144667265,"31,588.26 ",Legal Aid Payment Higher Crime
MINISTRY OF JUSTICE,LEGAL AID AGENCY,27/07/2016,Lower Crime,LEGAL AID FUND,BOND JOSEPH,1025238:144851375,"31,555.00 ",Legal Aid Payment Lower Crime
MINISTRY OF JUSTICE,LEGAL AID AGENCY,13/07/2016,Civil Representation,LEGAL AID FUND,ANTHONY COLLINS LLP,1015537:144712467,"31,547.56 ",Legal Aid Payment Civil Representation
MINISTRY OF JUSTICE,LEGAL AID AGENCY,27/07/2016,Lower Crime,LEGAL AID FUND,GLAISYERS LLP,1023391:144851491,"31,525.00 ",Legal Aid Payment Lower Crime
MINISTRY OF JUSTICE,LEGAL AID AGENCY,27/07/2016,Lower Crime,LEGAL AID FUND,DRISCOLL YOUNG SOLICITORS LIMITED,1027044:144850900,"31,495.00 ",Legal Aid Payment Lower Crime
MINISTRY OF JUSTICE,LEGAL AID AGENCY,27/07/2016,Lower Crime,LEGAL AID FUND,MCSORLEY LEWIS LAW LTD,1023865:144850922,"31,406.00 ",Legal Aid Payment Lower Crime
MINISTRY OF JUSTICE,LEGAL AID AGENCY,06/07/2016,Higher Crime,LEGAL AID FUND,ROY BROWN,1012619:144634357,"31,402.37 ",Legal Aid Payment Higher Crime
MINISTRY OF JUSTICE,LEGAL AID AGENCY,27/07/2016,Higher Crime,LEGAL AID FUND,A TOBY HEDWORTH QC,1026669:144853405,"31,353.18 ",Legal Aid Payment Higher Crime
MINISTRY OF JUSTICE,LEGAL AID AGENCY,27/07/2016,Lower Crime,LEGAL AID FUND,SCOTT-MONCRIEFF & ASSOCIATES LLP,1023982:144851122,"31,267.00 ",Legal Aid Payment Lower Crime
MINISTRY OF JUSTICE,LEGAL AID AGENCY,27/07/2016,Lower Crime,LEGAL AID FUND,GURNEY HARDEN SOLICITORS,1025031:144851369,"31,252.00 ",Legal Aid Payment Lower Crime
MINISTRY OF JUSTICE,LEGAL AID AGENCY,20/07/2016,Civil Representation,LEGAL AID FUND,ALEV A GIZ,1020411:144759679,"31,186.89 ",Legal Aid Payment Civil Representation
MINISTRY OF JUSTICE,LEGAL AID AGENCY,20/07/2016,Higher Crime,LEGAL AID FUND,JOHN C ELVIDGE QC,1020447:144787552,"31,105.97 ",Legal Aid Payment Higher Crime
MINISTRY OF JUSTICE,LEGAL AID AGENCY,27/07/2016,Lower Crime,LEGAL AID FUND,HARRIS SOLICITORS,1026768:144851640,"31,104.00 ",Legal Aid Payment Lower Crime
MINISTRY OF JUSTICE,LEGAL AID AGENCY,27/07/2016,Lower Crime,LEGAL AID FUND,COTISENS SOLICITORS,1025267:144845760,"31,049.00 ",Legal Aid Payment Lower Crime
MINISTRY OF JUSTICE,LEGAL AID AGENCY,27/07/2016,Lower Crime,LEGAL AID FUND,BLACKWELLS,1026961:144850586,"31,000.00 ",Legal Aid Payment Lower Crime
MINISTRY OF JUSTICE,LEGAL AID AGENCY,27/07/2016,Lower Crime,LEGAL AID FUND,RODNEY WARREN & CO LTD,1027407:144850686,"31,000.00 ",Legal Aid Payment Lower Crime
MINISTRY OF JUSTICE,LEGAL AID AGENCY,27/07/2016,Lower Crime,LEGAL AID FUND,TATES,1023660:144850599,"31,000.00 ",Legal Aid Payment Lower Crime
MINISTRY OF JUSTICE,LEGAL AID AGENCY,13/07/2016,Higher Crime,LEGAL AID FUND,CARTWRIGHT KING SOLICITORS,1016309:144720565,"30,993.48 ",Legal Aid Payment Higher Crime
MINISTRY OF JUSTICE,LEGAL AID AGENCY,13/07/2016,Higher Crime,LEGAL AID FUND,VEDRANA PEHAR,1017216:144690037,"30,971.40 ",Legal Aid Payment Higher Crime
MINISTRY OF JUSTICE,LEGAL AID AGENCY,06/07/2016,Higher Crime,LEGAL AID FUND,UK LAW,1011465:144615578,"30,949.27 ",Legal Aid Payment Higher Crime
MINISTRY OF JUSTICE,LEGAL AID AGENCY,27/07/2016,Higher Crime,LEGAL AID FUND,DASS SOLICITORS,1023297:144862599,"30,933.52 ",Legal Aid Payment Higher Crime
MINISTRY OF JUSTICE,LEGAL AID AGENCY,27/07/2016,Lower Crime,LEGAL AID FUND,ALDERSON LAW LLP,1022392:144850861,"30,800.00 ",Legal Aid Payment Lower Crime
MINISTRY OF JUSTICE,LEGAL AID AGENCY,13/07/2016,Higher Crime,LEGAL AID FUND,JBR MORGAN LTD,1016187:144702149,"30,760.67 ",Legal Aid Payment Higher Crime
MINISTRY OF JUSTICE,LEGAL AID AGENCY,06/07/2016,Higher Crime,LEGAL AID FUND,DOUGLAS H DAY QC,1009743:144489291,"30,749.48 ",Legal Aid Payment Higher Crime
MINISTRY OF JUSTICE,LEGAL AID AGENCY,27/07/2016,Civil Representation,LEGAL AID FUND,DANIEL S FRIEDMAN,1022886:144804153,"30,693.60 ",Legal Aid Payment Civil Representation
MINISTRY OF JUSTICE,LEGAL AID AGENCY,06/07/2016,Higher Crime,LEGAL AID FUND,ABIGAIL BACHE,1009681:144603825,"30,665.17 ",Legal Aid Payment Higher Crime
MINISTRY OF JUSTICE,LEGAL AID AGENCY,27/07/2016,Lower Crime,LEGAL AID FUND,RICHARD HASWELL SOLICITORS LLP,1025544:144851202,"30,661.00 ",Legal Aid Payment Lower Crime
MINISTRY OF JUSTICE,LEGAL AID AGENCY,13/07/2016,Higher Crime,LEGAL AID FUND,JOSEPH HILL & CO-ADVOCATE,1017177:144666444,"30,615.10 ",Legal Aid Payment Higher Crime
MINISTRY OF JUSTICE,LEGAL AID AGENCY,27/07/2016,Lower Crime,LEGAL AID FUND,LLOYD & ROWE,1027397:144850299,"30,600.00 ",Legal Aid Payment Lower Crime
MINISTRY OF JUSTICE,LEGAL AID AGENCY,20/07/2016,Higher Crime,LEGAL AID FUND,STEVENS SOLICITORS,1020889:144785992,"30,589.74 ",Legal Aid Payment Higher Crime
MINISTRY OF JUSTICE,LEGAL AID AGENCY,27/07/2016,Legal Help,LEGAL AID FUND,CONFREYS,1023858:144849504,"30,521.00 ",Legal Aid Payment Legal Help
MINISTRY OF JUSTICE,LEGAL AID AGENCY,06/07/2016,Civil Representation,LEGAL AID FUND,ALEX BURRETT,1011170:144495958,"30,504.87 ",Legal Aid Payment Civil Representation
MINISTRY OF JUSTICE,LEGAL AID AGENCY,27/07/2016,Lower Crime,LEGAL AID FUND,TUCKERS SOLICITORS LLP,1024157:144850864,"30,500.00 ",Legal Aid Payment Lower Crime
MINISTRY OF JUSTICE,LEGAL AID AGENCY,13/07/2016,Civil Representation,LEGAL AID FUND,JEREMY G ROSENBLATT,1016027:143859108,"30,480.00 ",Legal Aid Payment Civil Representation
MINISTRY OF JUSTICE,LEGAL AID AGENCY,06/07/2016,Higher Crime,LEGAL AID FUND,ZARIF KHAN,1011098:144654259,"30,381.84 ",Legal Aid Payment Higher Crime
MINISTRY OF JUSTICE,LEGAL AID AGENCY,20/07/2016,Higher Crime,LEGAL AID FUND,JOHN ONIONS SOLICITORS,1019846:144787114,"30,351.53 ",Legal Aid Payment Higher Crime
MINISTRY OF JUSTICE,LEGAL AID AGENCY,20/07/2016,Higher Crime,LEGAL AID FUND,BLASER MILLS LLP,1022104:144732794,"30,335.14 ",Legal Aid Payment Higher Crime
MINISTRY OF JUSTICE,LEGAL AID AGENCY,27/07/2016,Lower Crime,LEGAL AID FUND,GALBRAITH BRANLEY SOLICITORS,1025393:144851092,"30,317.00 ",Legal Aid Payment Lower Crime
MINISTRY OF JUSTICE,LEGAL AID AGENCY,27/07/2016,Lower Crime,LEGAL AID FUND,JAMES MURRAY SOLICITORS,1027008:144851168,"30,313.00 ",Legal Aid Payment Lower Crime
MINISTRY OF JUSTICE,LEGAL AID AGENCY,27/07/2016,Lower Crime,LEGAL AID FUND,HAYES LAW SOLICITORS AND ADVOCATES LLP,1022550:144851774,"30,268.00 ",Legal Aid Payment Lower Crime
MINISTRY OF JUSTICE,LEGAL AID AGENCY,27/07/2016,Higher Crime,LEGAL AID FUND,B H MOHAMMED,1023901:144818175,"30,263.93 ",Legal Aid Payment Higher Crime
MINISTRY OF JUSTICE,LEGAL AID AGENCY,06/07/2016,Higher Crime,LEGAL AID FUND,IRVINE THANVI NATAS SOLICITORS-ADVOCATE,1012282:144625525,"30,169.76 ",Legal Aid Payment Higher Crime
MINISTRY OF JUSTICE,LEGAL AID AGENCY,13/07/2016,Lower Crime,LEGAL AID FUND,THE JOHNSON PARTNERSHIP,1016442:144686494,"30,148.51 ",Legal Aid Payment Lower Crime
MINISTRY OF JUSTICE,LEGAL AID AGENCY,27/07/2016,Lower Crime,LEGAL AID FUND,REEDS SOLICITORS LTD,1026775:144851584,"30,098.00 ",Legal Aid Payment Lower Crime
MINISTRY OF JUSTICE,LEGAL AID AGENCY,27/07/2016,Civil Representation,LEGAL AID FUND,ALLETSONS LTD,1025463:144783039,"30,000.00 ",Legal Aid Payment Civil Representation
MINISTRY OF JUSTICE,LEGAL AID AGENCY,27/07/2016,Lower Crime,LEGAL AID FUND,CRIMINAL DEFENCE ASSOCIATES,1026890:144850348,"30,000.00 ",Legal Aid Payment Lower Crime
MINISTRY OF JUSTICE,LEGAL AID AGENCY,27/07/2016,Lower Crime,LEGAL AID FUND,MCGRATH & CO SOLICITORS,1023383:144850803,"30,000.00 ",Legal Aid Payment Lower Crime
MINISTRY OF JUSTICE,LEGAL AID AGENCY,27/07/2016,Lower Crime,LEGAL AID FUND,PALMERS CRIMINAL DEFENCE SOLICITORS,1026806:144850692,"30,000.00 ",Legal Aid Payment Lower Crime
MINISTRY OF JUSTICE,LEGAL AID AGENCY,27/07/2016,Lower Crime,LEGAL AID FUND,POOLE ALCOCK LLP,1023576:144850632,"30,000.00 ",Legal Aid Payment Lower Crime
MINISTRY OF JUSTICE,LEGAL AID AGENCY,27/07/2016,Lower Crime,LEGAL AID FUND,SUSSEX DEFENCE SOLICITORS,1023287:144850706,"30,000.00 ",Legal Aid Payment Lower Crime
MINISTRY OF JUSTICE,LEGAL AID AGENCY,27/07/2016,Lower Crime,LEGAL AID FUND,BURTON COPELAND LLP,1023651:144851353,"29,996.00 ",Legal Aid Payment Lower Crime
MINISTRY OF JUSTICE,LEGAL AID AGENCY,20/07/2016,Higher Crime,LEGAL AID FUND,DAFYDD H ENOCH QC,1020386:144787155,"29,937.04 ",Legal Aid Payment Higher Crime
MINISTRY OF JUSTICE,LEGAL AID AGENCY,06/07/2016,Civil Representation,LEGAL AID FUND,LISA J THOMAS,1009310:144607243,"29,905.20 ",Legal Aid Payment Civil Representation
MINISTRY OF JUSTICE,LEGAL AID AGENCY,20/07/2016,Civil Representation,LEGAL AID FUND,VANESSA V MEACHIN,1018223:3000000643730024,"29,894.40 ",Legal Aid Payment Civil Representation
MINISTRY OF JUSTICE,LEGAL AID AGENCY,13/07/2016,Higher Crime,LEGAL AID FUND,GOLDKORNS,1016589:144667337,"29,884.85 ",Legal Aid Payment Higher Crime
MINISTRY OF JUSTICE,LEGAL AID AGENCY,06/07/2016,Higher Crime,LEGAL AID FUND,BROOKLYN SOLICITORS LTD,1012995:144609941,"29,820.00 ",Legal Aid Payment Higher Crime
MINISTRY OF JUSTICE,LEGAL AID AGENCY,13/07/2016,Higher Crime,LEGAL AID FUND,JONAS ROY BLOOM,1016350:144720014,"29,779.94 ",Legal Aid Payment Higher Crime
MINISTRY OF JUSTICE,LEGAL AID AGENCY,27/07/2016,Lower Crime,LEGAL AID FUND,CARTWRIGHT KING SOLICITORS,1023254:144851573,"29,767.00 ",Legal Aid Payment Lower Crime
MINISTRY OF JUSTICE,LEGAL AID AGENCY,27/07/2016,Lower Crime,LEGAL AID FUND,GUNEY CLARK & RYAN LTD CO,1025154:144851110,"29,723.00 ",Legal Aid Payment Lower Crime
MINISTRY OF JUSTICE,LEGAL AID AGENCY,27/07/2016,Lower Crime,LEGAL AID FUND,OSLERS SOLICITORS,1025038:144850377,"29,700.00 ",Legal Aid Payment Lower Crime
MINISTRY OF JUSTICE,LEGAL AID AGENCY,20/07/2016,Higher Crime,LEGAL AID FUND,CARTER MOORE SOLICITORS LTD,1018519:144732079,"29,664.55 ",Legal Aid Payment Higher Crime
MINISTRY OF JUSTICE,LEGAL AID AGENCY,27/07/2016,Lower Crime,LEGAL AID FUND,RMNJ SOLICITORS ***,1023613:144851164,"29,607.00 ",Legal Aid Payment Lower Crime
MINISTRY OF JUSTICE,LEGAL AID AGENCY,20/07/2016,Higher Crime,LEGAL AID FUND,ALEXIA POWER,1020334:144731682,"29,560.94 ",Legal Aid Payment Higher Crime
MINISTRY OF JUSTICE,LEGAL AID AGENCY,27/07/2016,Lower Crime,LEGAL AID FUND,TAYLOR HALDANE BARLEX LLP,1027047:144851035,"29,517.00 ",Legal Aid Payment Lower Crime
MINISTRY OF JUSTICE,LEGAL AID AGENCY,27/07/2016,Lower Crime,LEGAL AID FUND,STEPHEN BURDON SOLICITORS,1023491:144850332,"29,500.00 ",Legal Aid Payment Lower Crime
MINISTRY OF JUSTICE,LEGAL AID AGENCY,27/07/2016,Lower Crime,LEGAL AID FUND,WATSON WOODHOUSE SOLICITORS LLP,1025567:144850521,"29,500.00 ",Legal Aid Payment Lower Crime
MINISTRY OF JUSTICE,LEGAL AID AGENCY,27/07/2016,Lower Crime,LEGAL AID FUND,LINSKILLS,1023486:144851174,"29,478.00 ",Legal Aid Payment Lower Crime
MINISTRY OF JUSTICE,LEGAL AID AGENCY,27/07/2016,Civil Representation,LEGAL AID FUND,QUALITYSOLICITORS HPJV,1025627:144761969,"29,455.40 ",Legal Aid Payment Civil Representation
MINISTRY OF JUSTICE,LEGAL AID AGENCY,27/07/2016,Lower Crime,LEGAL AID FUND,HINE SOLICITORS,1026758:144851619,"29,267.00 ",Legal Aid Payment Lower Crime
MINISTRY OF JUSTICE,LEGAL AID AGENCY,27/07/2016,Lower Crime,LEGAL AID FUND,VHS FLETCHERS,1022251:144850875,"29,200.00 ",Legal Aid Payment Lower Crime
MINISTRY OF JUSTICE,LEGAL AID AGENCY,20/07/2016,Higher Crime,LEGAL AID FUND,STERNBERG REED SOLICITORS,1018563:144732761,"29,191.25 ",Legal Aid Payment Higher Crime
MINISTRY OF JUSTICE,LEGAL AID AGENCY,20/07/2016,Higher Crime,LEGAL AID FUND,CARTER MOORE SOLICITORS LTD,1018519:144732025,"29,177.64 ",Legal Aid Payment Higher Crime
MINISTRY OF JUSTICE,LEGAL AID AGENCY,27/07/2016,Legal Help,LEGAL AID FUND,IRIS LAW SOLICITORS,1023259:144849972,"29,171.00 ",Legal Aid Payment Legal Help
MINISTRY OF JUSTICE,LEGAL AID AGENCY,27/07/2016,Higher Crime,LEGAL AID FUND,BREYDONS SOLICITORS LTD,1025868:144853470,"29,168.12 ",Legal Aid Payment Higher Crime
MINISTRY OF JUSTICE,LEGAL AID AGENCY,06/07/2016,Higher Crime,LEGAL AID FUND,BRIAN L ST LOUIS,1012335:144603757,"29,116.82 ",Legal Aid Payment Higher Crime
MINISTRY OF JUSTICE,LEGAL AID AGENCY,27/07/2016,Legal Help,LEGAL AID FUND,RUDLINGS & WAKELAM,1027162:144849108,"29,100.00 ",Legal Aid Payment Legal Help
MINISTRY OF JUSTICE,LEGAL AID AGENCY,06/07/2016,Higher Crime,LEGAL AID FUND,GRAHAM EVANS & PARTNERS LLP,1013283:144634342,"29,012.23 ",Legal Aid Payment Higher Crime
MINISTRY OF JUSTICE,LEGAL AID AGENCY,13/07/2016,Higher Crime,LEGAL AID FUND,FORBES SOLICITORS,1014436:144719583,"29,002.13 ",Legal Aid Payment Higher Crime
MINISTRY OF JUSTICE,LEGAL AID AGENCY,27/07/2016,Lower Crime,LEGAL AID FUND,OBW PERERA LTD,1023424:144850382,"29,000.00 ",Legal Aid Payment Lower Crime
MINISTRY OF JUSTICE,LEGAL AID AGENCY,27/07/2016,Legal Help,LEGAL AID FUND,OTTEN PENNA LTD,1025356:144849235,"29,000.00 ",Legal Aid Payment Legal Help
MINISTRY OF JUSTICE,LEGAL AID AGENCY,27/07/2016,Lower Crime,LEGAL AID FUND,THE CASTLE PARTNERSHIP,1023571:144850696,"29,000.00 ",Legal Aid Payment Lower Crime
MINISTRY OF JUSTICE,LEGAL AID AGENCY,06/07/2016,Higher Crime,LEGAL AID FUND,ASHMANS SOLICITORS,1010102:144603789,"28,986.58 ",Legal Aid Payment Higher Crime
MINISTRY OF JUSTICE,LEGAL AID AGENCY,13/07/2016,Higher Crime,LEGAL AID FUND,SWINBURNE MADDISON LLP,1014510:144667413,"28,910.00 ",Legal Aid Payment Higher Crime
MINISTRY OF JUSTICE,LEGAL AID AGENCY,27/07/2016,Lower Crime,LEGAL AID FUND,CARTWRIGHT KING SOLICITORS,1025808:144850871,"28,900.00 ",Legal Aid Payment Lower Crime
MINISTRY OF JUSTICE,LEGAL AID AGENCY,27/07/2016,Higher Crime,LEGAL AID FUND,AITKEN HARTER,1026837:144798949,"28,832.83 ",Legal Aid Payment Higher Crime
MINISTRY OF JUSTICE,LEGAL AID AGENCY,13/07/2016,Civil Representation,LEGAL AID FUND,BHATIA BEST LTD,1015508:144695569,"28,820.85 ",Legal Aid Payment Civil Representation
MINISTRY OF JUSTICE,LEGAL AID AGENCY,13/07/2016,Civil Representation,LEGAL AID FUND,CONROYS SOLICITORS LLP,1014319:144599449,"28,800.00 ",Legal Aid Payment Civil Representation
MINISTRY OF JUSTICE,LEGAL AID AGENCY,27/07/2016,Higher Crime,LEGAL AID FUND,VALERIE J CHARBIT,1026329:144804657,"28,800.00 ",Legal Aid Payment Higher Crime
MINISTRY OF JUSTICE,LEGAL AID AGENCY,13/07/2016,Civil Representation,LEGAL AID FUND,HANNE & CO,1016587:144599538,"28,785.84 ",Legal Aid Payment Civil Representation
MINISTRY OF JUSTICE,LEGAL AID AGENCY,13/07/2016,Civil Representation,LEGAL AID FUND,STEPHEN CHIPPECK,1014081:144673608,"28,722.60 ",Legal Aid Payment Civil Representation
MINISTRY OF JUSTICE,LEGAL AID AGENCY,06/07/2016,Civil Representation,LEGAL AID FUND,SWITALSKI'S SOLICITORS LTD,1012923:144658716,"28,712.21 ",Legal Aid Payment Civil Representation
MINISTRY OF JUSTICE,LEGAL AID AGENCY,27/07/2016,Lower Crime,LEGAL AID FUND,SMITH PARTNERSHIP,1026952:144850809,"28,700.00 ",Legal Aid Payment Lower Crime
MINISTRY OF JUSTICE,LEGAL AID AGENCY,27/07/2016,Lower Crime,LEGAL AID FUND,KHATTAK SOLICITORS,1027240:144851277,"28,692.00 ",Legal Aid Payment Lower Crime
MINISTRY OF JUSTICE,LEGAL AID AGENCY,06/07/2016,Civil Representation,LEGAL AID FUND,D S LEGAL LTD,1012309:144661210,"28,626.97 ",Legal Aid Payment Civil Representation
MINISTRY OF JUSTICE,LEGAL AID AGENCY,27/07/2016,Civil Representation,LEGAL AID FUND,SALLY WILCOCK & CO,1026811:144844444,"28,616.27 ",Legal Aid Payment Civil Representation
MINISTRY OF JUSTICE,LEGAL AID AGENCY,27/07/2016,Lower Crime,LEGAL AID FUND,QUALITYSOLICITORS HPJV,1025627:144850899,"28,562.00 ",Legal Aid Payment Lower Crime
MINISTRY OF JUSTICE,LEGAL AID AGENCY,27/07/2016,Higher Crime,LEGAL AID FUND,FRAME SMITH SOLICITORS,1027002:144818470,"28,486.57 ",Legal Aid Payment Higher Crime
MINISTRY OF JUSTICE,LEGAL AID AGENCY,13/07/2016,Civil Representation,LEGAL AID FUND,JOHN C R TUGHAN,1014917:141898940,"28,485.00 ",Legal Aid Payment Civil Representation
MINISTRY OF JUSTICE,LEGAL AID AGENCY,20/07/2016,Higher Crime,LEGAL AID FUND,VICKERS CHISMAN & WISHLADE-ADVOCATE,1019062:144744305,"28,485.00 ",Legal Aid Payment Higher Crime
MINISTRY OF JUSTICE,LEGAL AID AGENCY,20/07/2016,Higher Crime,LEGAL AID FUND,UK LAW,1021669:144785865,"28,462.45 ",Legal Aid Payment Higher Crime
MINISTRY OF JUSTICE,LEGAL AID AGENCY,27/07/2016,Legal Help,LEGAL AID FUND,ELLIOTT BRIDGMAN LTD,1025387:144849359,"28,422.00 ",Legal Aid Payment Legal Help
MINISTRY OF JUSTICE,LEGAL AID AGENCY,27/07/2016,Lower Crime,LEGAL AID FUND,DPP LAW LTD,1023529:144850436,"28,400.00 ",Legal Aid Payment Lower Crime
MINISTRY OF JUSTICE,LEGAL AID AGENCY,13/07/2016,Civil Representation,LEGAL AID FUND,UK LAW,1016222:144695613,"28,395.30 ",Legal Aid Payment Civil Representation
MINISTRY OF JUSTICE,LEGAL AID AGENCY,27/07/2016,Higher Crime,LEGAL AID FUND,T V EDWARDS LLP,1025583:144810327,"28,386.54 ",Legal Aid Payment Higher Crime
MINISTRY OF JUSTICE,LEGAL AID AGENCY,06/07/2016,Higher Crime,LEGAL AID FUND,SAM ROBINSON,1011526:144634917,"28,368.89 ",Legal Aid Payment Higher Crime
MINISTRY OF JUSTICE,LEGAL AID AGENCY,20/07/2016,Legal Help,LEGAL AID FUND,DIRECT HELP & ADVICE LTD,1020676:144794205,"28,356.88 ",Legal Aid Payment Legal Help
MINISTRY OF JUSTICE,LEGAL AID AGENCY,13/07/2016,Civil Representation,LEGAL AID FUND,CAMERON JONES HUSSELL & HOWE,1016477:144671783,"28,355.18 ",Legal Aid Payment Civil Representation
MINISTRY OF JUSTICE,LEGAL AID AGENCY,27/07/2016,Legal Help,LEGAL AID FUND,GRAHAME STOWE BATESON,1025282:144849587,"28,338.00 ",Legal Aid Payment Legal Help
MINISTRY OF JUSTICE,LEGAL AID AGENCY,27/07/2016,Higher Crime,LEGAL AID FUND,SMITH PARTNERSHIP-ADVOCATE,1022630:144809518,"28,316.38 ",Legal Aid Payment Higher Crime
MINISTRY OF JUSTICE,LEGAL AID AGENCY,06/07/2016,Higher Crime,LEGAL AID FUND,POOLE ALCOCK LLP,1013098:144634861,"28,239.69 ",Legal Aid Payment Higher Crime
MINISTRY OF JUSTICE,LEGAL AID AGENCY,06/07/2016,Civil Representation,LEGAL AID FUND,DAISY HUGHES,1011281:144628191,"28,220.40 ",Legal Aid Payment Civil Representation
MINISTRY OF JUSTICE,LEGAL AID AGENCY,13/07/2016,Higher Crime,LEGAL AID FUND,PAINTERS,1015601:144719532,"28,195.33 ",Legal Aid Payment Higher Crime
MINISTRY OF JUSTICE,LEGAL AID AGENCY,27/07/2016,Higher Crime,LEGAL AID FUND,NEWGATE SOLICITORS-ADVOCATE,1024456:144830168,"28,191.60 ",Legal Aid Payment Higher Crime
MINISTRY OF JUSTICE,LEGAL AID AGENCY,27/07/2016,Higher Crime,LEGAL AID FUND,UK LAW,1024978:144809214,"28,159.97 ",Legal Aid Payment Higher Crime
MINISTRY OF JUSTICE,LEGAL AID AGENCY,20/07/2016,Higher Crime,LEGAL AID FUND,JOHN R MCDERMOTT QC,1019283:144744525,"28,123.09 ",Legal Aid Payment Higher Crime
MINISTRY OF JUSTICE,LEGAL AID AGENCY,27/07/2016,Lower Crime,LEGAL AID FUND,O'GARRA'S SOLICITORS,1027052:144850604,"28,000.00 ",Legal Aid Payment Lower Crime
MINISTRY OF JUSTICE,LEGAL AID AGENCY,27/07/2016,Higher Crime,LEGAL AID FUND,CLAIRE FRASER,1022788:144829920,"27,907.04 ",Legal Aid Payment Higher Crime
MINISTRY OF JUSTICE,LEGAL AID AGENCY,27/07/2016,Lower Crime,LEGAL AID FUND,SEDGWICK CHUDLEIGH MCKENN SOLICITORS,1026859:144850882,"27,890.00 ",Legal Aid Payment Lower Crime
MINISTRY OF JUSTICE,LEGAL AID AGENCY,20/07/2016,Civil Representation,LEGAL AID FUND,GILLIAN RADFORD & CO,1018471:144759649,"27,820.90 ",Legal Aid Payment Civil Representation
MINISTRY OF JUSTICE,LEGAL AID AGENCY,27/07/2016,Lower Crime,LEGAL AID FUND,KYLE LEGAL PRACTICE,1026789:144851549,"27,816.00 ",Legal Aid Payment Lower Crime
MINISTRY OF JUSTICE,LEGAL AID AGENCY,06/07/2016,Higher Crime,LEGAL AID FUND,MIDDLEWEEKS LEGAL LTD,1013352:144615546,"27,814.68 ",Legal Aid Payment Higher Crime
MINISTRY OF JUSTICE,LEGAL AID AGENCY,27/07/2016,Legal Help,LEGAL AID FUND,NOBLE SOLICITORS,1025397:144849839,"27,813.00 ",Legal Aid Payment Legal Help
MINISTRY OF JUSTICE,LEGAL AID AGENCY,27/07/2016,Lower Crime,LEGAL AID FUND,DPP LAW LTD,1023531:144850502,"27,800.00 ",Legal Aid Payment Lower Crime
MINISTRY OF JUSTICE,LEGAL AID AGENCY,20/07/2016,Higher Crime,LEGAL AID FUND,GOODWIN STEVENS SOLICITORS,1020689:144732026,"27,797.92 ",Legal Aid Payment Higher Crime
MINISTRY OF JUSTICE,LEGAL AID AGENCY,27/07/2016,Higher Crime,LEGAL AID FUND,WALTERS SOLICITORS,1023192:144830536,"27,797.33 ",Legal Aid Payment Higher Crime
MINISTRY OF JUSTICE,LEGAL AID AGENCY,13/07/2016,Higher Crime,LEGAL AID FUND,STEPHENSONS SOLICITORS LLP,1016524:144666267,"27,757.43 ",Legal Aid Payment Higher Crime
MINISTRY OF JUSTICE,LEGAL AID AGENCY,27/07/2016,Lower Crime,LEGAL AID FUND,JBR MORGAN LTD,1023196:144851705,"27,751.00 ",Legal Aid Payment Lower Crime
MINISTRY OF JUSTICE,LEGAL AID AGENCY,20/07/2016,Higher Crime,LEGAL AID FUND,RAMIN PAKROOH,1018263:144732237,"27,748.90 ",Legal Aid Payment Higher Crime
MINISTRY OF JUSTICE,LEGAL AID AGENCY,13/07/2016,Higher Crime,LEGAL AID FUND,DAVID TAYLOR,1017209:144667610,"27,741.24 ",Legal Aid Payment Higher Crime
MINISTRY OF JUSTICE,LEGAL AID AGENCY,27/07/2016,Lower Crime,LEGAL AID FUND,RICHARDSON SOLICITORS,1025376:144850703,"27,700.00 ",Legal Aid Payment Lower Crime
MINISTRY OF JUSTICE,LEGAL AID AGENCY,27/07/2016,Lower Crime,LEGAL AID FUND,STEVENS SOLICITORS,1023778:144850792,"27,700.00 ",Legal Aid Payment Lower Crime
MINISTRY OF JUSTICE,LEGAL AID AGENCY,27/07/2016,Legal Help,LEGAL AID FUND,FRENCH & CO,1027093:144849787,"27,692.00 ",Legal Aid Payment Legal Help
MINISTRY OF JUSTICE,LEGAL AID AGENCY,27/07/2016,Legal Help,LEGAL AID FUND,SOUTHERNS,1025526:144849721,"27,691.00 ",Legal Aid Payment Legal Help
MINISTRY OF JUSTICE,LEGAL AID AGENCY,27/07/2016,Legal Help,LEGAL AID FUND,MOWBRAY WOODWARDS LTD,1027462:144849446,"27,689.00 ",Legal Aid Payment Legal Help
MINISTRY OF JUSTICE,LEGAL AID AGENCY,06/07/2016,Civil Representation,LEGAL AID FUND,HOGANS,1011699:144661467,"27,647.55 ",Legal Aid Payment Civil Representation
MINISTRY OF JUSTICE,LEGAL AID AGENCY,27/07/2016,Civil Representation,LEGAL AID FUND,BLAKE LAPTHORN,1025767:144761212,"27,643.68 ",Legal Aid Payment Civil Representation
MINISTRY OF JUSTICE,LEGAL AID AGENCY,06/07/2016,Higher Crime,LEGAL AID FUND,DAVID STREET & CO,1013427:144615469,"27,608.92 ",Legal Aid Payment Higher Crime
MINISTRY OF JUSTICE,LEGAL AID AGENCY,27/07/2016,Lower Crime,LEGAL AID FUND,DARRYL INGRAM & CO,1023399:144850448,"27,600.00 ",Legal Aid Payment Lower Crime
MINISTRY OF JUSTICE,LEGAL AID AGENCY,27/07/2016,Lower Crime,LEGAL AID FUND,MANN & CO SOLICITORS,1027069:144850789,"27,600.00 ",Legal Aid Payment Lower Crime
MINISTRY OF JUSTICE,LEGAL AID AGENCY,27/07/2016,Lower Crime,LEGAL AID FUND,REEDS SOLICITORS LTD,1024041:144851856,"27,556.00 ",Legal Aid Payment Lower Crime
MINISTRY OF JUSTICE,LEGAL AID AGENCY,27/07/2016,Lower Crime,LEGAL AID FUND,MCCORMACKS LAW,1026793:144851603,"27,498.00 ",Legal Aid Payment Lower Crime
MINISTRY OF JUSTICE,LEGAL AID AGENCY,19/07/2016,Civil Representation,LEGAL AID FUND,DARREN F HOWE QC,1017791:300000101770JK189,"27,442.80 ",Legal Aid Payment Civil Representation
MINISTRY OF JUSTICE,LEGAL AID AGENCY,13/07/2016,Higher Crime,LEGAL AID FUND,HUSSAIN SOLICITORS LTD,1016294:144720050,"27,421.10 ",Legal Aid Payment Higher Crime
MINISTRY OF JUSTICE,LEGAL AID AGENCY,27/07/2016,Lower Crime,LEGAL AID FUND,REEDS SOLICITORS LTD,1025961:144851777,"27,371.00 ",Legal Aid Payment Lower Crime
MINISTRY OF JUSTICE,LEGAL AID AGENCY,27/07/2016,Lower Crime,LEGAL AID FUND,CRIMINAL DEFENCE SOLICITORS,1025160:144850478,"27,300.00 ",Legal Aid Payment Lower Crime
MINISTRY OF JUSTICE,LEGAL AID AGENCY,27/07/2016,Lower Crime,LEGAL AID FUND,HEALEY COLBON,1023340:144850360,"27,300.00 ",Legal Aid Payment Lower Crime
MINISTRY OF JUSTICE,LEGAL AID AGENCY,27/07/2016,Legal Help,LEGAL AID FUND,THOMPSON & CO,1023822:144849181,"27,300.00 ",Legal Aid Payment Legal Help
MINISTRY OF JUSTICE,LEGAL AID AGENCY,27/07/2016,Legal Help,LEGAL AID FUND,HODGE JONES & ALLEN LLP,1023909:144849667,"27,292.00 ",Legal Aid Payment Legal Help
MINISTRY OF JUSTICE,LEGAL AID AGENCY,27/07/2016,Lower Crime,LEGAL AID FUND,BOOTS STARKE GOACHER SOLICITORS,1027078:144851389,"27,213.00 ",Legal Aid Payment Lower Crime
MINISTRY OF JUSTICE,LEGAL AID AGENCY,27/07/2016,Civil Representation,LEGAL AID FUND,POND MARSH,1027354:144822494,"27,162.18 ",Legal Aid Payment Civil Representation
MINISTRY OF JUSTICE,LEGAL AID AGENCY,20/07/2016,Higher Crime,LEGAL AID FUND,ELITE SOLICITORS-ADVOCATE,1019084:144787222,"27,160.90 ",Legal Aid Payment Higher Crime
MINISTRY OF JUSTICE,LEGAL AID AGENCY,13/07/2016,Higher Crime,LEGAL AID FUND,CHRISTOPHER M  CONVEY,1014937:144727215,"27,142.37 ",Legal Aid Payment Higher Crime
MINISTRY OF JUSTICE,LEGAL AID AGENCY,20/07/2016,Higher Crime,LEGAL AID FUND,BIRDS SOLICITORS LTD,1021778:144787065,"27,139.58 ",Legal Aid Payment Higher Crime
MINISTRY OF JUSTICE,LEGAL AID AGENCY,27/07/2016,Legal Help,LEGAL AID FUND,QS JACKSON CANTER LTD,1027349:144849600,"27,106.00 ",Legal Aid Payment Legal Help
MINISTRY OF JUSTICE,LEGAL AID AGENCY,27/07/2016,Lower Crime,LEGAL AID FUND,HAY & KILNER,1027263:144851200,"27,055.00 ",Legal Aid Payment Lower Crime
MINISTRY OF JUSTICE,LEGAL AID AGENCY,13/07/2016,Higher Crime,LEGAL AID FUND,RUPERT A C PARDOE,1015123:144719403,"27,038.16 ",Legal Aid Payment Higher Crime
MINISTRY OF JUSTICE,LEGAL AID AGENCY,06/07/2016,Civil Representation,LEGAL AID FUND,ANNIE WARD,1009621:144606959,"27,035.18 ",Legal Aid Payment Civil Representation
MINISTRY OF JUSTICE,LEGAL AID AGENCY,20/07/2016,Higher Crime,LEGAL AID FUND,HOLMES MORGAN CLARKE SOLICITORS LTD,1020648:144744204,"27,035.15 ",Legal Aid Payment Higher Crime
MINISTRY OF JUSTICE,LEGAL AID AGENCY,27/07/2016,Lower Crime,LEGAL AID FUND,ALEXANDER BENNETT,1024178:144850867,"27,000.00 ",Legal Aid Payment Lower Crime
MINISTRY OF JUSTICE,LEGAL AID AGENCY,27/07/2016,Lower Crime,LEGAL AID FUND,BARRETT & NELLIGAN SOLICITORS LTD,1025588:144850660,"27,000.00 ",Legal Aid Payment Lower Crime
MINISTRY OF JUSTICE,LEGAL AID AGENCY,27/07/2016,Lower Crime,LEGAL AID FUND,DAVID GRAY LLP,1026968:144850538,"27,000.00 ",Legal Aid Payment Lower Crime
MINISTRY OF JUSTICE,LEGAL AID AGENCY,27/07/2016,Lower Crime,LEGAL AID FUND,KENT DEFENCE,1025054:144850835,"27,000.00 ",Legal Aid Payment Lower Crime
MINISTRY OF JUSTICE,LEGAL AID AGENCY,06/07/2016,Higher Crime,LEGAL AID FUND,LEWIS NEDAS & CO,1010553:144602930,"27,000.00 ",Legal Aid Payment Higher Crime
MINISTRY OF JUSTICE,LEGAL AID AGENCY,27/07/2016,Lower Crime,LEGAL AID FUND,RICHARD BODY & CO,1023512:144850690,"27,000.00 ",Legal Aid Payment Lower Crime
MINISTRY OF JUSTICE,LEGAL AID AGENCY,27/07/2016,Lower Crime,LEGAL AID FUND,ONUMA & CO LLP,1022324:144851846,"26,961.00 ",Legal Aid Payment Lower Crime
MINISTRY OF JUSTICE,LEGAL AID AGENCY,20/07/2016,Higher Crime,LEGAL AID FUND,THE FIRM LLP,1019532:144767211,"26,917.94 ",Legal Aid Payment Higher Crime
MINISTRY OF JUSTICE,LEGAL AID AGENCY,27/07/2016,Lower Crime,LEGAL AID FUND,NELSON GUEST & PARTNERS,1024002:144850438,"26,900.00 ",Legal Aid Payment Lower Crime
MINISTRY OF JUSTICE,LEGAL AID AGENCY,27/07/2016,Lower Crime,LEGAL AID FUND,PENFOLD & MCPHERSON,1027321:144851411,"26,886.00 ",Legal Aid Payment Lower Crime
MINISTRY OF JUSTICE,LEGAL AID AGENCY,13/07/2016,Higher Crime,LEGAL AID FUND,FORBES SOLICITORS,1014435:144666204,"26,820.01 ",Legal Aid Payment Higher Crime
MINISTRY OF JUSTICE,LEGAL AID AGENCY,27/07/2016,Higher Crime,LEGAL AID FUND,KEANEY & CO SOLICITORS,1022319:144798163,"26,820.01 ",Legal Aid Payment Higher Crime
MINISTRY OF JUSTICE,LEGAL AID AGENCY,13/07/2016,Higher Crime,LEGAL AID FUND,MOHAMMED & CO,1015389:144719466,"26,820.01 ",Legal Aid Payment Higher Crime
MINISTRY OF JUSTICE,LEGAL AID AGENCY,20/07/2016,Higher Crime,LEGAL AID FUND,ZMS LEGAL LTD TA ZMS SOLICITORS,1019501:144786944,"26,820.01 ",Legal Aid Payment Higher Crime
MINISTRY OF JUSTICE,LEGAL AID AGENCY,27/07/2016,Lower Crime,LEGAL AID FUND,SWITALSKI'S SOLICITORS LTD,1023704:144851214,"26,804.00 ",Legal Aid Payment Lower Crime
MINISTRY OF JUSTICE,LEGAL AID AGENCY,20/07/2016,Civil Representation,LEGAL AID FUND,MORRISON SPOWART LTD,1019592:144738063,"26,713.97 ",Legal Aid Payment Civil Representation
MINISTRY OF JUSTICE,LEGAL AID AGENCY,13/07/2016,Higher Crime,LEGAL AID FUND,S SATHA & CO LTD,1014557:144719770,"26,710.91 ",Legal Aid Payment Higher Crime
MINISTRY OF JUSTICE,LEGAL AID AGENCY,27/07/2016,Lower Crime,LEGAL AID FUND,KEMPS,1025510:144851285,"26,706.00 ",Legal Aid Payment Lower Crime
MINISTRY OF JUSTICE,LEGAL AID AGENCY,13/07/2016,Civil Representation,LEGAL AID FUND,FORBES SOLICITORS,1013640:300000085354DSW75,"26,689.38 ",Legal Aid Payment Civil Representation
MINISTRY OF JUSTICE,LEGAL AID AGENCY,27/07/2016,Higher Crime,LEGAL AID FUND,BEN HOARE BELL LLP,1024326:144853551,"26,685.74 ",Legal Aid Payment Higher Crime
MINISTRY OF JUSTICE,LEGAL AID AGENCY,27/07/2016,Legal Help,LEGAL AID FUND,TRP SOLICITORS LTD,1026857:144849040,"26,600.00 ",Legal Aid Payment Legal Help
MINISTRY OF JUSTICE,LEGAL AID AGENCY,06/07/2016,Higher Crime,LEGAL AID FUND,MORGAN BROWN & CO,1011619:144602672,"26,579.18 ",Legal Aid Payment Higher Crime
MINISTRY OF JUSTICE,LEGAL AID AGENCY,13/07/2016,Higher Crime,LEGAL AID FUND,RAYMOND P TULLY,1017061:144720453,"26,572.90 ",Legal Aid Payment Higher Crime
MINISTRY OF JUSTICE,LEGAL AID AGENCY,06/07/2016,Civil Representation,LEGAL AID FUND,MCCORMACKS LAW,1011805:144598743,"26,562.89 ",Legal Aid Payment Civil Representation
MINISTRY OF JUSTICE,LEGAL AID AGENCY,06/07/2016,Civil Representation,LEGAL AID FUND,WILSON SOLICITORS LLP,1013159:144611401,"26,549.47 ",Legal Aid Payment Civil Representation
MINISTRY OF JUSTICE,LEGAL AID AGENCY,27/07/2016,Lower Crime,LEGAL AID FUND,MUSTOE SHORTER SOLICITORS & ADVOCATES,1025374:144851465,"26,473.00 ",Legal Aid Payment Lower Crime
MINISTRY OF JUSTICE,LEGAL AID AGENCY,27/07/2016,Higher Crime,LEGAL AID FUND,JVA LAW,1023354:144798249,"26,464.44 ",Legal Aid Payment Higher Crime
MINISTRY OF JUSTICE,LEGAL AID AGENCY,27/07/2016,Lower Crime,LEGAL AID FUND,DJMS SOLICITORS LTD,1024327:144851748,"26,415.00 ",Legal Aid Payment Lower Crime
MINISTRY OF JUSTICE,LEGAL AID AGENCY,13/07/2016,Higher Crime,LEGAL AID FUND,ABBEY SOLICITORS,1017325:144701981,"26,393.41 ",Legal Aid Payment Higher Crime
MINISTRY OF JUSTICE,LEGAL AID AGENCY,20/07/2016,Higher Crime,LEGAL AID FUND,ZMS LEGAL LTD TA ZMS SOLICITORS,1019501:144744469,"26,393.41 ",Legal Aid Payment Higher Crime
MINISTRY OF JUSTICE,LEGAL AID AGENCY,13/07/2016,Civil Representation,LEGAL AID FUND,FITZHUGH GATES,1016573:144695189,"26,361.62 ",Legal Aid Payment Civil Representation
MINISTRY OF JUSTICE,LEGAL AID AGENCY,27/07/2016,Lower Crime,LEGAL AID FUND,JOHN FULLER & PARTNERS,1023318:144851000,"26,317.00 ",Legal Aid Payment Lower Crime
MINISTRY OF JUSTICE,LEGAL AID AGENCY,06/07/2016,Higher Crime,LEGAL AID FUND,SARAH O'KANE,1011253:144602602,"26,297.64 ",Legal Aid Payment Higher Crime
MINISTRY OF JUSTICE,LEGAL AID AGENCY,13/07/2016,Civil Representation,LEGAL AID FUND,THE FIRM LLP,1016349:144712867,"26,253.73 ",Legal Aid Payment Civil Representation
MINISTRY OF JUSTICE,LEGAL AID AGENCY,27/07/2016,Lower Crime,LEGAL AID FUND,ISON HARRISON LTD,1026935:144850603,"26,200.00 ",Legal Aid Payment Lower Crime
MINISTRY OF JUSTICE,LEGAL AID AGENCY,27/07/2016,Legal Help,LEGAL AID FUND,ISON HARRISON LTD,1026936:144849583,"26,181.00 ",Legal Aid Payment Legal Help
MINISTRY OF JUSTICE,LEGAL AID AGENCY,27/07/2016,Lower Crime,LEGAL AID FUND,COUSINS TYRER SOLICITORS,1023705:144851260,"26,109.00 ",Legal Aid Payment Lower Crime
MINISTRY OF JUSTICE,LEGAL AID AGENCY,27/07/2016,Civil Representation,LEGAL AID FUND,HANNAH J SIMPSON,1023177:144812152,"26,103.60 ",Legal Aid Payment Civil Representation
MINISTRY OF JUSTICE,LEGAL AID AGENCY,27/07/2016,Lower Crime,LEGAL AID FUND,FRAZER BRADSHAW,1026845:144850432,"26,100.00 ",Legal Aid Payment Lower Crime
MINISTRY OF JUSTICE,LEGAL AID AGENCY,06/07/2016,Higher Crime,LEGAL AID FUND,WATSON WOODHOUSE SOLICITORS LLP,1011859:144653818,"26,022.19 ",Legal Aid Payment Higher Crime
MINISTRY OF JUSTICE,LEGAL AID AGENCY,27/07/2016,Lower Crime,LEGAL AID FUND,ROWE SPARKES SOLICITORS LTD,1025153:144850715,"26,000.00 ",Legal Aid Payment Lower Crime
MINISTRY OF JUSTICE,LEGAL AID AGENCY,27/07/2016,Higher Crime,LEGAL AID FUND,G T STEWART SOLICITORS,1025076:144809847,"25,994.82 ",Legal Aid Payment Higher Crime
MINISTRY OF JUSTICE,LEGAL AID AGENCY,27/07/2016,Civil Representation,LEGAL AID FUND,PETER LYNN & PARTNERS,1022236:300000079477RC249,"25,986.65 ",Legal Aid Payment Civil Representation
MINISTRY OF JUSTICE,LEGAL AID AGENCY,13/07/2016,Higher Crime,LEGAL AID FUND,TREVOR L MEEGAN,1014037:144666211,"25,968.00 ",Legal Aid Payment Higher Crime
MINISTRY OF JUSTICE,LEGAL AID AGENCY,27/07/2016,Legal Help,LEGAL AID FUND,TURPIN & MILLER LLP,1025250:144849826,"25,949.00 ",Legal Aid Payment Legal Help
MINISTRY OF JUSTICE,LEGAL AID AGENCY,27/07/2016,Lower Crime,LEGAL AID FUND,WALDRONS SOLICITORS,1023270:144851600,"25,938.00 ",Legal Aid Payment Lower Crime
MINISTRY OF JUSTICE,LEGAL AID AGENCY,27/07/2016,Lower Crime,LEGAL AID FUND,ROBERTSON'S SOLICITORS,1025475:144850579,"25,900.00 ",Legal Aid Payment Lower Crime
MINISTRY OF JUSTICE,LEGAL AID AGENCY,27/07/2016,Higher Crime,LEGAL AID FUND,BALBIR SINGH,1026295:144809951,"25,896.02 ",Legal Aid Payment Higher Crime
MINISTRY OF JUSTICE,LEGAL AID AGENCY,20/07/2016,Civil Representation,LEGAL AID FUND,JOSEPHINE M SPRATT-DAWSON,1021431:144791094,"25,896.00 ",Legal Aid Payment Civil Representation
MINISTRY OF JUSTICE,LEGAL AID AGENCY,27/07/2016,Legal Help,LEGAL AID FUND,WOLTON & CO,1023472:144849405,"25,895.00 ",Legal Aid Payment Legal Help
MINISTRY OF JUSTICE,LEGAL AID AGENCY,20/07/2016,Civil Representation,LEGAL AID FUND,AVERY NAYLOR LTD,1018573:144620422,"25,820.53 ",Legal Aid Payment Civil Representation
MINISTRY OF JUSTICE,LEGAL AID AGENCY,27/07/2016,Legal Help,LEGAL AID FUND,ELDER RAHIMI LIMITED,1023589:144849689,"25,787.00 ",Legal Aid Payment Legal Help
MINISTRY OF JUSTICE,LEGAL AID AGENCY,27/07/2016,Higher Crime,LEGAL AID FUND,ROBIN C GRIFFITHS,1024568:144809417,"25,748.06 ",Legal Aid Payment Higher Crime
MINISTRY OF JUSTICE,LEGAL AID AGENCY,27/07/2016,Lower Crime,LEGAL AID FUND,KAIM TODNER SOLICITORS LIMITED,1025720:144851069,"25,733.00 ",Legal Aid Payment Lower Crime
MINISTRY OF JUSTICE,LEGAL AID AGENCY,27/07/2016,Lower Crime,LEGAL AID FUND,WATERS MOORE AT THE LAW CHAMBER,1026861:144851433,"25,715.00 ",Legal Aid Payment Lower Crime
MINISTRY OF JUSTICE,LEGAL AID AGENCY,27/07/2016,Lower Crime,LEGAL AID FUND,SAUNDERS SOLICITORS LTD,1023996:144850472,"25,700.00 ",Legal Aid Payment Lower Crime
MINISTRY OF JUSTICE,LEGAL AID AGENCY,27/07/2016,Lower Crime,LEGAL AID FUND,EDWARDS DUTHIE,1025744:144851773,"25,684.00 ",Legal Aid Payment Lower Crime
MINISTRY OF JUSTICE,LEGAL AID AGENCY,27/07/2016,Legal Help,LEGAL AID FUND,CAMPBELL-TAYLOR SOLICITORS,1027369:144849658,"25,646.00 ",Legal Aid Payment Legal Help
MINISTRY OF JUSTICE,LEGAL AID AGENCY,20/07/2016,Higher Crime,LEGAL AID FUND,CARTER MOORE SOLICITORS LTD,1018519:144732065,"25,635.12 ",Legal Aid Payment Higher Crime
MINISTRY OF JUSTICE,LEGAL AID AGENCY,27/07/2016,Lower Crime,LEGAL AID FUND,INGRAMS SOLICITORS,1026930:144851268,"25,610.00 ",Legal Aid Payment Lower Crime
MINISTRY OF JUSTICE,LEGAL AID AGENCY,20/07/2016,Civil Representation,LEGAL AID FUND,HEAVEN & CO,1019537:144751698,"25,594.82 ",Legal Aid Payment Civil Representation
MINISTRY OF JUSTICE,LEGAL AID AGENCY,06/07/2016,Higher Crime,LEGAL AID FUND,DAVID N BENTLEY,1011126:144654108,"25,588.28 ",Legal Aid Payment Higher Crime
MINISTRY OF JUSTICE,LEGAL AID AGENCY,20/07/2016,Higher Crime,LEGAL AID FUND,DUNCAN LEWIS,1019622:144767005,"25,583.38 ",Legal Aid Payment Higher Crime
MINISTRY OF JUSTICE,LEGAL AID AGENCY,27/07/2016,Lower Crime,LEGAL AID FUND,OLLIERS,1027056:144851316,"25,540.00 ",Legal Aid Payment Lower Crime
MINISTRY OF JUSTICE,LEGAL AID AGENCY,27/07/2016,Legal Help,LEGAL AID FUND,PHILCOX GRAY & CO,1024012:144849674,"25,511.00 ",Legal Aid Payment Legal Help
MINISTRY OF JUSTICE,LEGAL AID AGENCY,27/07/2016,Lower Crime,LEGAL AID FUND,MURRAYS PARTNERSHIP,1025511:144851139,"25,505.00 ",Legal Aid Payment Lower Crime
MINISTRY OF JUSTICE,LEGAL AID AGENCY,20/07/2016,Higher Crime,LEGAL AID FUND,KAIM TODNER SOLICITORS LIMITED,1022015:144744122,"25,504.55 ",Legal Aid Payment Higher Crime
MINISTRY OF JUSTICE,LEGAL AID AGENCY,27/07/2016,Legal Help,LEGAL AID FUND,FOUNTAIN SOLICITORS LTD,1026866:144849037,"25,500.00 ",Legal Aid Payment Legal Help
MINISTRY OF JUSTICE,LEGAL AID AGENCY,20/07/2016,Higher Crime,LEGAL AID FUND,VHS FLETCHERS,1020782:144787366,"25,489.57 ",Legal Aid Payment Higher Crime
MINISTRY OF JUSTICE,LEGAL AID AGENCY,20/07/2016,Civil Representation,LEGAL AID FUND,CHRISTOPHER A ADAMS,1018243:144751206,"25,358.40 ",Legal Aid Payment Civil Representation
MINISTRY OF JUSTICE,LEGAL AID AGENCY,27/07/2016,Higher Crime,LEGAL AID FUND,OLLIERS,1027056:144818712,"25,358.40 ",Legal Aid Payment Higher Crime
MINISTRY OF JUSTICE,LEGAL AID AGENCY,27/07/2016,Higher Crime,LEGAL AID FUND,SARAH O'KANE,1024802:144809784,"25,280.88 ",Legal Aid Payment Higher Crime
MINISTRY OF JUSTICE,LEGAL AID AGENCY,27/07/2016,Lower Crime,LEGAL AID FUND,KIRWANS,1026735:144851587,"25,214.00 ",Legal Aid Payment Lower Crime
MINISTRY OF JUSTICE,LEGAL AID AGENCY,13/07/2016,Civil Representation,LEGAL AID FUND,CITY LAW CHAMBERS LTD,1015295:144725479,"25,177.52 ",Legal Aid Payment Civil Representation
MINISTRY OF JUSTICE,LEGAL AID AGENCY,19/07/2016,Civil Representation,LEGAL AID FUND,QUALITYSOLICITORS DEVONALDS,1017782:300000084896DCL800,"25,120.59 ",Legal Aid Payment Civil Representation
MINISTRY OF JUSTICE,LEGAL AID AGENCY,27/07/2016,Higher Crime,LEGAL AID FUND,PETER L WILCOCK,1023113:144852862,"25,114.67 ",Legal Aid Payment Higher Crime
MINISTRY OF JUSTICE,LEGAL AID AGENCY,20/07/2016,Higher Crime,LEGAL AID FUND,DRAYCOTT BROWNE LTD,1021870:144756037,"25,048.53 ",Legal Aid Payment Higher Crime
MINISTRY OF JUSTICE,LEGAL AID AGENCY,27/07/2016,Legal Help,LEGAL AID FUND,WICK & CO,1025771:144849634,"25,006.00 ",Legal Aid Payment Legal Help
MINISTRY OF JUSTICE,LEGAL AID AGENCY,27/07/2016,Lower Crime,LEGAL AID FUND,ALLEN HOOLE SOLICITORS [0Q319P],1023333:144850766,"25,000.00 ",Legal Aid Payment Lower Crime
MINISTRY OF JUSTICE,LEGAL AID AGENCY,27/07/2016,Lower Crime,LEGAL AID FUND,HDH LAW,1026730:144850845,"25,000.00 ",Legal Aid Payment Lower Crime
MINISTRY OF JUSTICE,LEGAL AID AGENCY,27/07/2016,Lower Crime,LEGAL AID FUND,LAWTONS SOLICITORS LTD,1023445:144850357,"25,000.00 ",Legal Aid Payment Lower Crime
MINISTRY OF JUSTICE,LEGAL AID AGENCY,27/07/2016,Lower Crime,LEGAL AID FUND,MURRAY BRANKIN,1022556:144850856,"25,000.00 ",Legal Aid Payment Lower Crime
MINISTRY OF JUSTICE,LEGAL AID AGENCY,27/07/2016,Lower Crime,LEGAL AID FUND,STRINGFELLOW & CO,1023312:144850395,"25,000.00 ",Legal Aid Payment Lower Crime
MINISTRY OF JUSTICE,LEGAL AID AGENCY,27/07/2016,Lower Crime,LEGAL AID FUND,T S LAW LTD,1022536:144850855,"25,000.00 ",Legal Aid Payment Lower Crime
MINISTRY OF JUSTICE,LEGAL AID AGENCY,27/07/2016,Lower Crime,LEGAL AID FUND,T S LAW LTD,1025368:144850457,"25,000.00 ",Legal Aid Payment Lower Crime
MINISTRY OF JUSTICE,LEGAL AID AGENCY,20/07/2016,Civil Representation,LEGAL AID FUND,VICTORIA J EDMONDS,1021290:144547836,"-25,358.40 ",Legal Aid Payment Civil Representation
MINISTRY OF JUSTICE,LEGAL AID AGENCY,28/07/2016,Lower Crime,LEGAL AID FUND,BRIMBLE & CO LTD,1027564:131811581,"-25,444.03 ",Legal Aid Payment Lower Crime
MINISTRY OF JUSTICE,LEGAL AID AGENCY,11/07/2016,Higher Crime,LEGAL AID FUND,JGT SOLICITORS,1013579:132371572,"-26,128.87 ",Legal Aid Payment Higher Crime
MINISTRY OF JUSTICE,LEGAL AID AGENCY,11/07/2016,Civil Representation,LEGAL AID FUND,JULIA E CLARK,1013583:139423275,"-26,199.53 ",Legal Aid Payment Civil Representation
MINISTRY OF JUSTICE,LEGAL AID AGENCY,29/07/2016,Civil Representation,LEGAL AID FUND,FOOT ANSTEY LLP,1027583:144595823,"-26,259.29 ",Legal Aid Payment Civil Representation
MINISTRY OF JUSTICE,LEGAL AID AGENCY,06/07/2016,Civil Representation,LEGAL AID FUND,HOGANS,1011699:144661471,"-26,271.60 ",Legal Aid Payment Civil Representation
MINISTRY OF JUSTICE,LEGAL AID AGENCY,27/07/2016,Legal Help,LEGAL AID FUND,MOWBRAY WOODWARDS LTD,1027462:144844827,"-26,400.00 ",Legal Aid Payment Legal Help
MINISTRY OF JUSTICE,LEGAL AID AGENCY,13/07/2016,Civil Representation,LEGAL AID FUND,DAVID CENNYDD RICHARDS,1016961:144671929,"-27,086.40 ",Legal Aid Payment Civil Representation
MINISTRY OF JUSTICE,LEGAL AID AGENCY,14/07/2016,Civil Representation,LEGAL AID FUND,PENNINGTONS MANCHES LLP,1017760:144495228,"-27,529.87 ",Legal Aid Payment Civil Representation
MINISTRY OF JUSTICE,LEGAL AID AGENCY,13/07/2016,Civil Representation,LEGAL AID FUND,THE FIRM LLP,1016349:144712932,"-27,747.73 ",Legal Aid Payment Civil Representation
MINISTRY OF JUSTICE,LEGAL AID AGENCY,28/07/2016,Civil Representation,LEGAL AID FUND,CATHERINE J GARGAN,1027566:144432459,"-28,144.33 ",Legal Aid Payment Civil Representation
MINISTRY OF JUSTICE,LEGAL AID AGENCY,20/07/2016,Civil Representation,LEGAL AID FUND,JAYNE A HARRILL,1020267:144781005,"-28,252.80 ",Legal Aid Payment Civil Representation
MINISTRY OF JUSTICE,LEGAL AID AGENCY,14/07/2016,Lower Crime,LEGAL AID FUND,GASKELL & WALKER (SOLICITORS) LTD,1017769:142324209,"-28,355.34 ",Legal Aid Payment Lower Crime
MINISTRY OF JUSTICE,LEGAL AID AGENCY,27/07/2016,Legal Help,LEGAL AID FUND,STEPHENSONS SOLICITORS LLP,1023843:144494465,"-29,515.24 ",Legal Aid Payment Legal Help
MINISTRY OF JUSTICE,LEGAL AID AGENCY,14/07/2016,Legal Help,LEGAL AID FUND,BLACKETT HART & PRATT LLP,1017768:144270440,"-29,723.58 ",Legal Aid Payment Legal Help
MINISTRY OF JUSTICE,LEGAL AID AGENCY,20/07/2016,Civil Representation,LEGAL AID FUND,GILLIAN TEMPLE-BONE,1020401:144694199,"-29,984.21 ",Legal Aid Payment Civil Representation
MINISTRY OF JUSTICE,LEGAL AID AGENCY,13/07/2016,Civil Representation,LEGAL AID FUND,ALEXA R STOREY-REA,1014019:144194490,"-31,039.07 ",Legal Aid Payment Civil Representation
MINISTRY OF JUSTICE,LEGAL AID AGENCY,14/07/2016,Civil Representation,LEGAL AID FUND,PENNINGTONS MANCHES LLP,1017760:144495227,"-31,297.50 ",Legal Aid Payment Civil Representation
MINISTRY OF JUSTICE,LEGAL AID AGENCY,14/07/2016,Legal Help,LEGAL AID FUND,MAIDSTONE CAB,1017766:142323709,"-31,629.14 ",Legal Aid Payment Legal Help
MINISTRY OF JUSTICE,LEGAL AID AGENCY,06/07/2016,Civil Representation,LEGAL AID FUND,EVANS MAIN SOLICITORS,1012987:144662091,"-31,669.23 ",Legal Aid Payment Civil Representation
MINISTRY OF JUSTICE,LEGAL AID AGENCY,20/07/2016,Higher Crime,LEGAL AID FUND,BLASER MILLS LLP,1022104:144360830,"-32,638.78 ",Legal Aid Payment Higher Crime
MINISTRY OF JUSTICE,LEGAL AID AGENCY,14/07/2016,Civil Representation,LEGAL AID FUND,JANE CROSS QC,1017763:141260804,"-32,683.50 ",Legal Aid Payment Civil Representation
MINISTRY OF JUSTICE,LEGAL AID AGENCY,13/07/2016,Civil Representation,LEGAL AID FUND,HOPKINS LAW LTD,1014320:144671041,"-33,064.48 ",Legal Aid Payment Civil Representation
MINISTRY OF JUSTICE,LEGAL AID AGENCY,13/07/2016,Lower Crime,LEGAL AID FUND,BANNER JONES LTD,1016466:144270310,"-33,330.09 ",Legal Aid Payment Lower Crime
MINISTRY OF JUSTICE,LEGAL AID AGENCY,28/07/2016,Civil Representation,LEGAL AID FUND,DANIEL KINGSLEY,1027572:138591741,"-33,659.56 ",Legal Aid Payment Civil Representation
MINISTRY OF JUSTICE,LEGAL AID AGENCY,12/07/2016,Lower Crime,LEGAL AID FUND,AUDLEY LAW LLP,1013600:133985466,"-35,907.08 ",Legal Aid Payment Lower Crime
MINISTRY OF JUSTICE,LEGAL AID AGENCY,14/07/2016,Legal Help,LEGAL AID FUND,TURNER & CO,1017762:142323931,"-36,450.91 ",Legal Aid Payment Legal Help
MINISTRY OF JUSTICE,LEGAL AID AGENCY,14/07/2016,Legal Help,LEGAL AID FUND,THURROCK CAB,1017764:142641210,"-36,665.90 ",Legal Aid Payment Legal Help
MINISTRY OF JUSTICE,LEGAL AID AGENCY,20/07/2016,Lower Crime,LEGAL AID FUND,MARK WEEKES,1019366:144737618,"-36,864.36 ",Legal Aid Payment Lower Crime
MINISTRY OF JUSTICE,LEGAL AID AGENCY,27/07/2016,Civil Representation,LEGAL AID FUND,SMITH PARTNERSHIP,1026951:144802147,"-36,966.24 ",Legal Aid Payment Civil Representation
MINISTRY OF JUSTICE,LEGAL AID AGENCY,26/07/2016,Lower Crime,LEGAL AID FUND,LANYON BOWDLER LLP,1022215:2000000000001011,"-37,900.00 ",Legal Aid Payment Lower Crime
MINISTRY OF JUSTICE,LEGAL AID AGENCY,27/07/2016,Legal Help,LEGAL AID FUND,STEPHENSONS SOLICITORS LLP,1023843:144494571,"-37,901.60 ",Legal Aid Payment Legal Help
MINISTRY OF JUSTICE,LEGAL AID AGENCY,20/07/2016,Civil Representation,LEGAL AID FUND,VANESSA V MEACHIN,1018223:144547835,"-38,293.19 ",Legal Aid Payment Civil Representation
MINISTRY OF JUSTICE,LEGAL AID AGENCY,27/07/2016,Legal Help,LEGAL AID FUND,STEPHENSONS SOLICITORS LLP,1023843:144696519,"-39,247.97 ",Legal Aid Payment Legal Help
MINISTRY OF JUSTICE,LEGAL AID AGENCY,13/07/2016,Civil Representation,LEGAL AID FUND,JEREMY G ROSENBLATT,1016027:143859109,"-39,300.00 ",Legal Aid Payment Civil Representation
MINISTRY OF JUSTICE,LEGAL AID AGENCY,12/07/2016,Civil Representation,LEGAL AID FUND,STEPHEN J T SWITALSKI (DEC'D),1013603:137383836,"-40,482.71 ",Legal Aid Payment Civil Representation
MINISTRY OF JUSTICE,LEGAL AID AGENCY,12/07/2016,Legal Help,LEGAL AID FUND,READING COMMUNITY WELFARE RIGHTS UNIT,1013596:127265685,"-41,235.00 ",Legal Aid Payment Legal Help
MINISTRY OF JUSTICE,LEGAL AID AGENCY,13/07/2016,Civil Representation,LEGAL AID FUND,JOHN C R TUGHAN,1014917:141871000,"-42,723.00 ",Legal Aid Payment Civil Representation
MINISTRY OF JUSTICE,LEGAL AID AGENCY,20/07/2016,Civil Representation,LEGAL AID FUND,ELIZABETH MCGRATH,1022138:144780618,"-44,161.20 ",Legal Aid Payment Civil Representation
MINISTRY OF JUSTICE,LEGAL AID AGENCY,20/07/2016,Civil Representation,LEGAL AID FUND,BLACKFORDS LLP,1022039:144779689,"-44,718.43 ",Legal Aid Payment Civil Representation
MINISTRY OF JUSTICE,LEGAL AID AGENCY,06/07/2016,Higher Crime,LEGAL AID FUND,DJMS SOLICITORS LTD,1010172:144654774,"-45,699.56 ",Legal Aid Payment Higher Crime
MINISTRY OF JUSTICE,LEGAL AID AGENCY,14/07/2016,Civil Representation,LEGAL AID FUND,JANE CROSS QC,1017763:141198248,"-49,896.00 ",Legal Aid Payment Civil Representation
MINISTRY OF JUSTICE,LEGAL AID AGENCY,11/07/2016,Lower Crime,LEGAL AID FUND,COWARD & CO SOLICITORS,1013584:142324139,"-51,739.30 ",Legal Aid Payment Lower Crime
MINISTRY OF JUSTICE,LEGAL AID AGENCY,05/07/2016,Civil Representation,LEGAL AID FUND,WAKE SMITH SOLICITORS LTD,1009149:144208941,"-52,704.81 ",Legal Aid Payment Civil Representation
MINISTRY OF JUSTICE,LEGAL AID AGENCY,27/07/2016,Civil Representation,LEGAL AID FUND,PHILCOX GRAY & CO,1024012:144812269,"-55,397.09 ",Legal Aid Payment Civil Representation
MINISTRY OF JUSTICE,LEGAL AID AGENCY,11/07/2016,Legal Help,LEGAL AID FUND,MICHAEL H NICHOLSON,1013577:131838073,"-55,986.01 ",Legal Aid Payment Legal Help
MINISTRY OF JUSTICE,LEGAL AID AGENCY,11/07/2016,Legal Help,LEGAL AID FUND,MICHAEL H NICHOLSON,1013577:132063576,"-55,986.01 ",Legal Aid Payment Legal Help
MINISTRY OF JUSTICE,LEGAL AID AGENCY,11/07/2016,Legal Help,LEGAL AID FUND,FOREST SOLICITORS,1013580:135286446,"-59,508.42 ",Legal Aid Payment Legal Help
MINISTRY OF JUSTICE,LEGAL AID AGENCY,26/07/2016,Civil Representation,LEGAL AID FUND,UPPAL TAYLOR,1022220:144672205,"-66,093.75 ",Legal Aid Payment Civil Representation
MINISTRY OF JUSTICE,LEGAL AID AGENCY,20/07/2016,Lower Crime,LEGAL AID FUND,HELEN K L MALCOLM QC,1019446:144737609,"-73,152.00 ",Legal Aid Payment Lower Crime
MINISTRY OF JUSTICE,LEGAL AID AGENCY,20/07/2016,Lower Crime,LEGAL AID FUND,R ALUN JONES QC,1021381:144737734,"-182,844.00 ",Legal Aid Payment Lower Crime
